date,department/service,beneficiary,amount,summary of purpose,category,transaction number,SAP vendor number
01.12.2019,ASSET MANAGEMENT,BUILDTRUST LTD,764,ADAPTATIONS,BUILDING R&M,5902391089,1000079190
01.12.2019,CENTRAL FUNCTIONS,KENT COUNTY COUNCIL - LASER,"2,578.99",HEATING ACCOUNT,ELECTRICITY,5902390576,1000012926
01.12.2019,CENTRAL FUNCTIONS,KENT COUNTY COUNCIL - LASER,"12,845.28",HEATING ACCOUNT,GAS,5902390566,1000012926
01.12.2019,CENTRAL FUNCTIONS,KENT COUNTY COUNCIL - LASER,"53,345.11",HEATING ACCOUNT,ELECTRICITY,5902390576,1000012926
01.12.2019,CENTRAL FUNCTIONS,KENT COUNTY COUNCIL - LASER,"1,066,199.00",HEATING ACCOUNT,GAS,5902390566,1000012926
01.12.2019,CENTRAL FUNCTIONS,DOCUMENT OPTIONS LIMITED,"2,550.00",OPERATIONAL TEAM,SOFTWARE,5902391225,1000051744
01.12.2019,CHIEF EXECUTIVE,SURVEY SOLUTIONS (SOUTH EAST) LTD,"1,950.00",CAPITAL PS (REGEN),CONSTRUCTION FEES,5902391099,1000064698
01.12.2019,CHILDREN'S SERVICES,INTERSERVE (FACILITIES MANAGEMENT),"1,017.62",MGMT & PARENTING PROG TEAM,PREMISES CLEANING,5902390780,1000070792
01.12.2019,CHILDREN'S SERVICES,ROYAL BOROUGH OF KENSINGTON & CHELSEA,"9,933.17",SOUTHWARK CHOICES,SOFTWARE,5902390720,1000033864
01.12.2019,COMMUNITIES,KENNINGTON PARK ROAD T&RA,"1,300.00",TENANTS FUND,GRANTS,5902391257,1000078006
01.12.2019,CUSTOMER EXPERIENCE HGF,JAMES MARTIN MUGWANYA T/A JOHN SMITH REMOVALS,500,HOMELESS PROJECTS,EXTERNAL AGENCIES AND BODIES,5902390879,1000078552
01.12.2019,CUSTOMER EXPERIENCE HGF,FRESHVIEW ESTATES LTD,"1,299.06",HOMELESS PROJECTS,GRANTS,5902390856,1000081189
01.12.2019,ENVIRONMENT AND LEISURE,CYCLEHOOP LTD,400,CAPITAL PS (LEISURE),CONSTRUCTION SITE COSTS,5902390840,1000057894
01.12.2019,ENVIRONMENT AND LEISURE,DELAWYK RESIDENTS MGT ORG LTD,"1,778.00",CAPITAL PS (LEISURE),CAPITAL GRANTS,5902390524,1000052920
01.12.2019,ENVIRONMENT AND LEISURE,VALLEY PROVINCIAL GROUP LLP,"2,194.00",CAPITAL PS (LEISURE),CONST'N MAIN CONTRACT - NON CERTIFICATED,2103034657,3000001895
01.12.2019,ENVIRONMENT AND LEISURE,VALLEY PROVINCIAL GROUP LLP,"2,690.00",CAPITAL PS (LEISURE),CONST'N MAIN CONTRACT - NON CERTIFICATED,2103034657,3000001895
01.12.2019,ENVIRONMENT AND LEISURE,CYCLEHOOP LTD,"2,800.00",CAPITAL PS (LEISURE),CONSTRUCTION SITE COSTS,5902390840,1000057894
01.12.2019,ENVIRONMENT AND LEISURE,VALLEY PROVINCIAL GROUP LLP,"11,170.00",CAPITAL PS (LEISURE),CONST'N MAIN CONTRACT - NON CERTIFICATED,2103034657,3000001895
01.12.2019,ENVIRONMENT AND LEISURE,VALLEY PROVINCIAL GROUP LLP,"19,975.00",CAPITAL PS (LEISURE),CONST'N MAIN CONTRACT - NON CERTIFICATED,2103034658,3000001895
01.12.2019,ENVIRONMENT DIRECTORATE,CRISP SOLUTIONS LTD,"2,000.00",ENVIRONMENTAL PROTECTION,CONSULTANTS SERVICES,5902391211,1000083533
01.12.2019,HOUSING HRA,BUILDTRUST LTD,"5,103.29",CAPITAL PS (HRA),CONST'N MAIN CONTRACT - NON CERTIFICATED,2103034661,3000002010
01.12.2019,HOUSING HRA,BUILDTRUST LTD,"5,741.98",CAPITAL PS (HRA),CONST'N MAIN CONTRACT - NON CERTIFICATED,2103034660,3000002010
01.12.2019,HOUSING HRA,BUILDTRUST LTD,"6,164.26",CAPITAL PS (HRA),CONST'N MAIN CONTRACT - NON CERTIFICATED,2103034662,3000002010
01.12.2019,HOUSING HRA,PRB ESTATES LTD,"6,826.22",CAPITAL PS (HRA),CONST'N MAIN CONTRACT - NON CERTIFICATED,2103034220,3000001691
01.12.2019,HOUSING HRA,PRB ESTATES LTD,"7,142.29",CAPITAL PS (HRA),CONST'N MAIN CONTRACT - NON CERTIFICATED,2103034221,3000001691
01.12.2019,HOUSING HRA,PRB ESTATES LTD,"7,980.79",CAPITAL PS (HRA),CONST'N MAIN CONTRACT - NON CERTIFICATED,2103034222,3000001691
01.12.2019,LAW & DEMOCRACY,ETC VENUES LTD,"1,210.00",LEGAL SVCES MANAGEMENT,PROFESSIONAL FEES,5902390095,1000045226
01.12.2019,LEISURE DIRECTORATE,INSPIRE AT ST PETER'S LTD,"7,740.75",GRANTS COMMISSIONING,GRANTS,5902390426,1000041565
01.12.2019,LEISURE DIRECTORATE,RP2 LTD,286.91,LEISURE INVESTMENT,MARKETING & PUBLICITY SERVICES,5902390407,1000063096
01.12.2019,LEISURE DIRECTORATE,RP2 LTD,386.9,LEISURE INVESTMENT,MARKETING & PUBLICITY SERVICES,5902390410,1000063096
01.12.2019,LEISURE DIRECTORATE,C S G (USHERS) LTD,"5,050.00",TREES PRINCIPAL ROADS,OTHER CONTRACTORS,5902390596,1000073203
01.12.2019,PUBLIC HEALTH,SMART HEALTH SOLUTIONS LTD,"1,185.00",HEALTH CHECKS CONTRACTS,EXTERNAL AGENCIES AND BODIES,5902391226,1000081611
01.12.2019,REGENERATION,OCO LIMITED,"59,185.37",PROFESSIONAL SERVICES (GENERAL),GROUNDS MAINTENANCE,5902391058,1006066
02.12.2019,ADULT SOCIAL CARE,SOUTHWARK CARERS,"80,073.50",OLDER PEOPLES HUBS,EXTERNAL AGENCIES AND BODIES,5902390685,1050893
02.12.2019,CHIEF EXECUTIVE'S OFFICE,OLIVER BURN RESIDENTIAL LTD,706,HERNE HILL,EXTERNAL AGENCIES AND BODIES,5902390995,1000080219
02.12.2019,ENVIRONMENT AND LEISURE,SPOKEMEAD MAINTENANCE LTD,411.61,CAPITAL PS (LEISURE),CONSTRUCTION MAIN CONTRACT -CERTIFICATED,2103034360,4002791
02.12.2019,ENVIRONMENT AND LEISURE,SPOKEMEAD MAINTENANCE LTD,411.61,CAPITAL PS (LEISURE),CONSTRUCTION MAIN CONTRACT -CERTIFICATED,2103034360,4002791
02.12.2019,ENVIRONMENT AND LEISURE,SPOKEMEAD MAINTENANCE LTD,684.33,CAPITAL PS (LEISURE),CONSTRUCTION MAIN CONTRACT -CERTIFICATED,2103034360,4002791
02.12.2019,ENVIRONMENT AND LEISURE,SPOKEMEAD MAINTENANCE LTD,709.77,CAPITAL PS (LEISURE),CONSTRUCTION MAIN CONTRACT -CERTIFICATED,2103034360,4002791
02.12.2019,ENVIRONMENT AND LEISURE,SPOKEMEAD MAINTENANCE LTD,786.56,CAPITAL PS (LEISURE),CONSTRUCTION MAIN CONTRACT -CERTIFICATED,2103034360,4002791
02.12.2019,ENVIRONMENT AND LEISURE,SPOKEMEAD MAINTENANCE LTD,929.37,CAPITAL PS (LEISURE),CONSTRUCTION MAIN CONTRACT -CERTIFICATED,2103034360,4002791
02.12.2019,ENVIRONMENT AND LEISURE,SPOKEMEAD MAINTENANCE LTD,"1,008.79",CAPITAL PS (LEISURE),CONSTRUCTION MAIN CONTRACT -CERTIFICATED,2103034360,4002791
02.12.2019,ENVIRONMENT AND LEISURE,SPOKEMEAD MAINTENANCE LTD,"1,067.49",CAPITAL PS (LEISURE),CONSTRUCTION MAIN CONTRACT -CERTIFICATED,2103034360,4002791
02.12.2019,ENVIRONMENT AND LEISURE,MILTON KEYNES SURVEYS LTD,"1,080.00",CAPITAL PS (LEISURE),CONSTRUCTION,5902390982,1000077138
02.12.2019,ENVIRONMENT AND LEISURE,ADVANCED TRANSPORT RESEARCH LTD,"1,170.00",CAPITAL PS (LEISURE),CONSTRUCTION,5902390842,1000070527
02.12.2019,ENVIRONMENT AND LEISURE,SPOKEMEAD MAINTENANCE LTD,"1,269.65",CAPITAL PS (LEISURE),CONSTRUCTION MAIN CONTRACT -CERTIFICATED,2103034360,4002791
02.12.2019,ENVIRONMENT AND LEISURE,SPOKEMEAD MAINTENANCE LTD,"1,323.11",CAPITAL PS (LEISURE),CONSTRUCTION MAIN CONTRACT -CERTIFICATED,2103034360,4002791
02.12.2019,ENVIRONMENT AND LEISURE,SPOKEMEAD MAINTENANCE LTD,"2,593.48",CAPITAL PS (LEISURE),CONSTRUCTION MAIN CONTRACT -CERTIFICATED,2103034360,4002791
02.12.2019,ENVIRONMENT AND LEISURE,SPOKEMEAD MAINTENANCE LTD,"2,597.12",CAPITAL PS (LEISURE),CONSTRUCTION MAIN CONTRACT -CERTIFICATED,2103034360,4002791
02.12.2019,ENVIRONMENT AND LEISURE,SPOKEMEAD MAINTENANCE LTD,"3,765.30",CAPITAL PS (LEISURE),CONSTRUCTION MAIN CONTRACT -CERTIFICATED,2103034360,4002791
02.12.2019,HOUSING HRA,PHILIP PANK PARTNERSHIP,"18,583.92",CAPITAL PS (HRA),CONSTRUCTION FEES  - EXTERNAL,5902390952,1015501
02.12.2019,LEISURE DIRECTORATE,THE COLUMBARIA COMPANY,330,CREMATORIUM,MATERIALS,5902391041,1632437
02.12.2019,LEISURE DIRECTORATE,BRINSON STANILAND PARTNERSHIP LTD,"2,650.00",FACILITIES MAINTENANCE,BUILDING R&M,5902390700,1000059553
02.12.2019,LEISURE DIRECTORATE,BRINSON STANILAND PARTNERSHIP LTD,"7,550.00",FACILITIES MAINTENANCE,BUILDING R&M,5902390710,1000059553
02.12.2019,LEISURE DIRECTORATE,SOUTH LONDON GALLERY,"5,398.75",GRANTS COMMISSIONING,GRANTS,5902390913,11011694
03.12.2019,ADULT SOCIAL CARE,ALLPAY LTD,316.02,CLIENT FINANCE TEAM,BANK CHARGES,5902391366,1000043001
03.12.2019,ADULT SOCIAL CARE,F A ALBIN AND SONS,463.48,PUBLIC FUNERALS S.46,OTHER CONTRACTORS,5902391470,11313949
03.12.2019,ADULT SOCIAL CARE,F A ALBIN AND SONS,"1,090.00",PUBLIC FUNERALS S.46,OTHER CONTRACTORS,5902391476,11313949
03.12.2019,ADULT SOCIAL CARE,F A ALBIN AND SONS,"1,254.00",PUBLIC FUNERALS S.46,OTHER CONTRACTORS,5902391484,11313949
03.12.2019,ADULT SOCIAL CARE,F A ALBIN AND SONS,"1,504.00",PUBLIC FUNERALS S.46,OTHER CONTRACTORS,5902391510,11313949
03.12.2019,ADULT SOCIAL CARE,INSPIRE SOCIAL CARE LTD,"1,718.00",SAFEGUARDING & DOLS,OTHER CONTRACTORS,5902391335,1000081757
03.12.2019,CENTRAL FUNCTIONS,EASTON BEVINS LTD,900,HOME OWNERSHIP,LEGAL FEES & COURT COSTS,5902391355,1000083635
03.12.2019,CENTRAL FUNCTIONS,KIER FACILITIES SERVICES LTD,"47,952.00",LEDBURY ESTATE,OTHER CONTRACTORS,5902391485,1000040603
03.12.2019,CENTRAL FUNCTIONS,ALLPAY LTD,"1,107.87",SERVICE LEVEL AGREEMENTS,BANK CHARGES,5902391360,1000043001
03.12.2019,CENTRAL FUNCTIONS,ALLPAY LTD,"10,833.89",SERVICE LEVEL AGREEMENTS,BANK CHARGES,5902391363,1000043001
03.12.2019,CHIEF EXECUTIVE,DRAIN SCAN,"1,660.00",CAPITAL PS (REGEN),CONSTRUCTION SITE COSTS,5902391458,1908746
03.12.2019,CHIEF EXECUTIVE'S OFFICE,INTERSERVE (FACILITIES MANAGEMENT),"15,814.83",CHIEF EXEC'S OFFICE,BUILDING R&M,2103034744,3000000166
03.12.2019,CHILDREN'S SERVICES,CHARLES ZACH GOMM,"2,400.00",ADOPTION REFORM GRANT (PART B),PROFESSIONAL FEES,5902391453,1000078536
03.12.2019,CHILDREN'S SERVICES,CORAM VOICE,"22,237.00",CHILDRENS ADVOCACY & INDEPENDENT VISITOR,EXTERNAL AGENCIES AND BODIES,5902391455,1000076392
03.12.2019,CHILDREN'S SERVICES,PRIME PRODUCTION LTD,743.75,CHILDREN'S DEVELOPMENT,EXTERNAL AGENCIES AND BODIES,5902391443,1000070086
03.12.2019,CHILDREN'S SERVICES,LEARNING UNLIMITED,"1,250.00",COMMUNITY LEARNING,GRANTS,5902391429,1000068095
03.12.2019,CHILDREN'S SERVICES,ISABELLE GRAVENSTEIN T/A REVIVAL,696,MGMT & PARENTING PROG TEAM,PROFESSIONAL FEES,5902391502,1000027424
03.12.2019,CHILDREN'S SERVICES,NEWCASTLE UNIVERSITY,"9,250.00",SCHOLARSHIP SCHEME,EXTERNAL AGENCIES AND BODIES,5902391447,1000059870
03.12.2019,CHILDREN'S SERVICES,NEWCASTLE UNIVERSITY,"9,250.00",SCHOLARSHIP SCHEME,EXTERNAL AGENCIES AND BODIES,5902391452,1000059870
03.12.2019,CHILDREN'S SERVICES,IMAGO LTD,"27,819.00",YOUNG CARERS SERVICE,EXTERNAL AGENCIES AND BODIES,5902391460,1000076913
03.12.2019,COMMISSIONING & CENTRAL,HERBERT CONSULTING LIMITED,"2,800.00",C&AS SYSTEMS TEAM,PROFESSIONAL FEES,5902391338,1000062551
03.12.2019,COMMISSIONING & CENTRAL,TWO VIZ THINK LTD,690,COMMISSIONING TEAM,EXTERNAL AGENCIES AND BODIES,5902391472,1000083572
03.12.2019,CUSTOMER EXPERIENCE HGF,CIVICA UK LTD,278.78,CORONER'S,PROFESSIONAL FEES,5902391315,1730625
03.12.2019,CUSTOMER EXPERIENCE HGF,CLYDE & CO,"2,684.00",CORONER'S,PROFESSIONAL FEES,5902391321,1000067838
03.12.2019,CUSTOMER EXPERIENCE HGF,TRANSPORT TRADING LTD,"2,904,987.00",FREEDOM PASS,CONCESSIONARY FARES,5902391354,1000019757
03.12.2019,CUSTOMER EXPERIENCE HGF,JAMES MARTIN MUGWANYA T/A JOHN SMITH REMOVALS,580,HOMELESS PROJECTS,EXTERNAL AGENCIES AND BODIES,5902391367,1000078552
03.12.2019,CUSTOMER EXPERIENCE HGF,CHOICELET LTD,"1,025.00",HOMELESS PROJECTS,GRANTS,5902391440,1000081073
03.12.2019,CUSTOMER EXPERIENCE HGF,CHOICELET LTD,"1,025.00",HOMELESS PROJECTS,GRANTS,5902391449,1000081073
03.12.2019,CUSTOMER EXPERIENCE HGF,BACK ON TRACK HOUSING,"1,282.68",HOMELESS PROJECTS,GRANTS,5902391499,1000071262
03.12.2019,CUSTOMER EXPERIENCE HGF,CARIDON LANDLORD SOLUTIONS LTD,"1,299.06",HOMELESS PROJECTS,GRANTS,5902391389,1000080555
03.12.2019,CUSTOMER EXPERIENCE HGF,CHOICELET LTD,"1,300.00",HOMELESS PROJECTS,GRANTS,5902391446,1000081073
03.12.2019,CUSTOMER EXPERIENCE HGF,CHOICELET LTD,"1,300.00",HOMELESS PROJECTS,GRANTS,5902391456,1000081073
03.12.2019,CUSTOMER EXPERIENCE HGF,NATIONWIDE ACCOMMODATION,"1,120.00",NIGHTLY TA (NSC),EXTERNAL AGENCIES AND BODIES,5902391330,1000076112
03.12.2019,CUSTOMER EXPERIENCE HGF,SOUTH OF THE RIVER INVESTMENTS LTD,"14,489.21",NIGHTLY TA (NSC),EXTERNAL AGENCIES AND BODIES,5902391492,1000073638
03.12.2019,CUSTOMER EXPERIENCE HGF,CLYDE & CO,851,TRANSFERRED INQUEST,PROFESSIONAL FEES,5902391325,1000067838
03.12.2019,ENVIRONMENT AND LEISURE,CONWAY AECOM LTD,"18,243.68",CAPITAL PS (LEISURE),CONSTRUCTION SUB CONTRACT -CERTIFICATED,2103034743,3000001595
03.12.2019,ENVIRONMENT DIRECTORATE,ARVAL UK LTD,"1,897.29",CAR LEASING CTRL A/C,VEHICLE LEASING CHARGES,5902391504,1000079802
03.12.2019,ENVIRONMENT DIRECTORATE,LONDON HIRE T/A R J MOTORS,283.98,COMMERCIAL VEH CTRL A/C,VEHICLE REPAIRS & MAINTENANCE,5902391417,1000047106
03.12.2019,ENVIRONMENT DIRECTORATE,LONDON HIRE T/A R J MOTORS,302.02,COMMERCIAL VEH CTRL A/C,VEHICLE REPAIRS & MAINTENANCE,5902391410,1000047106
03.12.2019,ENVIRONMENT DIRECTORATE,LONDON HIRE T/A R J MOTORS,338.98,COMMERCIAL VEH CTRL A/C,VEHICLE REPAIRS & MAINTENANCE,5902391421,1000047106
03.12.2019,ENVIRONMENT DIRECTORATE,SHELL UK OIL PRODUCTS LTD,480.47,COMMERCIAL VEH CTRL A/C,VEHICLE FUEL,5902391463,1000081254
03.12.2019,ENVIRONMENT DIRECTORATE,SHELL UK OIL PRODUCTS LTD,658.7,COMMERCIAL VEH CTRL A/C,VEHICLE FUEL,5902391490,1000081254
03.12.2019,ENVIRONMENT DIRECTORATE,SHELL UK OIL PRODUCTS LTD,693.18,COMMERCIAL VEH CTRL A/C,VEHICLE FUEL,5902391432,1000081254
03.12.2019,ENVIRONMENT DIRECTORATE,SHELL UK OIL PRODUCTS LTD,"1,115.15",COMMERCIAL VEH CTRL A/C,VEHICLE FUEL,5902391503,1000081254
03.12.2019,ENVIRONMENT DIRECTORATE,SHELL UK OIL PRODUCTS LTD,"1,902.66",COMMERCIAL VEH CTRL A/C,VEHICLE FUEL,5902391498,1000081254
03.12.2019,ENVIRONMENT DIRECTORATE,AUTOMOTIVE LEASING,"2,892.37",COMMERCIAL VEH CTRL A/C,HIRED VEHICLES,5902391493,11014756
03.12.2019,ENVIRONMENT DIRECTORATE,UK TELEMATICS LTD,"4,735.41",COMMERCIAL VEH CTRL A/C,VEHICLE REPAIRS & MAINTENANCE,5902391479,1000081665
03.12.2019,ENVIRONMENT DIRECTORATE,FIVEWAYS MUNICIPAL VEHICLE HIRE LTD,"5,655.00",COMMERCIAL VEH CTRL A/C,HIRED VEHICLES,5902391474,1000023985
03.12.2019,ENVIRONMENT DIRECTORATE,AUTOMOTIVE LEASING,"7,367.01",COMMERCIAL VEH CTRL A/C,HIRED VEHICLES,5902391491,11014756
03.12.2019,ENVIRONMENT DIRECTORATE,LONDON HIRE LIMITED,"-1,136.50",FLEET INSURANCE WORKS,TRANSPORT INSURANCE COSTS,5902391469,1383812
03.12.2019,ENVIRONMENT DIRECTORATE,LONDON HIRE LIMITED,"11,059.02",FLEET INSURANCE WORKS,TRANSPORT INSURANCE COSTS,5902391459,1383812
03.12.2019,ENVIRONMENT DIRECTORATE,SOUTHWARK NEWSPAPER LTD,600,HIGHWAYS DEVELOPMENT,MARKETING & PUBLICITY SERVICES,5902391340,1556957
03.12.2019,ENVIRONMENT DIRECTORATE,CTC RECRUITMENT LTD,"1,977.28",NON HOUSING GROUNDS,AGENCY STAFF,5902391461,1000041410
03.12.2019,ENVIRONMENT DIRECTORATE,BEVAN BRITTAN LLP,"1,876.70",PFI PROJECT,PAYMENTS FOR LEGAL SERVICES,5902391350,1000047779
03.12.2019,ENVIRONMENT DIRECTORATE,BEVAN BRITTAN LLP,"1,897.40",PFI PROJECT,PAYMENTS FOR LEGAL SERVICES,5902391399,1000047779
03.12.2019,ENVIRONMENT DIRECTORATE,BEVAN BRITTAN LLP,"4,205.50",PFI PROJECT,PAYMENTS FOR LEGAL SERVICES,5902391512,1000047779
03.12.2019,ENVIRONMENT DIRECTORATE,E & E BUILDING SERVICES LTD,"28,214.90",SBS - HOLDING ACCOUNT,OTHER CONTRACTORS,2103034680,3000001176
03.12.2019,ENVIRONMENT DIRECTORATE,GLASDON UK LIMITED,"4,039.67",STREET CLEANING-GENERAL,MATERIALS,5902391424,1024073
03.12.2019,EXCHEQUER SERVICES,LEAFI LTD,795,ADMINISTRATIVE SUPPORT,REFRESHMENTS FOR MEETINGS,5902391318,1000083557
03.12.2019,EXCHEQUER SERVICES,ALLPAY LTD,852.88,CASHIERS SLA,BANK CHARGES,5902391356,1000043001
03.12.2019,EXCHEQUER SERVICES,ALLPAY LTD,"4,138.85",CASHIERS SLA,BANK CHARGES,5902391357,1000043001
03.12.2019,FINANCE DIRECTOR,BDO LLP,"22,005.00",INTERNAL AUDIT CONTRACTS,PAYMENTS FOR FINANCIAL SERVICES,5902391359,1000057898
03.12.2019,HOUSING,OCO LIMITED,"138,474.12",PAYMENTS CONTROL ACCOUNT - OCO,I-WORLD CONTRACTORS HOLDING ACCOUNT,5902391352,1006066
03.12.2019,HOUSING,SMITH & BYFORD LTD,"113,765.56",SMITH AND BYFORD,I-WORLD CONTRACTORS HOLDING ACCOUNT,5902391353,11212119
03.12.2019,HOUSING GENERAL FUND,STANNAH LIFT SERVICES LTD,515,CAPITAL PS (HOUSING GF),CAPITAL GRANTS,5902391362,1063595
03.12.2019,HOUSING GENERAL FUND,LIBRA CONSTRUCTION SERVICES LTD,"47,109.54",CAPITAL PS (REGEN),CONSTRUCTION MAIN CONTRACT,2103034745,3000000875
03.12.2019,HOUSING HRA,BUILDTRUST LTD,"5,228.07",CAPITAL PS (HRA),CONST'N MAIN CONTRACT - NON CERTIFICATED,2103034742,3000002010
03.12.2019,HOUSING HRA,C&C BUILDERS LTD,"8,349.78",CAPITAL PS (HRA),CONST'N MAIN CONTRACT - NON CERTIFICATED,2103034741,3000001986
03.12.2019,HOUSING HRA,LEVITT BERNSTEIN ASSOCIATION LIMITED,"81,356.65",CAPITAL PS (HRA),CONSTRUCTION FEES  - EXTERNAL,5902391423,1000036622
03.12.2019,LEISURE DIRECTORATE,P D CONSTRUCTION LTD,"1,414.00",BMX BIKE TRACK,OTHER R&M,5902391468,1000000390
03.12.2019,MODERNISATION HGF,ROYAL MAIL GROUP LTD,"3,286.30",160 TOOLEY ST.,POSTAGES,5902391339,1000008168
03.12.2019,MODERNISATION HGF,LEE HECHT HARRISON PENNA LTD,"2,200.00",NON RECHARGEABLE COSTS,PROFESSIONAL FEES,5902391324,1000079813
03.12.2019,PLANNING AND TRANSPORT,LAND USE CONSULTANTS LTD,985,STRATEGIC APPLICATIONS,PROFESSIONAL FEES,5902391397,11132526
03.12.2019,PLANNING AND TRANSPORT,LAND USE CONSULTANTS LTD,"1,652.50",STRATEGIC APPLICATIONS,PROFESSIONAL FEES,5902391342,11132526
03.12.2019,REGENERATION,RICS BUSINESS SERVICES LTD,"2,894.25",CAPITAL PROJECTS - M & A,TRAINING,5902391224,1000015523
03.12.2019,REGENERATION,RICS BUSINESS SERVICES LTD,964.75,REGENERATION SOUTH - M & A,TRAINING,5902391224,1000015523
03.12.2019,REGENERATION,UK POWER NETWORKS (OPERATIONS) LTD,"4,874.93",SITES - PHASE 1,PROFESSIONAL FEES,5902391326,1000016085
03.12.2019,RESIDENT SERVICES,VIBRANT ENERGY MATTERS LTD,"1,805.60",ENERGY MANAGEMENT,PROFESSIONAL FEES,5902391365,1000068154
04.12.2019,ADULT SOCIAL CARE,SAMANTHA JONES,300,DIR OF ASC,LEGAL FEES & COURT COSTS,2103035862,1000083044
04.12.2019,ADULT SOCIAL CARE,STEPHANIE DAVID,450,DIR OF ASC,LEGAL FEES & COURT COSTS,2103035869,1000082523
04.12.2019,ADULT SOCIAL CARE,BEVAN BRITTAN LLP,557.8,DIR OF ASC,LEGAL FEES & COURT COSTS,2103035763,1000047779
04.12.2019,ADULT SOCIAL CARE,BEVAN BRITTAN LLP,617.1,DIR OF ASC,LEGAL FEES & COURT COSTS,2103035764,1000047779
04.12.2019,ADULT SOCIAL CARE,HILTON HARROP-GRIFFITHS,650,DIR OF ASC,LEGAL FEES & COURT COSTS,2103035804,1000008766
04.12.2019,ADULT SOCIAL CARE,MATT LEWIN,650,DIR OF ASC,LEGAL FEES & COURT COSTS,2103035842,1000074773
04.12.2019,ADULT SOCIAL CARE,RUNWOOD HOMES LTD (CAROLYNE HOUSE),858.28,DIR OF ASC,PROFESSIONAL FEES,2103036626,1000070683
04.12.2019,ADULT SOCIAL CARE,PEGGY ETIEBET,900,DIR OF ASC,LEGAL FEES & COURT COSTS,2103035849,1000057487
04.12.2019,ADULT SOCIAL CARE,BROADWAY THEATRE,795.83,FAMILY LINK,EXTERNAL AGENCIES AND BODIES,5902391511,1000029470
04.12.2019,ADULT SOCIAL CARE,VIVIENNE SEDGLEY,944.17,MH PREMISES COSTS,LEGAL FEES & COURT COSTS,2103035878,1000082071
04.12.2019,ADULT SOCIAL CARE,RUNWOOD HOMES LTD (CAROLYNE HOUSE),"-1,153.35",OP CARE PACKAGES,NURSING PLACEMENTS FEES,2102213724,1000070683
04.12.2019,ADULT SOCIAL CARE,RUNWOOD HOMES LTD (CAROLYNE HOUSE),295.07,OP CARE PACKAGES,"MAND STATUTORY CHARGES, NURSING",2102213725,1000070683
04.12.2019,ADULT SOCIAL CARE,LUCAS CONSULT LTD,283.75,SAFEGUARDING & DOLS,EXTERNAL AGENCIES AND BODIES,5902391328,1000078082
04.12.2019,CENTRAL FUNCTIONS,SHERCURITY LTD,"3,360.00",COMMERCIAL PROPERTIES,LEGAL FEES & COURT COSTS,2103035865,1000067090
04.12.2019,CENTRAL FUNCTIONS,SHERCURITY LTD,"3,360.00",COMMERCIAL PROPERTIES,LEGAL FEES & COURT COSTS,2103035866,1000067090
04.12.2019,CENTRAL FUNCTIONS,SHERCURITY LTD,"3,360.00",COMMERCIAL PROPERTIES,LEGAL FEES & COURT COSTS,2103035867,1000067090
04.12.2019,CENTRAL FUNCTIONS,SHERCURITY LTD,"3,360.00",COMMERCIAL PROPERTIES,LEGAL FEES & COURT COSTS,2103035868,1000067090
04.12.2019,CHIEF EXECUTIVE,FAITHFUL & GOULD,"9,605.70",CAPITAL PS (REGEN),CONSTRUCTION FEES  - EXTERNAL,5902391557,1000061390
04.12.2019,CHIEF EXECUTIVE'S OFFICE,ROCK GROVE WAY SHELTERED HOUSING,650,MEMBERS EXPENSES,HIRE OF ROOMS/HALLS,5902390617,1000045134
04.12.2019,CHILDREN AND ADULT,MACE LTD,"-9,775.00",CAPITAL PS (EDUCATION),CONSTRUCTION,5902391849,1000067959
04.12.2019,CHILDREN AND ADULT,MACE LTD,-382.5,CAPITAL PS (EDUCATION),CONSTRUCTION,5902391850,1000067959
04.12.2019,CHILDREN AND ADULT,MACE LTD,382.5,CAPITAL PS (EDUCATION),CONSTRUCTION,5902253526,1000067959
04.12.2019,CHILDREN AND ADULT,MACE LTD,"9,775.00",CAPITAL PS (EDUCATION),CONSTRUCTION,5902253491,1000067959
04.12.2019,CHILDREN'S SERVICES,REDACTED PERSONAL DATA,251.12,ADOPTION PLACEMENTS & INTER AGENCY,PAYMENTS TO CARERS,REDACTED,REDACTED
04.12.2019,CHILDREN'S SERVICES,REDACTED PERSONAL DATA,251.94,ADOPTION PLACEMENTS & INTER AGENCY,PAYMENTS TO CARERS,REDACTED,REDACTED
04.12.2019,CHILDREN'S SERVICES,REDACTED PERSONAL DATA,252.9,ADOPTION PLACEMENTS & INTER AGENCY,PAYMENTS TO CARERS,REDACTED,REDACTED
04.12.2019,CHILDREN'S SERVICES,REDACTED PERSONAL DATA,253.56,ADOPTION PLACEMENTS & INTER AGENCY,PAYMENTS TO CARERS,REDACTED,REDACTED
04.12.2019,CHILDREN'S SERVICES,REDACTED PERSONAL DATA,255.22,ADOPTION PLACEMENTS & INTER AGENCY,PAYMENTS TO CARERS,REDACTED,REDACTED
04.12.2019,CHILDREN'S SERVICES,REDACTED PERSONAL DATA,255.22,ADOPTION PLACEMENTS & INTER AGENCY,PAYMENTS TO CARERS,REDACTED,REDACTED
04.12.2019,CHILDREN'S SERVICES,REDACTED PERSONAL DATA,269.22,ADOPTION PLACEMENTS & INTER AGENCY,PAYMENTS TO CARERS,REDACTED,REDACTED
04.12.2019,CHILDREN'S SERVICES,REDACTED PERSONAL DATA,278.54,ADOPTION PLACEMENTS & INTER AGENCY,PAYMENTS TO CARERS,REDACTED,REDACTED
04.12.2019,CHILDREN'S SERVICES,REDACTED PERSONAL DATA,279.26,ADOPTION PLACEMENTS & INTER AGENCY,PAYMENTS TO CARERS,REDACTED,REDACTED
04.12.2019,CHILDREN'S SERVICES,REDACTED PERSONAL DATA,282.76,ADOPTION PLACEMENTS & INTER AGENCY,PAYMENTS TO CARERS,REDACTED,REDACTED
04.12.2019,CHILDREN'S SERVICES,REDACTED PERSONAL DATA,293.98,ADOPTION PLACEMENTS & INTER AGENCY,PAYMENTS TO CARERS,REDACTED,REDACTED
04.12.2019,CHILDREN'S SERVICES,REDACTED PERSONAL DATA,304.64,ADOPTION PLACEMENTS & INTER AGENCY,PAYMENTS TO CARERS,REDACTED,REDACTED
04.12.2019,CHILDREN'S SERVICES,REDACTED PERSONAL DATA,319.36,ADOPTION PLACEMENTS & INTER AGENCY,PAYMENTS TO CARERS,REDACTED,REDACTED
04.12.2019,CHILDREN'S SERVICES,REDACTED PERSONAL DATA,359.44,ADOPTION PLACEMENTS & INTER AGENCY,PAYMENTS TO CARERS,REDACTED,REDACTED
04.12.2019,CHILDREN'S SERVICES,REDACTED PERSONAL DATA,359.44,ADOPTION PLACEMENTS & INTER AGENCY,PAYMENTS TO CARERS,REDACTED,REDACTED
04.12.2019,CHILDREN'S SERVICES,REDACTED PERSONAL DATA,368.52,ADOPTION PLACEMENTS & INTER AGENCY,PAYMENTS TO CARERS,REDACTED,REDACTED
04.12.2019,CHILDREN'S SERVICES,REDACTED PERSONAL DATA,369.16,ADOPTION PLACEMENTS & INTER AGENCY,PAYMENTS TO CARERS,REDACTED,REDACTED
04.12.2019,CHILDREN'S SERVICES,REDACTED PERSONAL DATA,375.54,ADOPTION PLACEMENTS & INTER AGENCY,PAYMENTS TO CARERS,REDACTED,REDACTED
04.12.2019,CHILDREN'S SERVICES,REDACTED PERSONAL DATA,375.54,ADOPTION PLACEMENTS & INTER AGENCY,PAYMENTS TO CARERS,REDACTED,REDACTED
04.12.2019,CHILDREN'S SERVICES,REDACTED PERSONAL DATA,375.54,ADOPTION PLACEMENTS & INTER AGENCY,PAYMENTS TO CARERS,REDACTED,REDACTED
04.12.2019,CHILDREN'S SERVICES,REDACTED PERSONAL DATA,375.54,ADOPTION PLACEMENTS & INTER AGENCY,PAYMENTS TO CARERS,REDACTED,REDACTED
04.12.2019,CHILDREN'S SERVICES,REDACTED PERSONAL DATA,375.54,ADOPTION PLACEMENTS & INTER AGENCY,PAYMENTS TO CARERS,REDACTED,REDACTED
04.12.2019,CHILDREN'S SERVICES,REDACTED PERSONAL DATA,375.54,ADOPTION PLACEMENTS & INTER AGENCY,PAYMENTS TO CARERS,REDACTED,REDACTED
04.12.2019,CHILDREN'S SERVICES,REDACTED PERSONAL DATA,375.54,ADOPTION PLACEMENTS & INTER AGENCY,PAYMENTS TO CARERS,REDACTED,REDACTED
04.12.2019,CHILDREN'S SERVICES,REDACTED PERSONAL DATA,375.54,ADOPTION PLACEMENTS & INTER AGENCY,PAYMENTS TO CARERS,REDACTED,REDACTED
04.12.2019,CHILDREN'S SERVICES,REDACTED PERSONAL DATA,382.3,ADOPTION PLACEMENTS & INTER AGENCY,PAYMENTS TO CARERS,REDACTED,REDACTED
04.12.2019,CHILDREN'S SERVICES,REDACTED PERSONAL DATA,382.3,ADOPTION PLACEMENTS & INTER AGENCY,PAYMENTS TO CARERS,REDACTED,REDACTED
04.12.2019,CHILDREN'S SERVICES,REDACTED PERSONAL DATA,382.3,ADOPTION PLACEMENTS & INTER AGENCY,PAYMENTS TO CARERS,REDACTED,REDACTED
04.12.2019,CHILDREN'S SERVICES,REDACTED PERSONAL DATA,382.3,ADOPTION PLACEMENTS & INTER AGENCY,PAYMENTS TO CARERS,REDACTED,REDACTED
04.12.2019,CHILDREN'S SERVICES,REDACTED PERSONAL DATA,386,ADOPTION PLACEMENTS & INTER AGENCY,PAYMENTS TO CARERS,REDACTED,REDACTED
04.12.2019,CHILDREN'S SERVICES,REDACTED PERSONAL DATA,386,ADOPTION PLACEMENTS & INTER AGENCY,PAYMENTS TO CARERS,REDACTED,REDACTED
04.12.2019,CHILDREN'S SERVICES,REDACTED PERSONAL DATA,400.18,ADOPTION PLACEMENTS & INTER AGENCY,PAYMENTS TO CARERS,REDACTED,REDACTED
04.12.2019,CHILDREN'S SERVICES,REDACTED PERSONAL DATA,400.84,ADOPTION PLACEMENTS & INTER AGENCY,PAYMENTS TO CARERS,REDACTED,REDACTED
04.12.2019,CHILDREN'S SERVICES,REDACTED PERSONAL DATA,400.84,ADOPTION PLACEMENTS & INTER AGENCY,PAYMENTS TO CARERS,REDACTED,REDACTED
04.12.2019,CHILDREN'S SERVICES,REDACTED PERSONAL DATA,400.84,ADOPTION PLACEMENTS & INTER AGENCY,PAYMENTS TO CARERS,REDACTED,REDACTED
04.12.2019,CHILDREN'S SERVICES,REDACTED PERSONAL DATA,404.46,ADOPTION PLACEMENTS & INTER AGENCY,PAYMENTS TO CARERS,REDACTED,REDACTED
04.12.2019,CHILDREN'S SERVICES,REDACTED PERSONAL DATA,451.8,ADOPTION PLACEMENTS & INTER AGENCY,PAYMENTS TO CARERS,REDACTED,REDACTED
04.12.2019,CHILDREN'S SERVICES,REDACTED PERSONAL DATA,457.14,ADOPTION PLACEMENTS & INTER AGENCY,PAYMENTS TO CARERS,REDACTED,REDACTED
04.12.2019,CHILDREN'S SERVICES,REDACTED PERSONAL DATA,465.48,ADOPTION PLACEMENTS & INTER AGENCY,PAYMENTS TO CARERS,REDACTED,REDACTED
04.12.2019,CHILDREN'S SERVICES,REDACTED PERSONAL DATA,465.52,ADOPTION PLACEMENTS & INTER AGENCY,PAYMENTS TO CARERS,REDACTED,REDACTED
04.12.2019,CHILDREN'S SERVICES,REDACTED PERSONAL DATA,465.54,ADOPTION PLACEMENTS & INTER AGENCY,PAYMENTS TO CARERS,REDACTED,REDACTED
04.12.2019,CHILDREN'S SERVICES,REDACTED PERSONAL DATA,465.54,ADOPTION PLACEMENTS & INTER AGENCY,PAYMENTS TO CARERS,REDACTED,REDACTED
04.12.2019,CHILDREN'S SERVICES,REDACTED PERSONAL DATA,465.54,ADOPTION PLACEMENTS & INTER AGENCY,PAYMENTS TO CARERS,REDACTED,REDACTED
04.12.2019,CHILDREN'S SERVICES,REDACTED PERSONAL DATA,465.54,ADOPTION PLACEMENTS & INTER AGENCY,PAYMENTS TO CARERS,REDACTED,REDACTED
04.12.2019,CHILDREN'S SERVICES,REDACTED PERSONAL DATA,484.92,ADOPTION PLACEMENTS & INTER AGENCY,PAYMENTS TO CARERS,REDACTED,REDACTED
04.12.2019,CHILDREN'S SERVICES,REDACTED PERSONAL DATA,485.22,ADOPTION PLACEMENTS & INTER AGENCY,PAYMENTS TO CARERS,REDACTED,REDACTED
04.12.2019,CHILDREN'S SERVICES,REDACTED PERSONAL DATA,500,ADOPTION PLACEMENTS & INTER AGENCY,PAYMENTS TO CARERS,REDACTED,REDACTED
04.12.2019,CHILDREN'S SERVICES,REDACTED PERSONAL DATA,502,ADOPTION PLACEMENTS & INTER AGENCY,PAYMENTS TO CARERS,REDACTED,REDACTED
04.12.2019,CHILDREN'S SERVICES,REDACTED PERSONAL DATA,512.02,ADOPTION PLACEMENTS & INTER AGENCY,PAYMENTS TO CARERS,REDACTED,REDACTED
04.12.2019,CHILDREN'S SERVICES,REDACTED PERSONAL DATA,530,ADOPTION PLACEMENTS & INTER AGENCY,PAYMENTS TO CARERS,REDACTED,REDACTED
04.12.2019,CHILDREN'S SERVICES,REDACTED PERSONAL DATA,559.06,ADOPTION PLACEMENTS & INTER AGENCY,PAYMENTS TO CARERS,REDACTED,REDACTED
04.12.2019,CHILDREN'S SERVICES,REDACTED PERSONAL DATA,588.42,ADOPTION PLACEMENTS & INTER AGENCY,PAYMENTS TO CARERS,REDACTED,REDACTED
04.12.2019,CHILDREN'S SERVICES,REDACTED PERSONAL DATA,596.93,ADOPTION PLACEMENTS & INTER AGENCY,PAYMENTS TO CARERS,REDACTED,REDACTED
04.12.2019,CHILDREN'S SERVICES,REDACTED PERSONAL DATA,623.94,ADOPTION PLACEMENTS & INTER AGENCY,PAYMENTS TO CARERS,REDACTED,REDACTED
04.12.2019,CHILDREN'S SERVICES,REDACTED PERSONAL DATA,635.34,ADOPTION PLACEMENTS & INTER AGENCY,PAYMENTS TO CARERS,REDACTED,REDACTED
04.12.2019,CHILDREN'S SERVICES,REDACTED PERSONAL DATA,640.9,ADOPTION PLACEMENTS & INTER AGENCY,PAYMENTS TO CARERS,REDACTED,REDACTED
04.12.2019,CHILDREN'S SERVICES,REDACTED PERSONAL DATA,652.9,ADOPTION PLACEMENTS & INTER AGENCY,PAYMENTS TO CARERS,REDACTED,REDACTED
04.12.2019,CHILDREN'S SERVICES,REDACTED PERSONAL DATA,652.9,ADOPTION PLACEMENTS & INTER AGENCY,PAYMENTS TO CARERS,REDACTED,REDACTED
04.12.2019,CHILDREN'S SERVICES,REDACTED PERSONAL DATA,653.06,ADOPTION PLACEMENTS & INTER AGENCY,PAYMENTS TO CARERS,REDACTED,REDACTED
04.12.2019,CHILDREN'S SERVICES,REDACTED PERSONAL DATA,682.3,ADOPTION PLACEMENTS & INTER AGENCY,PAYMENTS TO CARERS,REDACTED,REDACTED
04.12.2019,CHILDREN'S SERVICES,REDACTED PERSONAL DATA,682.3,ADOPTION PLACEMENTS & INTER AGENCY,PAYMENTS TO CARERS,REDACTED,REDACTED
04.12.2019,CHILDREN'S SERVICES,REDACTED PERSONAL DATA,695.04,ADOPTION PLACEMENTS & INTER AGENCY,PAYMENTS TO CARERS,REDACTED,REDACTED
04.12.2019,CHILDREN'S SERVICES,REDACTED PERSONAL DATA,695.12,ADOPTION PLACEMENTS & INTER AGENCY,PAYMENTS TO CARERS,REDACTED,REDACTED
04.12.2019,CHILDREN'S SERVICES,REDACTED PERSONAL DATA,705.24,ADOPTION PLACEMENTS & INTER AGENCY,PAYMENTS TO CARERS,REDACTED,REDACTED
04.12.2019,CHILDREN'S SERVICES,REDACTED PERSONAL DATA,712.3,ADOPTION PLACEMENTS & INTER AGENCY,PAYMENTS TO CARERS,REDACTED,REDACTED
04.12.2019,CHILDREN'S SERVICES,REDACTED PERSONAL DATA,717.14,ADOPTION PLACEMENTS & INTER AGENCY,PAYMENTS TO CARERS,REDACTED,REDACTED
04.12.2019,CHILDREN'S SERVICES,REDACTED PERSONAL DATA,738.32,ADOPTION PLACEMENTS & INTER AGENCY,PAYMENTS TO CARERS,REDACTED,REDACTED
04.12.2019,CHILDREN'S SERVICES,REDACTED PERSONAL DATA,767.68,ADOPTION PLACEMENTS & INTER AGENCY,PAYMENTS TO CARERS,REDACTED,REDACTED
04.12.2019,CHILDREN'S SERVICES,REDACTED PERSONAL DATA,777.36,ADOPTION PLACEMENTS & INTER AGENCY,PAYMENTS TO CARERS,REDACTED,REDACTED
04.12.2019,CHILDREN'S SERVICES,REDACTED PERSONAL DATA,854.28,ADOPTION PLACEMENTS & INTER AGENCY,PAYMENTS TO CARERS,REDACTED,REDACTED
04.12.2019,CHILDREN'S SERVICES,REDACTED PERSONAL DATA,908,ADOPTION PLACEMENTS & INTER AGENCY,PAYMENTS TO CARERS,REDACTED,REDACTED
04.12.2019,CHILDREN'S SERVICES,REDACTED PERSONAL DATA,"1,053.20",ADOPTION PLACEMENTS & INTER AGENCY,PAYMENTS TO CARERS,REDACTED,REDACTED
04.12.2019,CHILDREN'S SERVICES,ZENITH CARS LTD,275,AIS - PRAC GRP C SET7-9,OTHER PAYMENTS FOR CLIENTS,5902391679,1000070570
04.12.2019,CHILDREN'S SERVICES,WINCHMORE TUTORS LTD,"-1,560.00",ALTERNATIVE PROVISION,EXTERNAL AGENCIES AND BODIES,5902386162,1000075298
04.12.2019,CHILDREN'S SERVICES,WINCHMORE TUTORS LTD,"-1,470.00",ALTERNATIVE PROVISION,EXTERNAL AGENCIES AND BODIES,5902386170,1000075298
04.12.2019,CHILDREN'S SERVICES,WINCHMORE TUTORS LTD,"-1,340.00",ALTERNATIVE PROVISION,EXTERNAL AGENCIES AND BODIES,5902380151,1000075298
04.12.2019,CHILDREN'S SERVICES,WINCHMORE TUTORS LTD,"-1,130.00",ALTERNATIVE PROVISION,EXTERNAL AGENCIES AND BODIES,5902380158,1000075298
04.12.2019,CHILDREN'S SERVICES,WINCHMORE TUTORS LTD,"-1,020.00",ALTERNATIVE PROVISION,EXTERNAL AGENCIES AND BODIES,5902380177,1000075298
04.12.2019,CHILDREN'S SERVICES,WINCHMORE TUTORS LTD,-840,ALTERNATIVE PROVISION,EXTERNAL AGENCIES AND BODIES,5902386167,1000075298
04.12.2019,CHILDREN'S SERVICES,WINCHMORE TUTORS LTD,-800,ALTERNATIVE PROVISION,EXTERNAL AGENCIES AND BODIES,5902384591,1000075298
04.12.2019,CHILDREN'S SERVICES,WINCHMORE TUTORS LTD,-800,ALTERNATIVE PROVISION,EXTERNAL AGENCIES AND BODIES,5902386174,1000075298
04.12.2019,CHILDREN'S SERVICES,WINCHMORE TUTORS LTD,-720,ALTERNATIVE PROVISION,EXTERNAL AGENCIES AND BODIES,5902386154,1000075298
04.12.2019,CHILDREN'S SERVICES,WINCHMORE TUTORS LTD,-720,ALTERNATIVE PROVISION,EXTERNAL AGENCIES AND BODIES,5902386179,1000075298
04.12.2019,CHILDREN'S SERVICES,WINCHMORE TUTORS LTD,-660,ALTERNATIVE PROVISION,EXTERNAL AGENCIES AND BODIES,5902386211,1000075298
04.12.2019,CHILDREN'S SERVICES,WINCHMORE TUTORS LTD,-550,ALTERNATIVE PROVISION,EXTERNAL AGENCIES AND BODIES,5902380153,1000075298
04.12.2019,CHILDREN'S SERVICES,WINCHMORE TUTORS LTD,-540,ALTERNATIVE PROVISION,EXTERNAL AGENCIES AND BODIES,5902380169,1000075298
04.12.2019,CHILDREN'S SERVICES,WINCHMORE TUTORS LTD,-480,ALTERNATIVE PROVISION,EXTERNAL AGENCIES AND BODIES,5902386172,1000075298
04.12.2019,CHILDREN'S SERVICES,WINCHMORE TUTORS LTD,-440,ALTERNATIVE PROVISION,EXTERNAL AGENCIES AND BODIES,5902380180,1000075298
04.12.2019,CHILDREN'S SERVICES,WINCHMORE TUTORS LTD,-400,ALTERNATIVE PROVISION,EXTERNAL AGENCIES AND BODIES,5902384600,1000075298
04.12.2019,CHILDREN'S SERVICES,WINCHMORE TUTORS LTD,-260,ALTERNATIVE PROVISION,EXTERNAL AGENCIES AND BODIES,5902386220,1000075298
04.12.2019,CHILDREN'S SERVICES,WINCHMORE TUTORS LTD,640,ALTERNATIVE PROVISION,EXTERNAL AGENCIES AND BODIES,5902388631,1000075298
04.12.2019,CHILDREN'S SERVICES,WINCHMORE TUTORS LTD,640,ALTERNATIVE PROVISION,EXTERNAL AGENCIES AND BODIES,5902391661,1000075298
04.12.2019,CHILDREN'S SERVICES,WINCHMORE TUTORS LTD,"1,300.00",ALTERNATIVE PROVISION,EXTERNAL AGENCIES AND BODIES,5902384882,1000075298
04.12.2019,CHILDREN'S SERVICES,WINCHMORE TUTORS LTD,"1,360.00",ALTERNATIVE PROVISION,EXTERNAL AGENCIES AND BODIES,5902384881,1000075298
04.12.2019,CHILDREN'S SERVICES,WINCHMORE TUTORS LTD,"1,800.00",ALTERNATIVE PROVISION,EXTERNAL AGENCIES AND BODIES,5902384884,1000075298
04.12.2019,CHILDREN'S SERVICES,WINCHMORE TUTORS LTD,"2,060.00",ALTERNATIVE PROVISION,EXTERNAL AGENCIES AND BODIES,5902388630,1000075298
04.12.2019,CHILDREN'S SERVICES,THE COMPLETE WORKS INDEPENDENT SCHOOL,"2,124.00",ALTERNATIVE PROVISION,EXTERNAL AGENCIES AND BODIES,5902391545,1000033256
04.12.2019,CHILDREN'S SERVICES,WINCHMORE TUTORS LTD,"2,400.00",ALTERNATIVE PROVISION,EXTERNAL AGENCIES AND BODIES,5902391550,1000075298
04.12.2019,CHILDREN'S SERVICES,WINCHMORE TUTORS LTD,"2,400.00",ALTERNATIVE PROVISION,EXTERNAL AGENCIES AND BODIES,5902391552,1000075298
04.12.2019,CHILDREN'S SERVICES,WINCHMORE TUTORS LTD,"2,400.00",ALTERNATIVE PROVISION,EXTERNAL AGENCIES AND BODIES,5902391553,1000075298
04.12.2019,CHILDREN'S SERVICES,WINCHMORE TUTORS LTD,"2,400.00",ALTERNATIVE PROVISION,EXTERNAL AGENCIES AND BODIES,5902391662,1000075298
04.12.2019,CHILDREN'S SERVICES,THE COMPLETE WORKS INDEPENDENT SCHOOL,"3,075.00",ALTERNATIVE PROVISION,EXTERNAL AGENCIES AND BODIES,5902391549,1000033256
04.12.2019,CHILDREN'S SERVICES,PHOENIXPLACE,"6,528.00",ALTERNATIVE PROVISION,EXTERNAL AGENCIES AND BODIES,5902391623,1000075565
04.12.2019,CHILDREN'S SERVICES,ANN BERNADT NURSERY SCHOOL,"6,654.00",ANN BERNADT (SUMNER),EARLY YEARS - 3 AND 4 YEAR OLDS,2103035736,5001000085
04.12.2019,CHILDREN'S SERVICES,ISABELLE GRAVENSTEIN T/A REVIVAL,696,CENTRAL SUPPORT,OTHER PAYMENTS FOR CLIENTS,5902391555,1000027424
04.12.2019,CHILDREN'S SERVICES,DR BRADLEY MANN,591.6,CLINICAL SERVICE,EXTERNAL AGENCIES AND BODIES,2103035788,1000066750
04.12.2019,CHILDREN'S SERVICES,CITY & GUILDS,381.6,DIRECT DELIVERY,MATERIALS,5902391648,1000011217
04.12.2019,CHILDREN'S SERVICES,CITY & GUILDS,447.3,DIRECT DELIVERY,MATERIALS,5902391644,1000011217
04.12.2019,CHILDREN'S SERVICES,REDACTED PERSONAL DATA,-850,DISABILITY & HIV,PAYMENTS TO CARERS,REDACTED,REDACTED
04.12.2019,CHILDREN'S SERVICES,REDACTED PERSONAL DATA,-680,DISABILITY & HIV,PAYMENTS TO CARERS,REDACTED,REDACTED
04.12.2019,CHILDREN'S SERVICES,REDACTED PERSONAL DATA,-395,DISABILITY & HIV,PAYMENTS TO CARERS,REDACTED,REDACTED
04.12.2019,CHILDREN'S SERVICES,REDACTED PERSONAL DATA,-292.86,DISABILITY & HIV,PAYMENTS TO CARERS,REDACTED,REDACTED
04.12.2019,CHILDREN'S SERVICES,REDACTED PERSONAL DATA,-287.89,DISABILITY & HIV,PAYMENTS TO CARERS,REDACTED,REDACTED
04.12.2019,CHILDREN'S SERVICES,REDACTED PERSONAL DATA,300,DISABILITY & HIV,ADDITIONAL PAYMENTS TO AGENCIES/CARERS,REDACTED,REDACTED
04.12.2019,CHILDREN'S SERVICES,REDACTED PERSONAL DATA,300,DISABILITY & HIV,ADDITIONAL PAYMENTS TO AGENCIES/CARERS,REDACTED,REDACTED
04.12.2019,CHILDREN'S SERVICES,REDACTED PERSONAL DATA,300,DISABILITY & HIV,ADDITIONAL PAYMENTS TO AGENCIES/CARERS,REDACTED,REDACTED
04.12.2019,CHILDREN'S SERVICES,REDACTED PERSONAL DATA,300,DISABILITY & HIV,ADDITIONAL PAYMENTS TO AGENCIES/CARERS,REDACTED,REDACTED
04.12.2019,CHILDREN'S SERVICES,REDACTED PERSONAL DATA,300,DISABILITY & HIV,ADDITIONAL PAYMENTS TO AGENCIES/CARERS,REDACTED,REDACTED
04.12.2019,CHILDREN'S SERVICES,REDACTED PERSONAL DATA,300,DISABILITY & HIV,ADDITIONAL PAYMENTS TO AGENCIES/CARERS,REDACTED,REDACTED
04.12.2019,CHILDREN'S SERVICES,REDACTED PERSONAL DATA,300,DISABILITY & HIV,ADDITIONAL PAYMENTS TO AGENCIES/CARERS,REDACTED,REDACTED
04.12.2019,CHILDREN'S SERVICES,REDACTED PERSONAL DATA,300,DISABILITY & HIV,ADDITIONAL PAYMENTS TO AGENCIES/CARERS,REDACTED,REDACTED
04.12.2019,CHILDREN'S SERVICES,REDACTED PERSONAL DATA,300,DISABILITY & HIV,ADDITIONAL PAYMENTS TO AGENCIES/CARERS,REDACTED,REDACTED
04.12.2019,CHILDREN'S SERVICES,REDACTED PERSONAL DATA,300,DISABILITY & HIV,ADDITIONAL PAYMENTS TO AGENCIES/CARERS,REDACTED,REDACTED
04.12.2019,CHILDREN'S SERVICES,REDACTED PERSONAL DATA,300,DISABILITY & HIV,ADDITIONAL PAYMENTS TO AGENCIES/CARERS,REDACTED,REDACTED
04.12.2019,CHILDREN'S SERVICES,REDACTED PERSONAL DATA,300,DISABILITY & HIV,ADDITIONAL PAYMENTS TO AGENCIES/CARERS,REDACTED,REDACTED
04.12.2019,CHILDREN'S SERVICES,REDACTED PERSONAL DATA,300,DISABILITY & HIV,ADDITIONAL PAYMENTS TO AGENCIES/CARERS,REDACTED,REDACTED
04.12.2019,CHILDREN'S SERVICES,REDACTED PERSONAL DATA,300,DISABILITY & HIV,ADDITIONAL PAYMENTS TO AGENCIES/CARERS,REDACTED,REDACTED
04.12.2019,CHILDREN'S SERVICES,REDACTED PERSONAL DATA,300,DISABILITY & HIV,OTHER PAYMENTS FOR CLIENTS,REDACTED,REDACTED
04.12.2019,CHILDREN'S SERVICES,REDACTED PERSONAL DATA,300,DISABILITY & HIV,OTHER PAYMENTS FOR CLIENTS,REDACTED,REDACTED
04.12.2019,CHILDREN'S SERVICES,REDACTED PERSONAL DATA,400,DISABILITY & HIV,COMPUTER CONSUMABLES,REDACTED,REDACTED
04.12.2019,CHILDREN'S SERVICES,REDACTED PERSONAL DATA,444,DISABILITY & HIV,PAYMENTS TO CARERS,REDACTED,REDACTED
04.12.2019,CHILDREN'S SERVICES,REDACTED PERSONAL DATA,646,DISABILITY & HIV,PAYMENTS TO CARERS,REDACTED,REDACTED
04.12.2019,CHILDREN'S SERVICES,REDACTED PERSONAL DATA,660,DISABILITY & HIV,PAYMENTS TO CARERS,REDACTED,REDACTED
04.12.2019,CHILDREN'S SERVICES,REDACTED PERSONAL DATA,676,DISABILITY & HIV,PAYMENTS TO CARERS,REDACTED,REDACTED
04.12.2019,CHILDREN'S SERVICES,REDACTED PERSONAL DATA,676,DISABILITY & HIV,PAYMENTS TO CARERS,REDACTED,REDACTED
04.12.2019,CHILDREN'S SERVICES,REDACTED PERSONAL DATA,676,DISABILITY & HIV,PAYMENTS TO CARERS,REDACTED,REDACTED
04.12.2019,CHILDREN'S SERVICES,REDACTED PERSONAL DATA,676,DISABILITY & HIV,PAYMENTS TO CARERS,REDACTED,REDACTED
04.12.2019,CHILDREN'S SERVICES,REDACTED PERSONAL DATA,676,DISABILITY & HIV,PAYMENTS TO CARERS,REDACTED,REDACTED
04.12.2019,CHILDREN'S SERVICES,REDACTED PERSONAL DATA,676,DISABILITY & HIV,PAYMENTS TO CARERS,REDACTED,REDACTED
04.12.2019,CHILDREN'S SERVICES,REDACTED PERSONAL DATA,676,DISABILITY & HIV,PAYMENTS TO CARERS,REDACTED,REDACTED
04.12.2019,CHILDREN'S SERVICES,REDACTED PERSONAL DATA,676,DISABILITY & HIV,PAYMENTS TO CARERS,REDACTED,REDACTED
04.12.2019,CHILDREN'S SERVICES,REDACTED PERSONAL DATA,676,DISABILITY & HIV,PAYMENTS TO CARERS,REDACTED,REDACTED
04.12.2019,CHILDREN'S SERVICES,REDACTED PERSONAL DATA,676,DISABILITY & HIV,PAYMENTS TO CARERS,REDACTED,REDACTED
04.12.2019,CHILDREN'S SERVICES,REDACTED PERSONAL DATA,676,DISABILITY & HIV,PAYMENTS TO CARERS,REDACTED,REDACTED
04.12.2019,CHILDREN'S SERVICES,REDACTED PERSONAL DATA,676,DISABILITY & HIV,PAYMENTS TO CARERS,REDACTED,REDACTED
04.12.2019,CHILDREN'S SERVICES,REDACTED PERSONAL DATA,676,DISABILITY & HIV,PAYMENTS TO CARERS,REDACTED,REDACTED
04.12.2019,CHILDREN'S SERVICES,REDACTED PERSONAL DATA,696,DISABILITY & HIV,PAYMENTS TO CARERS,REDACTED,REDACTED
04.12.2019,CHILDREN'S SERVICES,REDACTED PERSONAL DATA,696,DISABILITY & HIV,PAYMENTS TO CARERS,REDACTED,REDACTED
04.12.2019,CHILDREN'S SERVICES,REDACTED PERSONAL DATA,696,DISABILITY & HIV,PAYMENTS TO CARERS,REDACTED,REDACTED
04.12.2019,CHILDREN'S SERVICES,REDACTED PERSONAL DATA,712.3,DISABILITY & HIV,PAYMENTS TO CARERS,REDACTED,REDACTED
04.12.2019,CHILDREN'S SERVICES,REDACTED PERSONAL DATA,726,DISABILITY & HIV,PAYMENTS TO CARERS,REDACTED,REDACTED
04.12.2019,CHILDREN'S SERVICES,REDACTED PERSONAL DATA,726,DISABILITY & HIV,PAYMENTS TO CARERS,REDACTED,REDACTED
04.12.2019,CHILDREN'S SERVICES,REDACTED PERSONAL DATA,726,DISABILITY & HIV,PAYMENTS TO CARERS,REDACTED,REDACTED
04.12.2019,CHILDREN'S SERVICES,REDACTED PERSONAL DATA,726,DISABILITY & HIV,PAYMENTS TO CARERS,REDACTED,REDACTED
04.12.2019,CHILDREN'S SERVICES,REDACTED PERSONAL DATA,726,DISABILITY & HIV,PAYMENTS TO CARERS,REDACTED,REDACTED
04.12.2019,CHILDREN'S SERVICES,REDACTED PERSONAL DATA,726,DISABILITY & HIV,PAYMENTS TO CARERS,REDACTED,REDACTED
04.12.2019,CHILDREN'S SERVICES,REDACTED PERSONAL DATA,726,DISABILITY & HIV,PAYMENTS TO CARERS,REDACTED,REDACTED
04.12.2019,CHILDREN'S SERVICES,REDACTED PERSONAL DATA,726,DISABILITY & HIV,PAYMENTS TO CARERS,REDACTED,REDACTED
04.12.2019,CHILDREN'S SERVICES,REDACTED PERSONAL DATA,726,DISABILITY & HIV,PAYMENTS TO CARERS,REDACTED,REDACTED
04.12.2019,CHILDREN'S SERVICES,REDACTED PERSONAL DATA,726,DISABILITY & HIV,PAYMENTS TO CARERS,REDACTED,REDACTED
04.12.2019,CHILDREN'S SERVICES,REDACTED PERSONAL DATA,726,DISABILITY & HIV,PAYMENTS TO CARERS,REDACTED,REDACTED
04.12.2019,CHILDREN'S SERVICES,REDACTED PERSONAL DATA,726,DISABILITY & HIV,PAYMENTS TO CARERS,REDACTED,REDACTED
04.12.2019,CHILDREN'S SERVICES,REDACTED PERSONAL DATA,776.08,DISABILITY & HIV,PAYMENTS TO CARERS,REDACTED,REDACTED
04.12.2019,CHILDREN'S SERVICES,REDACTED PERSONAL DATA,784,DISABILITY & HIV,PAYMENTS TO CARERS,REDACTED,REDACTED
04.12.2019,CHILDREN'S SERVICES,REDACTED PERSONAL DATA,784,DISABILITY & HIV,PAYMENTS TO CARERS,REDACTED,REDACTED
04.12.2019,CHILDREN'S SERVICES,REDACTED PERSONAL DATA,790,DISABILITY & HIV,PAYMENTS TO CARERS,REDACTED,REDACTED
04.12.2019,CHILDREN'S SERVICES,REDACTED PERSONAL DATA,790,DISABILITY & HIV,PAYMENTS TO CARERS,REDACTED,REDACTED
04.12.2019,CHILDREN'S SERVICES,REDACTED PERSONAL DATA,790,DISABILITY & HIV,PAYMENTS TO CARERS,REDACTED,REDACTED
04.12.2019,CHILDREN'S SERVICES,REDACTED PERSONAL DATA,790,DISABILITY & HIV,PAYMENTS TO CARERS,REDACTED,REDACTED
04.12.2019,CHILDREN'S SERVICES,REDACTED PERSONAL DATA,790,DISABILITY & HIV,PAYMENTS TO CARERS,REDACTED,REDACTED
04.12.2019,CHILDREN'S SERVICES,REDACTED PERSONAL DATA,790,DISABILITY & HIV,PAYMENTS TO CARERS,REDACTED,REDACTED
04.12.2019,CHILDREN'S SERVICES,REDACTED PERSONAL DATA,790,DISABILITY & HIV,PAYMENTS TO CARERS,REDACTED,REDACTED
04.12.2019,CHILDREN'S SERVICES,REDACTED PERSONAL DATA,790,DISABILITY & HIV,PAYMENTS TO CARERS,REDACTED,REDACTED
04.12.2019,CHILDREN'S SERVICES,REDACTED PERSONAL DATA,790,DISABILITY & HIV,PAYMENTS TO CARERS,REDACTED,REDACTED
04.12.2019,CHILDREN'S SERVICES,REDACTED PERSONAL DATA,793.15,DISABILITY & HIV,PAYMENTS TO CARERS,REDACTED,REDACTED
04.12.2019,CHILDREN'S SERVICES,REDACTED PERSONAL DATA,814,DISABILITY & HIV,PAYMENTS TO CARERS,REDACTED,REDACTED
04.12.2019,CHILDREN'S SERVICES,REDACTED PERSONAL DATA,814,DISABILITY & HIV,PAYMENTS TO CARERS,REDACTED,REDACTED
04.12.2019,CHILDREN'S SERVICES,REDACTED PERSONAL DATA,814,DISABILITY & HIV,PAYMENTS TO CARERS,REDACTED,REDACTED
04.12.2019,CHILDREN'S SERVICES,REDACTED PERSONAL DATA,814,DISABILITY & HIV,PAYMENTS TO CARERS,REDACTED,REDACTED
04.12.2019,CHILDREN'S SERVICES,REDACTED PERSONAL DATA,814,DISABILITY & HIV,PAYMENTS TO CARERS,REDACTED,REDACTED
04.12.2019,CHILDREN'S SERVICES,REDACTED PERSONAL DATA,814,DISABILITY & HIV,PAYMENTS TO CARERS,REDACTED,REDACTED
04.12.2019,CHILDREN'S SERVICES,REDACTED PERSONAL DATA,814,DISABILITY & HIV,PAYMENTS TO CARERS,REDACTED,REDACTED
04.12.2019,CHILDREN'S SERVICES,REDACTED PERSONAL DATA,814,DISABILITY & HIV,PAYMENTS TO CARERS,REDACTED,REDACTED
04.12.2019,CHILDREN'S SERVICES,REDACTED PERSONAL DATA,814,DISABILITY & HIV,PAYMENTS TO CARERS,REDACTED,REDACTED
04.12.2019,CHILDREN'S SERVICES,REDACTED PERSONAL DATA,814,DISABILITY & HIV,PAYMENTS TO CARERS,REDACTED,REDACTED
04.12.2019,CHILDREN'S SERVICES,REDACTED PERSONAL DATA,814,DISABILITY & HIV,PAYMENTS TO CARERS,REDACTED,REDACTED
04.12.2019,CHILDREN'S SERVICES,REDACTED PERSONAL DATA,814,DISABILITY & HIV,PAYMENTS TO CARERS,REDACTED,REDACTED
04.12.2019,CHILDREN'S SERVICES,REDACTED PERSONAL DATA,814,DISABILITY & HIV,PAYMENTS TO CARERS,REDACTED,REDACTED
04.12.2019,CHILDREN'S SERVICES,REDACTED PERSONAL DATA,814,DISABILITY & HIV,PAYMENTS TO CARERS,REDACTED,REDACTED
04.12.2019,CHILDREN'S SERVICES,REDACTED PERSONAL DATA,814,DISABILITY & HIV,PAYMENTS TO CARERS,REDACTED,REDACTED
04.12.2019,CHILDREN'S SERVICES,REDACTED PERSONAL DATA,814,DISABILITY & HIV,PAYMENTS TO CARERS,REDACTED,REDACTED
04.12.2019,CHILDREN'S SERVICES,REDACTED PERSONAL DATA,814,DISABILITY & HIV,PAYMENTS TO CARERS,REDACTED,REDACTED
04.12.2019,CHILDREN'S SERVICES,REDACTED PERSONAL DATA,814,DISABILITY & HIV,PAYMENTS TO CARERS,REDACTED,REDACTED
04.12.2019,CHILDREN'S SERVICES,REDACTED PERSONAL DATA,816.14,DISABILITY & HIV,PAYMENTS TO CARERS,REDACTED,REDACTED
04.12.2019,CHILDREN'S SERVICES,REDACTED PERSONAL DATA,820,DISABILITY & HIV,PAYMENTS TO CARERS,REDACTED,REDACTED
04.12.2019,CHILDREN'S SERVICES,REDACTED PERSONAL DATA,820,DISABILITY & HIV,PAYMENTS TO CARERS,REDACTED,REDACTED
04.12.2019,CHILDREN'S SERVICES,REDACTED PERSONAL DATA,820,DISABILITY & HIV,PAYMENTS TO CARERS,REDACTED,REDACTED
04.12.2019,CHILDREN'S SERVICES,REDACTED PERSONAL DATA,820,DISABILITY & HIV,PAYMENTS TO CARERS,REDACTED,REDACTED
04.12.2019,CHILDREN'S SERVICES,REDACTED PERSONAL DATA,820,DISABILITY & HIV,PAYMENTS TO CARERS,REDACTED,REDACTED
04.12.2019,CHILDREN'S SERVICES,REDACTED PERSONAL DATA,820,DISABILITY & HIV,PAYMENTS TO CARERS,REDACTED,REDACTED
04.12.2019,CHILDREN'S SERVICES,REDACTED PERSONAL DATA,820,DISABILITY & HIV,PAYMENTS TO CARERS,REDACTED,REDACTED
04.12.2019,CHILDREN'S SERVICES,REDACTED PERSONAL DATA,820,DISABILITY & HIV,PAYMENTS TO CARERS,REDACTED,REDACTED
04.12.2019,CHILDREN'S SERVICES,REDACTED PERSONAL DATA,820,DISABILITY & HIV,PAYMENTS TO CARERS,REDACTED,REDACTED
04.12.2019,CHILDREN'S SERVICES,REDACTED PERSONAL DATA,820,DISABILITY & HIV,PAYMENTS TO CARERS,REDACTED,REDACTED
04.12.2019,CHILDREN'S SERVICES,REDACTED PERSONAL DATA,820,DISABILITY & HIV,PAYMENTS TO CARERS,REDACTED,REDACTED
04.12.2019,CHILDREN'S SERVICES,REDACTED PERSONAL DATA,820,DISABILITY & HIV,PAYMENTS TO CARERS,REDACTED,REDACTED
04.12.2019,CHILDREN'S SERVICES,REDACTED PERSONAL DATA,820,DISABILITY & HIV,PAYMENTS TO CARERS,REDACTED,REDACTED
04.12.2019,CHILDREN'S SERVICES,REDACTED PERSONAL DATA,820,DISABILITY & HIV,PAYMENTS TO CARERS,REDACTED,REDACTED
04.12.2019,CHILDREN'S SERVICES,REDACTED PERSONAL DATA,820,DISABILITY & HIV,PAYMENTS TO CARERS,REDACTED,REDACTED
04.12.2019,CHILDREN'S SERVICES,REDACTED PERSONAL DATA,820,DISABILITY & HIV,PAYMENTS TO CARERS,REDACTED,REDACTED
04.12.2019,CHILDREN'S SERVICES,REDACTED PERSONAL DATA,820,DISABILITY & HIV,PAYMENTS TO CARERS,REDACTED,REDACTED
04.12.2019,CHILDREN'S SERVICES,REDACTED PERSONAL DATA,820,DISABILITY & HIV,PAYMENTS TO CARERS,REDACTED,REDACTED
04.12.2019,CHILDREN'S SERVICES,REDACTED PERSONAL DATA,820,DISABILITY & HIV,PAYMENTS TO CARERS,REDACTED,REDACTED
04.12.2019,CHILDREN'S SERVICES,REDACTED PERSONAL DATA,820,DISABILITY & HIV,PAYMENTS TO CARERS,REDACTED,REDACTED
04.12.2019,CHILDREN'S SERVICES,REDACTED PERSONAL DATA,820,DISABILITY & HIV,PAYMENTS TO CARERS,REDACTED,REDACTED
04.12.2019,CHILDREN'S SERVICES,REDACTED PERSONAL DATA,820,DISABILITY & HIV,PAYMENTS TO CARERS,REDACTED,REDACTED
04.12.2019,CHILDREN'S SERVICES,REDACTED PERSONAL DATA,820,DISABILITY & HIV,PAYMENTS TO CARERS,REDACTED,REDACTED
04.12.2019,CHILDREN'S SERVICES,REDACTED PERSONAL DATA,820,DISABILITY & HIV,PAYMENTS TO CARERS,REDACTED,REDACTED
04.12.2019,CHILDREN'S SERVICES,REDACTED PERSONAL DATA,820,DISABILITY & HIV,PAYMENTS TO CARERS,REDACTED,REDACTED
04.12.2019,CHILDREN'S SERVICES,REDACTED PERSONAL DATA,820,DISABILITY & HIV,PAYMENTS TO CARERS,REDACTED,REDACTED
04.12.2019,CHILDREN'S SERVICES,REDACTED PERSONAL DATA,820,DISABILITY & HIV,PAYMENTS TO CARERS,REDACTED,REDACTED
04.12.2019,CHILDREN'S SERVICES,REDACTED PERSONAL DATA,820,DISABILITY & HIV,PAYMENTS TO CARERS,REDACTED,REDACTED
04.12.2019,CHILDREN'S SERVICES,REDACTED PERSONAL DATA,820,DISABILITY & HIV,PAYMENTS TO CARERS,REDACTED,REDACTED
04.12.2019,CHILDREN'S SERVICES,REDACTED PERSONAL DATA,820,DISABILITY & HIV,PAYMENTS TO CARERS,REDACTED,REDACTED
04.12.2019,CHILDREN'S SERVICES,REDACTED PERSONAL DATA,820,DISABILITY & HIV,PAYMENTS TO CARERS,REDACTED,REDACTED
04.12.2019,CHILDREN'S SERVICES,REDACTED PERSONAL DATA,820,DISABILITY & HIV,PAYMENTS TO CARERS,REDACTED,REDACTED
04.12.2019,CHILDREN'S SERVICES,REDACTED PERSONAL DATA,820,DISABILITY & HIV,PAYMENTS TO CARERS,REDACTED,REDACTED
04.12.2019,CHILDREN'S SERVICES,REDACTED PERSONAL DATA,820,DISABILITY & HIV,PAYMENTS TO CARERS,REDACTED,REDACTED
04.12.2019,CHILDREN'S SERVICES,REDACTED PERSONAL DATA,820,DISABILITY & HIV,PAYMENTS TO CARERS,REDACTED,REDACTED
04.12.2019,CHILDREN'S SERVICES,REDACTED PERSONAL DATA,820,DISABILITY & HIV,PAYMENTS TO CARERS,REDACTED,REDACTED
04.12.2019,CHILDREN'S SERVICES,REDACTED PERSONAL DATA,820,DISABILITY & HIV,PAYMENTS TO CARERS,REDACTED,REDACTED
04.12.2019,CHILDREN'S SERVICES,REDACTED PERSONAL DATA,820,DISABILITY & HIV,PAYMENTS TO CARERS,REDACTED,REDACTED
04.12.2019,CHILDREN'S SERVICES,REDACTED PERSONAL DATA,820,DISABILITY & HIV,PAYMENTS TO CARERS,REDACTED,REDACTED
04.12.2019,CHILDREN'S SERVICES,REDACTED PERSONAL DATA,820,DISABILITY & HIV,PAYMENTS TO CARERS,REDACTED,REDACTED
04.12.2019,CHILDREN'S SERVICES,REDACTED PERSONAL DATA,820,DISABILITY & HIV,PAYMENTS TO CARERS,REDACTED,REDACTED
04.12.2019,CHILDREN'S SERVICES,REDACTED PERSONAL DATA,820,DISABILITY & HIV,PAYMENTS TO CARERS,REDACTED,REDACTED
04.12.2019,CHILDREN'S SERVICES,REDACTED PERSONAL DATA,820,DISABILITY & HIV,PAYMENTS TO CARERS,REDACTED,REDACTED
04.12.2019,CHILDREN'S SERVICES,REDACTED PERSONAL DATA,820,DISABILITY & HIV,PAYMENTS TO CARERS,REDACTED,REDACTED
04.12.2019,CHILDREN'S SERVICES,REDACTED PERSONAL DATA,844,DISABILITY & HIV,PAYMENTS TO CARERS,REDACTED,REDACTED
04.12.2019,CHILDREN'S SERVICES,REDACTED PERSONAL DATA,844,DISABILITY & HIV,PAYMENTS TO CARERS,REDACTED,REDACTED
04.12.2019,CHILDREN'S SERVICES,REDACTED PERSONAL DATA,846.15,DISABILITY & HIV,PAYMENTS TO CARERS,REDACTED,REDACTED
04.12.2019,CHILDREN'S SERVICES,REDACTED PERSONAL DATA,850,DISABILITY & HIV,PAYMENTS TO CARERS,REDACTED,REDACTED
04.12.2019,CHILDREN'S SERVICES,REDACTED PERSONAL DATA,854.28,DISABILITY & HIV,PAYMENTS TO CARERS,REDACTED,REDACTED
04.12.2019,CHILDREN'S SERVICES,REDACTED PERSONAL DATA,874,DISABILITY & HIV,PAYMENTS TO CARERS,REDACTED,REDACTED
04.12.2019,CHILDREN'S SERVICES,REDACTED PERSONAL DATA,874,DISABILITY & HIV,PAYMENTS TO CARERS,REDACTED,REDACTED
04.12.2019,CHILDREN'S SERVICES,REDACTED PERSONAL DATA,874,DISABILITY & HIV,PAYMENTS TO CARERS,REDACTED,REDACTED
04.12.2019,CHILDREN'S SERVICES,REDACTED PERSONAL DATA,874,DISABILITY & HIV,PAYMENTS TO CARERS,REDACTED,REDACTED
04.12.2019,CHILDREN'S SERVICES,REDACTED PERSONAL DATA,901.42,DISABILITY & HIV,PAYMENTS TO CARERS,REDACTED,REDACTED
04.12.2019,CHILDREN'S SERVICES,REDACTED PERSONAL DATA,904,DISABILITY & HIV,PAYMENTS TO CARERS,REDACTED,REDACTED
04.12.2019,CHILDREN'S SERVICES,REDACTED PERSONAL DATA,904,DISABILITY & HIV,PAYMENTS TO CARERS,REDACTED,REDACTED
04.12.2019,CHILDREN'S SERVICES,REDACTED PERSONAL DATA,904,DISABILITY & HIV,PAYMENTS TO CARERS,REDACTED,REDACTED
04.12.2019,CHILDREN'S SERVICES,REDACTED PERSONAL DATA,904,DISABILITY & HIV,PAYMENTS TO CARERS,REDACTED,REDACTED
04.12.2019,CHILDREN'S SERVICES,REDACTED PERSONAL DATA,904,DISABILITY & HIV,PAYMENTS TO CARERS,REDACTED,REDACTED
04.12.2019,CHILDREN'S SERVICES,REDACTED PERSONAL DATA,904,DISABILITY & HIV,PAYMENTS TO CARERS,REDACTED,REDACTED
04.12.2019,CHILDREN'S SERVICES,REDACTED PERSONAL DATA,904,DISABILITY & HIV,PAYMENTS TO CARERS,REDACTED,REDACTED
04.12.2019,CHILDREN'S SERVICES,REDACTED PERSONAL DATA,904,DISABILITY & HIV,PAYMENTS TO CARERS,REDACTED,REDACTED
04.12.2019,CHILDREN'S SERVICES,REDACTED PERSONAL DATA,904,DISABILITY & HIV,PAYMENTS TO CARERS,REDACTED,REDACTED
04.12.2019,CHILDREN'S SERVICES,REDACTED PERSONAL DATA,904,DISABILITY & HIV,PAYMENTS TO CARERS,REDACTED,REDACTED
04.12.2019,CHILDREN'S SERVICES,REDACTED PERSONAL DATA,904,DISABILITY & HIV,PAYMENTS TO CARERS,REDACTED,REDACTED
04.12.2019,CHILDREN'S SERVICES,REDACTED PERSONAL DATA,904,DISABILITY & HIV,PAYMENTS TO CARERS,REDACTED,REDACTED
04.12.2019,CHILDREN'S SERVICES,REDACTED PERSONAL DATA,904,DISABILITY & HIV,PAYMENTS TO CARERS,REDACTED,REDACTED
04.12.2019,CHILDREN'S SERVICES,REDACTED PERSONAL DATA,904,DISABILITY & HIV,PAYMENTS TO CARERS,REDACTED,REDACTED
04.12.2019,CHILDREN'S SERVICES,REDACTED PERSONAL DATA,904,DISABILITY & HIV,PAYMENTS TO CARERS,REDACTED,REDACTED
04.12.2019,CHILDREN'S SERVICES,REDACTED PERSONAL DATA,904,DISABILITY & HIV,PAYMENTS TO CARERS,REDACTED,REDACTED
04.12.2019,CHILDREN'S SERVICES,REDACTED PERSONAL DATA,920,DISABILITY & HIV,PAYMENTS TO CARERS,REDACTED,REDACTED
04.12.2019,CHILDREN'S SERVICES,REDACTED PERSONAL DATA,924.2,DISABILITY & HIV,PAYMENTS TO CARERS,REDACTED,REDACTED
04.12.2019,CHILDREN'S SERVICES,REDACTED PERSONAL DATA,990,DISABILITY & HIV,PAYMENTS TO CARERS,REDACTED,REDACTED
04.12.2019,CHILDREN'S SERVICES,REDACTED PERSONAL DATA,991.42,DISABILITY & HIV,PAYMENTS TO CARERS,REDACTED,REDACTED
04.12.2019,CHILDREN'S SERVICES,REDACTED PERSONAL DATA,"1,020.00",DISABILITY & HIV,PAYMENTS TO CARERS,REDACTED,REDACTED
04.12.2019,CHILDREN'S SERVICES,REDACTED PERSONAL DATA,"1,094.60",DISABILITY & HIV,PAYMENTS TO CARERS,REDACTED,REDACTED
04.12.2019,CHILDREN'S SERVICES,REDACTED PERSONAL DATA,"1,120.00",DISABILITY & HIV,PAYMENTS TO CARERS,REDACTED,REDACTED
04.12.2019,CHILDREN'S SERVICES,REDACTED PERSONAL DATA,"1,294.60",DISABILITY & HIV,PAYMENTS TO CARERS,REDACTED,REDACTED
04.12.2019,CHILDREN'S SERVICES,REDACTED PERSONAL DATA,"1,500.00",DISABILITY & HIV,ADDITIONAL PAYMENTS TO AGENCIES/CARERS,REDACTED,REDACTED
04.12.2019,CHILDREN'S SERVICES,REDACTED PERSONAL DATA,"1,700.00",DISABILITY & HIV,PAYMENTS TO CARERS,REDACTED,REDACTED
04.12.2019,CHILDREN'S SERVICES,REDACTED PERSONAL DATA,"1,700.00",DISABILITY & HIV,PAYMENTS TO CARERS,REDACTED,REDACTED
04.12.2019,CHILDREN'S SERVICES,REDACTED PERSONAL DATA,"1,734.00",DISABILITY & HIV,PAYMENTS TO CARERS,REDACTED,REDACTED
04.12.2019,CHILDREN'S SERVICES,REDACTED PERSONAL DATA,"3,009.28",DISABILITY & HIV,PAYMENTS TO CARERS,REDACTED,REDACTED
04.12.2019,CHILDREN'S SERVICES,BLERINA TAHIRAJ-PRITCHARD,"1,368.75",FAMILY GROUP CONFERENCES,PROFESSIONAL FEES,5902391513,1000083304
04.12.2019,CHILDREN'S SERVICES,INTERPRETING DIRECT CO (UK) LTD,"1,871.00",FINANCE,TRANSLATION SERVICES,5902391607,1000070133
04.12.2019,CHILDREN'S SERVICES,INTERPRETING DIRECT CO (UK) LTD,"5,067.50",FINANCE,TRANSLATION SERVICES,5902391612,1000070133
04.12.2019,CHILDREN'S SERVICES,INTERPRETING DIRECT CO (UK) LTD,"5,413.00",FINANCE,TRANSLATION SERVICES,5902391610,1000070133
04.12.2019,CHILDREN'S SERVICES,INTERPRETING DIRECT CO (UK) LTD,"7,623.50",FINANCE,TRANSLATION SERVICES,5902391606,1000070133
04.12.2019,CHILDREN'S SERVICES,REDACTED PERSONAL DATA,298,FRIENDS & FAMILY FOSTERING,PAYMENTS TO CARERS,REDACTED,REDACTED
04.12.2019,CHILDREN'S SERVICES,REDACTED PERSONAL DATA,300,FRIENDS & FAMILY FOSTERING,ADDITIONAL PAYMENTS TO AGENCIES/CARERS,REDACTED,REDACTED
04.12.2019,CHILDREN'S SERVICES,REDACTED PERSONAL DATA,300,FRIENDS & FAMILY FOSTERING,OTHER PAYMENTS FOR CLIENTS,REDACTED,REDACTED
04.12.2019,CHILDREN'S SERVICES,REDACTED PERSONAL DATA,300,FRIENDS & FAMILY FOSTERING,OTHER PAYMENTS FOR CLIENTS,REDACTED,REDACTED
04.12.2019,CHILDREN'S SERVICES,REDACTED PERSONAL DATA,300,FRIENDS & FAMILY FOSTERING,OTHER PAYMENTS FOR CLIENTS,REDACTED,REDACTED
04.12.2019,CHILDREN'S SERVICES,REDACTED PERSONAL DATA,300,FRIENDS & FAMILY FOSTERING,OTHER PAYMENTS FOR CLIENTS,REDACTED,REDACTED
04.12.2019,CHILDREN'S SERVICES,REDACTED PERSONAL DATA,300,FRIENDS & FAMILY FOSTERING,OTHER PAYMENTS FOR CLIENTS,REDACTED,REDACTED
04.12.2019,CHILDREN'S SERVICES,REDACTED PERSONAL DATA,300,FRIENDS & FAMILY FOSTERING,OTHER PAYMENTS FOR CLIENTS,REDACTED,REDACTED
04.12.2019,CHILDREN'S SERVICES,REDACTED PERSONAL DATA,300,FRIENDS & FAMILY FOSTERING,OTHER PAYMENTS FOR CLIENTS,REDACTED,REDACTED
04.12.2019,CHILDREN'S SERVICES,REDACTED PERSONAL DATA,300,FRIENDS & FAMILY FOSTERING,OTHER PAYMENTS FOR CLIENTS,REDACTED,REDACTED
04.12.2019,CHILDREN'S SERVICES,REDACTED PERSONAL DATA,300,FRIENDS & FAMILY FOSTERING,OTHER PAYMENTS FOR CLIENTS,REDACTED,REDACTED
04.12.2019,CHILDREN'S SERVICES,REDACTED PERSONAL DATA,300,FRIENDS & FAMILY FOSTERING,OTHER PAYMENTS FOR CLIENTS,REDACTED,REDACTED
04.12.2019,CHILDREN'S SERVICES,REDACTED PERSONAL DATA,304,FRIENDS & FAMILY FOSTERING,PAYMENTS TO CARERS,REDACTED,REDACTED
04.12.2019,CHILDREN'S SERVICES,REDACTED PERSONAL DATA,304,FRIENDS & FAMILY FOSTERING,PAYMENTS TO CARERS,REDACTED,REDACTED
04.12.2019,CHILDREN'S SERVICES,REDACTED PERSONAL DATA,335.34,FRIENDS & FAMILY FOSTERING,PAYMENTS TO CARERS,REDACTED,REDACTED
04.12.2019,CHILDREN'S SERVICES,REDACTED PERSONAL DATA,336,FRIENDS & FAMILY FOSTERING,PAYMENTS TO CARERS,REDACTED,REDACTED
04.12.2019,CHILDREN'S SERVICES,REDACTED PERSONAL DATA,342,FRIENDS & FAMILY FOSTERING,PAYMENTS TO CARERS,REDACTED,REDACTED
04.12.2019,CHILDREN'S SERVICES,REDACTED PERSONAL DATA,380,FRIENDS & FAMILY FOSTERING,PAYMENTS TO CARERS,REDACTED,REDACTED
04.12.2019,CHILDREN'S SERVICES,REDACTED PERSONAL DATA,380,FRIENDS & FAMILY FOSTERING,PAYMENTS TO CARERS,REDACTED,REDACTED
04.12.2019,CHILDREN'S SERVICES,REDACTED PERSONAL DATA,380,FRIENDS & FAMILY FOSTERING,PAYMENTS TO CARERS,REDACTED,REDACTED
04.12.2019,CHILDREN'S SERVICES,REDACTED PERSONAL DATA,382.3,FRIENDS & FAMILY FOSTERING,PAYMENTS TO CARERS,REDACTED,REDACTED
04.12.2019,CHILDREN'S SERVICES,REDACTED PERSONAL DATA,386,FRIENDS & FAMILY FOSTERING,PAYMENTS TO CARERS,REDACTED,REDACTED
04.12.2019,CHILDREN'S SERVICES,REDACTED PERSONAL DATA,386,FRIENDS & FAMILY FOSTERING,PAYMENTS TO CARERS,REDACTED,REDACTED
04.12.2019,CHILDREN'S SERVICES,REDACTED PERSONAL DATA,444,FRIENDS & FAMILY FOSTERING,PAYMENTS TO CARERS,REDACTED,REDACTED
04.12.2019,CHILDREN'S SERVICES,REDACTED PERSONAL DATA,452,FRIENDS & FAMILY FOSTERING,PAYMENTS TO CARERS,REDACTED,REDACTED
04.12.2019,CHILDREN'S SERVICES,REDACTED PERSONAL DATA,452,FRIENDS & FAMILY FOSTERING,PAYMENTS TO CARERS,REDACTED,REDACTED
04.12.2019,CHILDREN'S SERVICES,REDACTED PERSONAL DATA,476.08,FRIENDS & FAMILY FOSTERING,PAYMENTS TO CARERS,REDACTED,REDACTED
04.12.2019,CHILDREN'S SERVICES,REDACTED PERSONAL DATA,600,FRIENDS & FAMILY FOSTERING,OTHER PAYMENTS FOR CLIENTS,REDACTED,REDACTED
04.12.2019,CHILDREN'S SERVICES,REDACTED PERSONAL DATA,600,FRIENDS & FAMILY FOSTERING,OTHER PAYMENTS FOR CLIENTS,REDACTED,REDACTED
04.12.2019,CHILDREN'S SERVICES,REDACTED PERSONAL DATA,646,FRIENDS & FAMILY FOSTERING,PAYMENTS TO CARERS,REDACTED,REDACTED
04.12.2019,CHILDREN'S SERVICES,REDACTED PERSONAL DATA,646,FRIENDS & FAMILY FOSTERING,PAYMENTS TO CARERS,REDACTED,REDACTED
04.12.2019,CHILDREN'S SERVICES,REDACTED PERSONAL DATA,660,FRIENDS & FAMILY FOSTERING,PAYMENTS TO CARERS,REDACTED,REDACTED
04.12.2019,CHILDREN'S SERVICES,REDACTED PERSONAL DATA,682.3,FRIENDS & FAMILY FOSTERING,PAYMENTS TO CARERS,REDACTED,REDACTED
04.12.2019,CHILDREN'S SERVICES,REDACTED PERSONAL DATA,682.3,FRIENDS & FAMILY FOSTERING,PAYMENTS TO CARERS,REDACTED,REDACTED
04.12.2019,CHILDREN'S SERVICES,REDACTED PERSONAL DATA,682.3,FRIENDS & FAMILY FOSTERING,PAYMENTS TO CARERS,REDACTED,REDACTED
04.12.2019,CHILDREN'S SERVICES,REDACTED PERSONAL DATA,682.3,FRIENDS & FAMILY FOSTERING,PAYMENTS TO CARERS,REDACTED,REDACTED
04.12.2019,CHILDREN'S SERVICES,REDACTED PERSONAL DATA,682.3,FRIENDS & FAMILY FOSTERING,PAYMENTS TO CARERS,REDACTED,REDACTED
04.12.2019,CHILDREN'S SERVICES,REDACTED PERSONAL DATA,682.3,FRIENDS & FAMILY FOSTERING,PAYMENTS TO CARERS,REDACTED,REDACTED
04.12.2019,CHILDREN'S SERVICES,REDACTED PERSONAL DATA,696,FRIENDS & FAMILY FOSTERING,PAYMENTS TO CARERS,REDACTED,REDACTED
04.12.2019,CHILDREN'S SERVICES,REDACTED PERSONAL DATA,696,FRIENDS & FAMILY FOSTERING,PAYMENTS TO CARERS,REDACTED,REDACTED
04.12.2019,CHILDREN'S SERVICES,REDACTED PERSONAL DATA,696,FRIENDS & FAMILY FOSTERING,PAYMENTS TO CARERS,REDACTED,REDACTED
04.12.2019,CHILDREN'S SERVICES,REDACTED PERSONAL DATA,696,FRIENDS & FAMILY FOSTERING,PAYMENTS TO CARERS,REDACTED,REDACTED
04.12.2019,CHILDREN'S SERVICES,REDACTED PERSONAL DATA,767.66,FRIENDS & FAMILY FOSTERING,PAYMENTS TO CARERS,REDACTED,REDACTED
04.12.2019,CHILDREN'S SERVICES,REDACTED PERSONAL DATA,776.08,FRIENDS & FAMILY FOSTERING,PAYMENTS TO CARERS,REDACTED,REDACTED
04.12.2019,CHILDREN'S SERVICES,REDACTED PERSONAL DATA,776.08,FRIENDS & FAMILY FOSTERING,PAYMENTS TO CARERS,REDACTED,REDACTED
04.12.2019,CHILDREN'S SERVICES,REDACTED PERSONAL DATA,776.08,FRIENDS & FAMILY FOSTERING,PAYMENTS TO CARERS,REDACTED,REDACTED
04.12.2019,CHILDREN'S SERVICES,REDACTED PERSONAL DATA,790,FRIENDS & FAMILY FOSTERING,PAYMENTS TO CARERS,REDACTED,REDACTED
04.12.2019,CHILDREN'S SERVICES,REDACTED PERSONAL DATA,790,FRIENDS & FAMILY FOSTERING,PAYMENTS TO CARERS,REDACTED,REDACTED
04.12.2019,CHILDREN'S SERVICES,REDACTED PERSONAL DATA,790,FRIENDS & FAMILY FOSTERING,PAYMENTS TO CARERS,REDACTED,REDACTED
04.12.2019,CHILDREN'S SERVICES,REDACTED PERSONAL DATA,790,FRIENDS & FAMILY FOSTERING,PAYMENTS TO CARERS,REDACTED,REDACTED
04.12.2019,CHILDREN'S SERVICES,REDACTED PERSONAL DATA,790,FRIENDS & FAMILY FOSTERING,PAYMENTS TO CARERS,REDACTED,REDACTED
04.12.2019,CHILDREN'S SERVICES,REDACTED PERSONAL DATA,804,FRIENDS & FAMILY FOSTERING,PAYMENTS TO CARERS,REDACTED,REDACTED
04.12.2019,CHILDREN'S SERVICES,REDACTED PERSONAL DATA,804,FRIENDS & FAMILY FOSTERING,PAYMENTS TO CARERS,REDACTED,REDACTED
04.12.2019,CHILDREN'S SERVICES,REDACTED PERSONAL DATA,820,FRIENDS & FAMILY FOSTERING,PAYMENTS TO CARERS,REDACTED,REDACTED
04.12.2019,CHILDREN'S SERVICES,REDACTED PERSONAL DATA,820,FRIENDS & FAMILY FOSTERING,PAYMENTS TO CARERS,REDACTED,REDACTED
04.12.2019,CHILDREN'S SERVICES,REDACTED PERSONAL DATA,874,FRIENDS & FAMILY FOSTERING,PAYMENTS TO CARERS,REDACTED,REDACTED
04.12.2019,CHILDREN'S SERVICES,REDACTED PERSONAL DATA,874,FRIENDS & FAMILY FOSTERING,PAYMENTS TO CARERS,REDACTED,REDACTED
04.12.2019,CHILDREN'S SERVICES,REDACTED PERSONAL DATA,"1,612.28",FRIENDS & FAMILY FOSTERING,PAYMENTS TO CARERS,REDACTED,REDACTED
04.12.2019,CHILDREN'S SERVICES,REDACTED PERSONAL DATA,"1,819.72",FRIENDS & FAMILY FOSTERING,PAYMENTS TO CARERS,REDACTED,REDACTED
04.12.2019,CHILDREN'S SERVICES,REDACTED PERSONAL DATA,400,FURTHER EDUCATION SUPPORT,OTHER PAYMENTS FOR CLIENTS,REDACTED,REDACTED
04.12.2019,CHILDREN'S SERVICES,HEBER PRIMARY SCHOOL,"1,500.00",HEBER PRIMARY SCHOOL,SCHOOLS CAPITATION,2103035745,5001000035
04.12.2019,CHILDREN'S SERVICES,ROTHERHITHE PRIMARY SCHOOL,"7,000.00",IN YEAR STATEMENTS & REORGS,SCHOOLS CAPITATION,2103035739,5001000058
04.12.2019,CHILDREN'S SERVICES,THE GROVE CHILDRENS CENTRE,"36,709.00",IN YEAR STATEMENTS & REORGS,SCHOOLS CAPITATION,2103035740,5001000090
04.12.2019,CHILDREN'S SERVICES,LAURA HIBBERD,275,LEGAL,LEGAL FEES & COURT COSTS,2103035827,1000076749
04.12.2019,CHILDREN'S SERVICES,NEIL MERCER,300,LEGAL,LEGAL FEES & COURT COSTS,2103035845,1000068906
04.12.2019,CHILDREN'S SERVICES,REDACTED PERSONAL DATA,300,LEGAL,LEGAL FEES & COURT COSTS,REDACTED,REDACTED
04.12.2019,CHILDREN'S SERVICES,ELIZABETH NARTEY,325,LEGAL,LEGAL FEES & COURT COSTS,2103035792,1000075833
04.12.2019,CHILDREN'S SERVICES,RAVINDER SAIMBHI,325,LEGAL,LEGAL FEES & COURT COSTS,2103035855,1000079836
04.12.2019,CHILDREN'S SERVICES,MELANIE NAZARETH,375,LEGAL,LEGAL FEES & COURT COSTS,2103035844,1000044248
04.12.2019,CHILDREN'S SERVICES,PHILIPPA PARRY-JONES,375,LEGAL,LEGAL FEES & COURT COSTS,2103035854,1000081285
04.12.2019,CHILDREN'S SERVICES,RAVINDER SAIMBHI,375,LEGAL,LEGAL FEES & COURT COSTS,2103035856,1000079836
04.12.2019,CHILDREN'S SERVICES,RICHARD CLOUGH,375,LEGAL,LEGAL FEES & COURT COSTS,2103035859,1000051147
04.12.2019,CHILDREN'S SERVICES,E4 LAW LTD,414,LEGAL,LEGAL FEES & COURT COSTS,2103035830,1000072222
04.12.2019,CHILDREN'S SERVICES,DAVID BANNOCKS,450,LEGAL,LEGAL FEES & COURT COSTS,2103035781,1000068951
04.12.2019,CHILDREN'S SERVICES,ELLA SHAW,450,LEGAL,LEGAL FEES & COURT COSTS,2103035793,1000068958
04.12.2019,CHILDREN'S SERVICES,GAYLE BISBEY,450,LEGAL,LEGAL FEES & COURT COSTS,2103035797,1000074738
04.12.2019,CHILDREN'S SERVICES,GAYLE BISBEY,450,LEGAL,LEGAL FEES & COURT COSTS,2103035798,1000074738
04.12.2019,CHILDREN'S SERVICES,RAVINDER SAIMBHI,450,LEGAL,LEGAL FEES & COURT COSTS,2103035858,1000079836
04.12.2019,CHILDREN'S SERVICES,AL HOGARTH,475,LEGAL,LEGAL FEES & COURT COSTS,2103035759,1000068723
04.12.2019,CHILDREN'S SERVICES,AMI BARTHOLOMEW,475,LEGAL,LEGAL FEES & COURT COSTS,2103035760,1000064100
04.12.2019,CHILDREN'S SERVICES,JULIAN DATE,475,LEGAL,LEGAL FEES & COURT COSTS,2103035822,1000068743
04.12.2019,CHILDREN'S SERVICES,OLIVER MILLINGTON,475,LEGAL,LEGAL FEES & COURT COSTS,2103035846,1000051055
04.12.2019,CHILDREN'S SERVICES,PHILIPPA PARRY-JONES,475,LEGAL,LEGAL FEES & COURT COSTS,2103035852,1000081285
04.12.2019,CHILDREN'S SERVICES,DAVID BANNOCKS,550,LEGAL,LEGAL FEES & COURT COSTS,2103035780,1000068951
04.12.2019,CHILDREN'S SERVICES,DAVID BANNOCKS,550,LEGAL,LEGAL FEES & COURT COSTS,2103035782,1000068951
04.12.2019,CHILDREN'S SERVICES,ELLA SHAW,550,LEGAL,LEGAL FEES & COURT COSTS,2103035794,1000068958
04.12.2019,CHILDREN'S SERVICES,DAVID BANNOCKS,600,LEGAL,LEGAL FEES & COURT COSTS,2103035779,1000068951
04.12.2019,CHILDREN'S SERVICES,PAULA DIAZ,600,LEGAL,LEGAL FEES & COURT COSTS,2103035848,1000063943
04.12.2019,CHILDREN'S SERVICES,E4 LAW LTD,631.25,LEGAL,LEGAL FEES & COURT COSTS,2103035834,1000072222
04.12.2019,CHILDREN'S SERVICES,GAYLE BISBEY,675,LEGAL,LEGAL FEES & COURT COSTS,2103035800,1000074738
04.12.2019,CHILDREN'S SERVICES,SYMBOL FAMILY SUPPORT SERVICES LTD,688.43,LEGAL,LEGAL FEES & COURT COSTS,2103035871,1000050435
04.12.2019,CHILDREN'S SERVICES,RICHARD HARRIS,800,LEGAL,LEGAL FEES & COURT COSTS,2103035860,1000075786
04.12.2019,CHILDREN'S SERVICES,JULIAN DATE,"1,075.00",LEGAL,LEGAL FEES & COURT COSTS,2103035823,1000068743
04.12.2019,CHILDREN'S SERVICES,GAYLE BISBEY,"1,125.00",LEGAL,LEGAL FEES & COURT COSTS,2103035799,1000074738
04.12.2019,CHILDREN'S SERVICES,GERALDINE MORE O'FERRALL,"1,125.00",LEGAL,LEGAL FEES & COURT COSTS,2103035802,1000080655
04.12.2019,CHILDREN'S SERVICES,TAKE NOTE LTD,"1,391.25",LEGAL,LEGAL FEES & COURT COSTS,2103035872,1000079260
04.12.2019,CHILDREN'S SERVICES,JOHN RUSKIN PRIMARY SCHOOL,373,MATERNITY COVER,SCHOOLS CAPITATION,2103035738,5001000040
04.12.2019,CHILDREN'S SERVICES,RYE OAK PRIMARY SCHOOL,"1,799.00",MATERNITY COVER,SCHOOLS CAPITATION,2103035744,5001000059
04.12.2019,CHILDREN'S SERVICES,RYE OAK PRIMARY SCHOOL,"2,893.00",MATERNITY COVER,SCHOOLS CAPITATION,2103035743,5001000059
04.12.2019,CHILDREN'S SERVICES,RYE OAK PRIMARY SCHOOL,"9,091.00",MATERNITY COVER,SCHOOLS CAPITATION,2103035742,5001000059
04.12.2019,CHILDREN'S SERVICES,ST ANTHONYS RC SCHOOL,"9,279.00",MATERNITY COVER,SCHOOLS CAPITATION,2103035735,5001000064
04.12.2019,CHILDREN'S SERVICES,BESSEMER GRANGE PRIMARY SCHOOL,"10,913.00",MATERNITY COVER,SCHOOLS CAPITATION,2103035741,5001000009
04.12.2019,CHILDREN'S SERVICES,NELL GWYNN NURSERY SCHOOL,"25,941.00",NELL GWYNN CHILDRENS CENTRE,EARLY YEARS - 3 AND 4 YEAR OLDS,2103035737,5001000049
04.12.2019,CHILDREN'S SERVICES,WELLING SCHOOL,"1,500.00",PUPIL PREMIUM CURRENT YEAR,SCHOOLS CAPITATION,5902391674,1000068507
04.12.2019,CHILDREN'S SERVICES,WESTLANDS SCHOOL,"1,500.00",PUPIL PREMIUM CURRENT YEAR,SCHOOLS CAPITATION,5902391675,1000075375
04.12.2019,CHILDREN'S SERVICES,THE BEACON FOLKESTONE,"1,710.00",PUPIL PREMIUM CURRENT YEAR,SCHOOLS CAPITATION,5902391673,1000080829
04.12.2019,CHILDREN'S SERVICES,REDACTED PERSONAL DATA,269.08,RESIDENCE ORDERS,PAYMENTS TO CARERS,REDACTED,REDACTED
04.12.2019,CHILDREN'S SERVICES,ZENITH CARS LTD,"3,820.00",S & FAM SUPP - PRAC GRP F SET 29-31,HIRED VEHICLES,5902391679,1000070570
04.12.2019,CHILDREN'S SERVICES,YOUNG FUTURES,-874.2,SEMI INDEPENDENT CARE LEAVERS,EXTERNAL AGENCIES AND BODIES,2103035437,1000059563
04.12.2019,CHILDREN'S SERVICES,YOUNG FUTURES,291.42,SEMI INDEPENDENT CARE LEAVERS,EXTERNAL AGENCIES AND BODIES,2103035431,1000059563
04.12.2019,CHILDREN'S SERVICES,YOUNG FUTURES,501.39,SEMI INDEPENDENT CARE LEAVERS,EXTERNAL AGENCIES AND BODIES,2103035428,1000059563
04.12.2019,CHILDREN'S SERVICES,SILVER BIRCH CARE LTD,"1,125.00",SEMI INDEPENDENT CARE LEAVERS,EXTERNAL AGENCIES AND BODIES,5902391659,1000076525
04.12.2019,CHILDREN'S SERVICES,HOLMDENE HOUSING LTD,"2,107.14",SEMI INDEPENDENT CARE LEAVERS,EXTERNAL AGENCIES AND BODIES,2103035433,1000032598
04.12.2019,CHILDREN'S SERVICES,YOUNG FUTURES,"2,142.90",SEMI INDEPENDENT CARE LEAVERS,EXTERNAL AGENCIES AND BODIES,2103035424,1000059563
04.12.2019,CHILDREN'S SERVICES,YOUNG FUTURES,"2,142.90",SEMI INDEPENDENT CARE LEAVERS,EXTERNAL AGENCIES AND BODIES,2103035438,1000059563
04.12.2019,CHILDREN'S SERVICES,YOUNG FUTURES,"2,700.00",SEMI INDEPENDENT CARE LEAVERS,EXTERNAL AGENCIES AND BODIES,2103035443,1000059563
04.12.2019,CHILDREN'S SERVICES,YOUNG FUTURES,"3,814.20",SEMI INDEPENDENT CARE LEAVERS,EXTERNAL AGENCIES AND BODIES,2103035434,1000059563
04.12.2019,CHILDREN'S SERVICES,YOUNG FUTURES,"3,814.20",SEMI INDEPENDENT CARE LEAVERS,EXTERNAL AGENCIES AND BODIES,2103035435,1000059563
04.12.2019,CHILDREN'S SERVICES,YOUNG FUTURES,"3,814.20",SEMI INDEPENDENT CARE LEAVERS,EXTERNAL AGENCIES AND BODIES,2103035439,1000059563
04.12.2019,CHILDREN'S SERVICES,YOUNG FUTURES,"3,941.34",SEMI INDEPENDENT CARE LEAVERS,EXTERNAL AGENCIES AND BODIES,2103035440,1000059563
04.12.2019,CHILDREN'S SERVICES,YOUNG FUTURES,"3,941.34",SEMI INDEPENDENT CARE LEAVERS,EXTERNAL AGENCIES AND BODIES,2103035441,1000059563
04.12.2019,CHILDREN'S SERVICES,REDACTED PERSONAL DATA,300,SEMI INDEPENDENT LAC,OTHER PAYMENTS FOR CLIENTS,REDACTED,REDACTED
04.12.2019,CHILDREN'S SERVICES,REDACTED PERSONAL DATA,405.71,SEMI INDEPENDENT LAC,OTHER PAYMENTS FOR CLIENTS,REDACTED,REDACTED
04.12.2019,CHILDREN'S SERVICES,HOLMDENE HOUSING LTD,492.86,SEMI INDEPENDENT LAC,EXTERNAL AGENCIES AND BODIES,2103035432,1000032598
04.12.2019,CHILDREN'S SERVICES,REDACTED PERSONAL DATA,600,SEMI INDEPENDENT LAC,OTHER PAYMENTS FOR CLIENTS,REDACTED,REDACTED
04.12.2019,CHILDREN'S SERVICES,REDACTED PERSONAL DATA,"1,000.00",SEMI INDEPENDENT LAC,OTHER PAYMENTS FOR CLIENTS,REDACTED,REDACTED
04.12.2019,CHILDREN'S SERVICES,SILVER BIRCH CARE LTD,"1,125.00",SEMI INDEPENDENT LAC,EXTERNAL AGENCIES AND BODIES,5902391656,1000076525
04.12.2019,CHILDREN'S SERVICES,YOUNG FUTURES,"2,700.00",SEMI INDEPENDENT LAC,EXTERNAL AGENCIES AND BODIES,2103035429,1000059563
04.12.2019,CHILDREN'S SERVICES,YOUNG FUTURES,"7,928.40",SEMI INDEPENDENT LAC,EXTERNAL AGENCIES AND BODIES,2103035445,1000059563
04.12.2019,CHILDREN'S SERVICES,REDACTED PERSONAL DATA,269.08,SPECIAL GUARDIANSHIP,PAYMENTS TO CARERS,REDACTED,REDACTED
04.12.2019,CHILDREN'S SERVICES,REDACTED PERSONAL DATA,269.08,SPECIAL GUARDIANSHIP,PAYMENTS TO CARERS,REDACTED,REDACTED
04.12.2019,CHILDREN'S SERVICES,REDACTED PERSONAL DATA,341.15,SPECIAL GUARDIANSHIP,PAYMENTS TO CARERS,REDACTED,REDACTED
04.12.2019,CHILDREN'S SERVICES,REDACTED PERSONAL DATA,342.45,SPECIAL GUARDIANSHIP,PAYMENTS TO CARERS,REDACTED,REDACTED
04.12.2019,CHILDREN'S SERVICES,REDACTED PERSONAL DATA,343.05,SPECIAL GUARDIANSHIP,PAYMENTS TO CARERS,REDACTED,REDACTED
04.12.2019,CHILDREN'S SERVICES,REDACTED PERSONAL DATA,356.15,SPECIAL GUARDIANSHIP,PAYMENTS TO CARERS,REDACTED,REDACTED
04.12.2019,CHILDREN'S SERVICES,REDACTED PERSONAL DATA,388.04,SPECIAL GUARDIANSHIP,PAYMENTS TO CARERS,REDACTED,REDACTED
04.12.2019,CHILDREN'S SERVICES,REDACTED PERSONAL DATA,389.34,SPECIAL GUARDIANSHIP,PAYMENTS TO CARERS,REDACTED,REDACTED
04.12.2019,CHILDREN'S SERVICES,REDACTED PERSONAL DATA,395,SPECIAL GUARDIANSHIP,PAYMENTS TO CARERS,REDACTED,REDACTED
04.12.2019,CHILDREN'S SERVICES,REDACTED PERSONAL DATA,403.04,SPECIAL GUARDIANSHIP,PAYMENTS TO CARERS,REDACTED,REDACTED
04.12.2019,CHILDREN'S SERVICES,REDACTED PERSONAL DATA,525,SPECIAL GUARDIANSHIP,PAYMENTS TO CARERS,REDACTED,REDACTED
04.12.2019,CHILDREN'S SERVICES,REDACTED PERSONAL DATA,525,SPECIAL GUARDIANSHIP,PAYMENTS TO CARERS,REDACTED,REDACTED
04.12.2019,CHILDREN'S SERVICES,REDACTED PERSONAL DATA,525,SPECIAL GUARDIANSHIP,PAYMENTS TO CARERS,REDACTED,REDACTED
04.12.2019,CHILDREN'S SERVICES,REDACTED PERSONAL DATA,649,SPECIAL GUARDIANSHIP,PAYMENTS TO CARERS,REDACTED,REDACTED
04.12.2019,CHILDREN'S SERVICES,REDACTED PERSONAL DATA,373.46,STAYING PUT,PAYMENTS TO CARERS,REDACTED,REDACTED
04.12.2019,CHILDREN'S SERVICES,REDACTED PERSONAL DATA,430,STAYING PUT,PAYMENTS TO CARERS,REDACTED,REDACTED
04.12.2019,CHILDREN'S SERVICES,REDACTED PERSONAL DATA,500,STAYING PUT,PAYMENTS TO CARERS,REDACTED,REDACTED
04.12.2019,CHILDREN'S SERVICES,REDACTED PERSONAL DATA,500,STAYING PUT,PAYMENTS TO CARERS,REDACTED,REDACTED
04.12.2019,CHILDREN'S SERVICES,REDACTED PERSONAL DATA,500,STAYING PUT,PAYMENTS TO CARERS,REDACTED,REDACTED
04.12.2019,CHILDREN'S SERVICES,REDACTED PERSONAL DATA,500,STAYING PUT,PAYMENTS TO CARERS,REDACTED,REDACTED
04.12.2019,CHILDREN'S SERVICES,REDACTED PERSONAL DATA,500,STAYING PUT,PAYMENTS TO CARERS,REDACTED,REDACTED
04.12.2019,CHILDREN'S SERVICES,REDACTED PERSONAL DATA,500,STAYING PUT,PAYMENTS TO CARERS,REDACTED,REDACTED
04.12.2019,CHILDREN'S SERVICES,REDACTED PERSONAL DATA,500,STAYING PUT,PAYMENTS TO CARERS,REDACTED,REDACTED
04.12.2019,CHILDREN'S SERVICES,REDACTED PERSONAL DATA,500,STAYING PUT,PAYMENTS TO CARERS,REDACTED,REDACTED
04.12.2019,CHILDREN'S SERVICES,REDACTED PERSONAL DATA,500,STAYING PUT,PAYMENTS TO CARERS,REDACTED,REDACTED
04.12.2019,CHILDREN'S SERVICES,REDACTED PERSONAL DATA,500,STAYING PUT,PAYMENTS TO CARERS,REDACTED,REDACTED
04.12.2019,CHILDREN'S SERVICES,REDACTED PERSONAL DATA,500,STAYING PUT,PAYMENTS TO CARERS,REDACTED,REDACTED
04.12.2019,CHILDREN'S SERVICES,REDACTED PERSONAL DATA,500,STAYING PUT,PAYMENTS TO CARERS,REDACTED,REDACTED
04.12.2019,CHILDREN'S SERVICES,REDACTED PERSONAL DATA,500,STAYING PUT,PAYMENTS TO CARERS,REDACTED,REDACTED
04.12.2019,CHILDREN'S SERVICES,REDACTED PERSONAL DATA,500,STAYING PUT,PAYMENTS TO CARERS,REDACTED,REDACTED
04.12.2019,CHILDREN'S SERVICES,REDACTED PERSONAL DATA,500,STAYING PUT,PAYMENTS TO CARERS,REDACTED,REDACTED
04.12.2019,CHILDREN'S SERVICES,REDACTED PERSONAL DATA,500,STAYING PUT,PAYMENTS TO CARERS,REDACTED,REDACTED
04.12.2019,CHILDREN'S SERVICES,REDACTED PERSONAL DATA,500,STAYING PUT,PAYMENTS TO CARERS,REDACTED,REDACTED
04.12.2019,CHILDREN'S SERVICES,REDACTED PERSONAL DATA,500,STAYING PUT,PAYMENTS TO CARERS,REDACTED,REDACTED
04.12.2019,CHILDREN'S SERVICES,REDACTED PERSONAL DATA,500,STAYING PUT,PAYMENTS TO CARERS,REDACTED,REDACTED
04.12.2019,CHILDREN'S SERVICES,REDACTED PERSONAL DATA,500,STAYING PUT,PAYMENTS TO CARERS,REDACTED,REDACTED
04.12.2019,CHILDREN'S SERVICES,REDACTED PERSONAL DATA,500,STAYING PUT,PAYMENTS TO CARERS,REDACTED,REDACTED
04.12.2019,CHILDREN'S SERVICES,REDACTED PERSONAL DATA,500,STAYING PUT,PAYMENTS TO CARERS,REDACTED,REDACTED
04.12.2019,CHILDREN'S SERVICES,REDACTED PERSONAL DATA,500,STAYING PUT,PAYMENTS TO CARERS,REDACTED,REDACTED
04.12.2019,CHILDREN'S SERVICES,REDACTED PERSONAL DATA,500,STAYING PUT,PAYMENTS TO CARERS,REDACTED,REDACTED
04.12.2019,CHILDREN'S SERVICES,REDACTED PERSONAL DATA,500,STAYING PUT,PAYMENTS TO CARERS,REDACTED,REDACTED
04.12.2019,CHILDREN'S SERVICES,REDACTED PERSONAL DATA,500,STAYING PUT,PAYMENTS TO CARERS,REDACTED,REDACTED
04.12.2019,CHILDREN'S SERVICES,REDACTED PERSONAL DATA,700,STAYING PUT,PAYMENTS TO CARERS,REDACTED,REDACTED
04.12.2019,CHILDREN'S SERVICES,REDACTED PERSONAL DATA,714.29,STAYING PUT,PAYMENTS TO CARERS,REDACTED,REDACTED
04.12.2019,CHILDREN'S SERVICES,REDACTED PERSONAL DATA,784,STAYING PUT,PAYMENTS TO CARERS,REDACTED,REDACTED
04.12.2019,CHILDREN'S SERVICES,REDACTED PERSONAL DATA,854,STAYING PUT,PAYMENTS TO CARERS,REDACTED,REDACTED
04.12.2019,CHILDREN'S SERVICES,REDACTED PERSONAL DATA,904,STAYING PUT,PAYMENTS TO CARERS,REDACTED,REDACTED
04.12.2019,CHILDREN'S SERVICES,REDACTED PERSONAL DATA,"1,000.00",STAYING PUT,PAYMENTS TO CARERS,REDACTED,REDACTED
04.12.2019,CHILDREN'S SERVICES,KENT COUNTY SUPPLIES,"1,479.76",THOMAS CALTON CENTRE,GAS,5902391622,1000000291
04.12.2019,CHILDREN'S SERVICES,YOUNG FUTURES,-874.2,UASC CARE LEAVERS,EXTERNAL AGENCIES AND BODIES,2103035427,1000059563
04.12.2019,CHILDREN'S SERVICES,HOLMDENE HOUSING LTD,"1,850.00",UASC CARE LEAVERS,EXTERNAL AGENCIES AND BODIES,2103035425,1000032598
04.12.2019,CHILDREN'S SERVICES,HOLMDENE HOUSING LTD,"1,850.00",UASC CARE LEAVERS,EXTERNAL AGENCIES AND BODIES,2103035426,1000032598
04.12.2019,CHILDREN'S SERVICES,HOLMDENE HOUSING LTD,"1,850.00",UASC CARE LEAVERS,EXTERNAL AGENCIES AND BODIES,2103035442,1000032598
04.12.2019,CHILDREN'S SERVICES,YOUNG FUTURES,"2,142.90",UASC CARE LEAVERS,EXTERNAL AGENCIES AND BODIES,2103035430,1000059563
04.12.2019,CHILDREN'S SERVICES,YOUNG FUTURES,"3,171.30",UASC CARE LEAVERS,EXTERNAL AGENCIES AND BODIES,2103035436,1000059563
04.12.2019,CHILDREN'S SERVICES,REDACTED PERSONAL DATA,300,UNIVERSITY SUPPORT,CLIENT TRANSPORT,REDACTED,REDACTED
04.12.2019,CHILDREN'S SERVICES,REDACTED PERSONAL DATA,300,UNIVERSITY SUPPORT,CLIENT TRANSPORT,REDACTED,REDACTED
04.12.2019,CHILDREN'S SERVICES,REDACTED PERSONAL DATA,300,UNIVERSITY SUPPORT,CLIENT TRANSPORT,REDACTED,REDACTED
04.12.2019,CHILDREN'S SERVICES,REDACTED PERSONAL DATA,600,UNIVERSITY SUPPORT,OTHER PAYMENTS FOR CLIENTS,REDACTED,REDACTED
04.12.2019,CHILDREN'S SERVICES,REDACTED PERSONAL DATA,800,UNIVERSITY SUPPORT,OTHER PAYMENTS FOR CLIENTS,REDACTED,REDACTED
04.12.2019,CHILDREN'S SERVICES,REDACTED PERSONAL DATA,800,UNIVERSITY SUPPORT,OTHER PAYMENTS FOR CLIENTS,REDACTED,REDACTED
04.12.2019,CHILDREN'S SERVICES,REDACTED PERSONAL DATA,"1,100.00",UNIVERSITY SUPPORT,OTHER PAYMENTS FOR CLIENTS,REDACTED,REDACTED
04.12.2019,COMMUNITIES,GALAXY LETTINGS LTD,"1,199.00",NO RECOURSE TO PUBLIC FUNDS,ACCOMMODATION CHARGES,5902391530,1000055897
04.12.2019,COMMUNITIES,SOUTHSIDE PARTNERSHIP LTD,"1,266.90",NO RECOURSE TO PUBLIC FUNDS,ACCOMMODATION CHARGES,5902391604,1716624
04.12.2019,COMMUNITIES,SOUTHSIDE PARTNERSHIP LTD,"1,266.90",NO RECOURSE TO PUBLIC FUNDS,ACCOMMODATION CHARGES,5902391605,1716624
04.12.2019,COMMUNITIES,GALAXY LETTINGS LTD,"1,998.00",NO RECOURSE TO PUBLIC FUNDS,ACCOMMODATION CHARGES,5902391530,1000055897
04.12.2019,COMMUNITIES,WILLOW ESTATE AGENTS (LONDON) LTD,"2,264.00",NO RECOURSE TO PUBLIC FUNDS,ACCOMMODATION CHARGES,5902391628,1000060607
04.12.2019,COMMUNITIES,SITTARA LTD,"2,340.00",NO RECOURSE TO PUBLIC FUNDS,ACCOMMODATION CHARGES,5902391678,1000080857
04.12.2019,COMMUNITIES,GALAXY LETTINGS LTD,"2,490.00",NO RECOURSE TO PUBLIC FUNDS,ACCOMMODATION CHARGES,5902391666,1000055897
04.12.2019,COMMUNITIES,SOUTHSIDE PARTNERSHIP LTD,"2,757.60",NO RECOURSE TO PUBLIC FUNDS,ACCOMMODATION CHARGES,5902391603,1716624
04.12.2019,COMMUNITIES,STENFORD PROPERTY LTD,"3,090.00",NO RECOURSE TO PUBLIC FUNDS,ACCOMMODATION CHARGES,5902391631,1000074759
04.12.2019,COMMUNITIES,SOUTHSIDE PARTNERSHIP LTD,"3,228.90",NO RECOURSE TO PUBLIC FUNDS,ACCOMMODATION CHARGES,5902391609,1716624
04.12.2019,COMMUNITIES,SOUTH OF THE RIVER INVESTMENTS LTD,"6,066.10",NO RECOURSE TO PUBLIC FUNDS,ACCOMMODATION CHARGES,5902391664,1000073638
04.12.2019,COMMUNITIES,BARSET SHELTERED HOUSING SOCIAL CLUB,"1,300.00",TENANTS FUND,GRANTS,5902391525,1000081451
04.12.2019,COMMUNITIES,ASTLEY COOPERS (ASCO) T&RA,"2,864.00",TRSIG,GRANTS,5902391554,11059315
04.12.2019,CUSTOMER EXPERIENCE,VELVINDRON,"1,000.00",COMPLAINTS,REFRESHMENTS FOR MEETINGS,5902391527,1000083036
04.12.2019,CUSTOMER EXPERIENCE HGF,IMPERIAL COLLEGE PROJECTS LTD,276,CORONER'S,PROFESSIONAL FEES,5902391632,1000080106
04.12.2019,CUSTOMER EXPERIENCE HGF,IMPERIAL COLLEGE PROJECTS LTD,332,CORONER'S,PROFESSIONAL FEES,5902391634,1000080106
04.12.2019,CUSTOMER EXPERIENCE HGF,IMPERIAL COLLEGE PROJECTS LTD,344,CORONER'S,PROFESSIONAL FEES,5902391650,1000080106
04.12.2019,CUSTOMER EXPERIENCE HGF,IMPERIAL COLLEGE PROJECTS LTD,376,CORONER'S,PROFESSIONAL FEES,5902391653,1000080106
04.12.2019,CUSTOMER EXPERIENCE HGF,IMPERIAL COLLEGE PROJECTS LTD,388,CORONER'S,PROFESSIONAL FEES,5902391640,1000080106
04.12.2019,CUSTOMER EXPERIENCE HGF,IMPERIAL COLLEGE PROJECTS LTD,408,CORONER'S,PROFESSIONAL FEES,5902391637,1000080106
04.12.2019,CUSTOMER EXPERIENCE HGF,IMPERIAL COLLEGE PROJECTS LTD,432,CORONER'S,PROFESSIONAL FEES,5902391649,1000080106
04.12.2019,CUSTOMER EXPERIENCE HGF,IMPERIAL COLLEGE PROJECTS LTD,432,CORONER'S,PROFESSIONAL FEES,5902391654,1000080106
04.12.2019,CUSTOMER EXPERIENCE HGF,IMPERIAL COLLEGE PROJECTS LTD,524,CORONER'S,PROFESSIONAL FEES,5902391639,1000080106
04.12.2019,CUSTOMER EXPERIENCE HGF,CHRISTOPHER BAKER,568.75,HOMELESS PROJECTS,LEGAL FEES & COURT COSTS,2103035772,1000043525
04.12.2019,CUSTOMER EXPERIENCE HGF,LISA CLARKE,780,HOMELESS PROJECTS,LEGAL FEES & COURT COSTS,2103035841,1000030215
04.12.2019,CUSTOMER EXPERIENCE HGF,SOUTH LONDON ESTATE LTD,"1,096.38",HOMELESS PROJECTS,GRANTS,5902391579,1000046096
04.12.2019,CUSTOMER EXPERIENCE HGF,SOUTH LONDON ESTATE LTD,"1,380.60",HOMELESS PROJECTS,GRANTS,5902391587,1000046096
04.12.2019,CUSTOMER EXPERIENCE HGF,CHRISTOPHER BAKER,800,HOUSING OPTIONS,LEGAL FEES & COURT COSTS,2103035773,1000043525
04.12.2019,CUSTOMER EXPERIENCE HGF,APEX HOUSING SOLUTIONS LTD,562,NIGHTLY TA (NSC),EXTERNAL AGENCIES AND BODIES,5902391614,1000079786
04.12.2019,CUSTOMER EXPERIENCE HGF,QUINARY LTD,"5,793.35",NIGHTLY TA (NSC),EXTERNAL AGENCIES AND BODIES,5902391528,1000029106
04.12.2019,CUSTOMER EXPERIENCE HGF,RENT CONNECT HOUSING LTD,"24,753.20",NIGHTLY TA (NSC),EXTERNAL AGENCIES AND BODIES,5902391563,1000074815
04.12.2019,CUSTOMER EXPERIENCE HGF,NATIONWIDE ACCOMMODATION,"42,963.71",PSL PLACEMENTS,EXTERNAL AGENCIES AND BODIES,5902391578,1000076112
04.12.2019,CUSTOMER EXPERIENCE HGF,NATIONWIDE ACCOMMODATION,"46,000.00",PSL PLACEMENTS,EXTERNAL AGENCIES AND BODIES,5902391577,1000076112
04.12.2019,ENVIRONMENT DIRECTORATE,SHELL UK OIL PRODUCTS LTD,363.83,COMMERCIAL VEH CTRL A/C,VEHICLE FUEL,5902391546,1000081254
04.12.2019,ENVIRONMENT DIRECTORATE,SHELL UK OIL PRODUCTS LTD,785.36,COMMERCIAL VEH CTRL A/C,VEHICLE FUEL,5902391542,1000081254
04.12.2019,ENVIRONMENT DIRECTORATE,CONTEGO SAFETY SOLUTIONS LTD,912.25,MANAGEMENT TEAM,MATERIALS,5902391641,1000077673
04.12.2019,ENVIRONMENT DIRECTORATE,MOBILEWORXS LTD,"-1,297.50",PEST CONTROL,SOFTWARE,5902391925,1000072034
04.12.2019,ENVIRONMENT DIRECTORATE,MOBILEWORXS LTD,"1,297.50",PEST CONTROL,SOFTWARE,5902391708,1000072034
04.12.2019,ENVIRONMENT DIRECTORATE,BEVAN BRITTAN LLP,455,PFI PROJECT,PAYMENTS FOR LEGAL SERVICES,5902391517,1000047779
04.12.2019,ENVIRONMENT DIRECTORATE,BEVAN BRITTAN LLP,"6,006.20",PFI PROJECT,PAYMENTS FOR LEGAL SERVICES,5902391522,1000047779
04.12.2019,ENVIRONMENT DIRECTORATE,DAVID HALL,264,SASBU,LEGAL FEES & COURT COSTS,2103035785,1000059226
04.12.2019,ENVIRONMENT DIRECTORATE,BRYAN MADAGAN ASSOCIATES LTD,414,SASBU,LEGAL FEES & COURT COSTS,2103035766,1000072045
04.12.2019,ENVIRONMENT DIRECTORATE,JARED NORMAN,450,SASBU,LEGAL FEES & COURT COSTS,2103035815,1000064080
04.12.2019,ENVIRONMENT DIRECTORATE,JARED NORMAN,450,SASBU,LEGAL FEES & COURT COSTS,2103035817,1000064080
04.12.2019,ENVIRONMENT DIRECTORATE,JARED NORMAN,450,SASBU,LEGAL FEES & COURT COSTS,2103035818,1000064080
04.12.2019,ENVIRONMENT DIRECTORATE,JARED NORMAN,450,SASBU,LEGAL FEES & COURT COSTS,2103035820,1000064080
04.12.2019,ENVIRONMENT DIRECTORATE,JARED NORMAN,450,SASBU,LEGAL FEES & COURT COSTS,2103035821,1000064080
04.12.2019,ENVIRONMENT DIRECTORATE,SHERBOND LIMITED,499,SASBU,LEGAL FEES & COURT COSTS,2103035864,1000040424
04.12.2019,ENVIRONMENT DIRECTORATE,EXPERT WITNESS,578.45,SASBU,LEGAL FEES & COURT COSTS,2103035795,1000062889
04.12.2019,ENVIRONMENT DIRECTORATE,IAN PEACOCK,850,SASBU,LEGAL FEES & COURT COSTS,2103035805,1000081174
04.12.2019,ENVIRONMENT DIRECTORATE,IAN PEACOCK,900,SASBU,LEGAL FEES & COURT COSTS,2103035806,1000081174
04.12.2019,ENVIRONMENT DIRECTORATE,JARED NORMAN,900,SASBU,LEGAL FEES & COURT COSTS,2103035816,1000064080
04.12.2019,ENVIRONMENT DIRECTORATE,JARED NORMAN,900,SASBU,LEGAL FEES & COURT COSTS,2103035819,1000064080
04.12.2019,ENVIRONMENT DIRECTORATE,JARED NORMAN,270,STREET TRADING A/C,LEGAL FEES & COURT COSTS,2103035812,1000064080
04.12.2019,ENVIRONMENT DIRECTORATE,JARED NORMAN,450,STREET TRADING A/C,LEGAL FEES & COURT COSTS,2103035813,1000064080
04.12.2019,ENVIRONMENT DIRECTORATE,JARED NORMAN,450,STREET TRADING A/C,LEGAL FEES & COURT COSTS,2103035814,1000064080
04.12.2019,ENVIRONMENT DIRECTORATE,JARED NORMAN,900,STREET TRADING A/C,LEGAL FEES & COURT COSTS,2103035811,1000064080
04.12.2019,EXCHEQUER SERVICES,PLANTEX TRADING LTD,-750,ADMINISTRATIVE SUPPORT,TRAINING,5902391928,1000083359
04.12.2019,EXCHEQUER SERVICES,PLANTEX TRADING LTD,750,ADMINISTRATIVE SUPPORT,TRAINING,5902384749,1000083359
04.12.2019,FINANCIAL AND INFORMATION GOVERNANCE,CIPFA,"3,525.00",CIPFA TRAINEES,TRAINING,5902391619,1000000196
04.12.2019,HOUSING,GUIDELINE LIFT SERVICES LTD,"55,067.27",GUIDELINE,I-WORLD CONTRACTORS HOLDING ACCOUNT,5902391657,1000064176
04.12.2019,HOUSING HRA,CALFORD SEADEN LLP,"3,572.22",CAPITAL PS (HRA),CONSTRUCTION FEES  - EXTERNAL,5902391598,1061592
04.12.2019,HOUSING HRA,TRENTON FIRE LTD,"5,700.00",CAPITAL PS (REGEN),CONSTRUCTION FEES - ENGINEER,5902391643,1000082619
04.12.2019,LAW & DEMOCRACY,CREIGHTON & PARTNERS,595.2,LEGAL CORP.CHARGES,LEGAL FEES & COURT COSTS,2103035778,1000027588
04.12.2019,LAW & DEMOCRACY,GERALDINE MORE O'FERRALL,600,LEGAL CORP.CHARGES,LEGAL FEES & COURT COSTS,2103035801,1000080655
04.12.2019,LEISURE DIRECTORATE,RANDALL SHAW BILLINGHAM LTD,"2,990.00",CREMATORIUM,BUILDING R&M,5902391564,1000057014
04.12.2019,LEISURE DIRECTORATE,HIGHLIGHTS FLOODLIGHTING LTD,290,HOMERSTALL ROAD SPORTS GROUND,BUILDING R&M,5902391616,1000083411
04.12.2019,LEISURE DIRECTORATE,CARL TURNER ARCHITECTS LTD,"5,866.00",PARKS SERVICES DEVELOPMENT,PROFESSIONAL FEES,5902391524,1000060355
04.12.2019,MODERNISATION HGF,SAP (UK) LTD,376.2,APPLICATIONS,SOFTWARE,5902391584,1000002550
04.12.2019,MODERNISATION HGF,SAP (UK) LTD,413.97,APPLICATIONS,SOFTWARE,5902391589,1000002550
04.12.2019,MODERNISATION HGF,CAPABILITY COACHING LTD,625,MEMBER DEVELOPMENT,TRAINING,5902391611,1000082355
04.12.2019,MODERNISATION HGF,RCA BUSINESS PSYCHOLOGISTS LTD,"4,750.00",OCCUPATIONAL ASSESSMENT,CONSULTANTS SERVICES,5902391535,1000080957
04.12.2019,MODERNISATION HGF,GOVERNMENT EVENTS,330.65,WOMEN�S NETWORK,TRAINING,5902391670,1000081438
04.12.2019,NEW BUILD,TRANSPORT FOR LONDON BUSES,260,DEVELOPMENT DELIVERY,LEGAL FEES & COURT COSTS,2103035874,1000033685
04.12.2019,NEW BUILD,PROJECT CENTRE LTD,"1,137.00",DEVELOPMENT DELIVERY,CONSULTANTS SERVICES,5902391040,1000072621
04.12.2019,NEW BUILD,DENTONS UK AND MIDDLE EAST LLP,"3,604.19",DEVELOPMENT DELIVERY,LEGAL FEES & COURT COSTS,2103035786,1000083222
04.12.2019,NEW BUILD,WINKWORTH FRANCHISING LTD,"4,770.00",DEVELOPMENT DELIVERY,LEGAL FEES & COURT COSTS,2103035879,1000067987
04.12.2019,NEW BUILD,TRANSPORT FOR LONDON BUSES,260,HSG REGEN&DEL MGT,LEGAL FEES & COURT COSTS,2103035875,1000033685
04.12.2019,REGENERATION,DAVID ELVIN QC,"4,000.00",MASTER PLAN-H/WAY & TRANS INTERCHANGE,LEGAL FEES & COURT COSTS,2103035783,1000068801
04.12.2019,RESIDENT SERVICES,LISA CLARKE,800,OPERATIONS/OFFICES ACCOMMODATION,LEGAL FEES & COURT COSTS,2103035839,1000030215
04.12.2019,RESIDENT SERVICES,LISA CLARKE,920.83,OPERATIONS/OFFICES ACCOMMODATION,LEGAL FEES & COURT COSTS,2103035838,1000030215
04.12.2019,RESIDENT SERVICES,TROWERS & HAMLINS LLP,950,OPERATIONS/OFFICES ACCOMMODATION,LEGAL FEES & COURT COSTS,2103035876,1000016239
04.12.2019,RESIDENT SERVICES,STEPHEN EVANS,"1,161.67",OPERATIONS/OFFICES ACCOMMODATION,LEGAL FEES & COURT COSTS,2103035870,1000043318
04.12.2019,RESIDENT SERVICES,GT STEWART LTD,"10,589.73",OPERATIONS/OFFICES ACCOMMODATION,LEGAL FEES & COURT COSTS,2103035796,1000061213
04.12.2019,RESIDENT SERVICES,CITYGLEN LTD,351,TA PLACEMENTS,EXTERNAL AGENCIES AND BODIES,5902391558,1000026239
04.12.2019,RESIDENT SERVICES HGF,BRYAN MADAGAN ASSOCIATES LTD,600,ILDERTON ROAD PERM,LEGAL FEES & COURT COSTS,2103035873,1000072045
05.12.2019,ADULT SOCIAL CARE,REDACTED PERSONAL DATA,500,APPOINTEESHIPS,OTHER PAYMENTS FOR CLIENTS,REDACTED,REDACTED
05.12.2019,ADULT SOCIAL CARE,DINARDO SUPPORTS LTD,520,APPOINTEESHIPS,OTHER PAYMENTS FOR CLIENTS,2103036084,1000063093
05.12.2019,ADULT SOCIAL CARE,CHOICE SUPPORT,547,APPOINTEESHIPS,OTHER PAYMENTS FOR CLIENTS,2103036082,1104183
05.12.2019,ADULT SOCIAL CARE,REDACTED PERSONAL DATA,"12,712.85",APPOINTEESHIPS,OTHER PAYMENTS FOR CLIENTS,REDACTED,REDACTED
05.12.2019,ADULT SOCIAL CARE,FOOTSTEPS CARE LTD,"15,026.96",DISABILITIES LAC,RESIDENTIAL CARE,2103036431,1000045464
05.12.2019,ADULT SOCIAL CARE,THE VINE RESIDENTIAL SERVICES LTD,"25,709.10",DISABILITIES LAC,RESIDENTIAL CARE,2103036432,1000082868
05.12.2019,ADULT SOCIAL CARE,SAGECARE LTD,272,LD LTS 18-64,HOMECARE - C&V,2103036150,1000080924
05.12.2019,ADULT SOCIAL CARE,SAGECARE LTD,408,LD LTS 18-64,HOMECARE - C&V,2103036303,1000080924
05.12.2019,ADULT SOCIAL CARE,SURREY DOCKS FARM PROVIDENT SOCIETY,480,LD LTS 18-64,DAYCARE,2103036561,1000000958
05.12.2019,ADULT SOCIAL CARE,SURREY DOCKS FARM PROVIDENT SOCIETY,487.5,LD LTS 18-64,DAYCARE,2103036560,1000000958
05.12.2019,ADULT SOCIAL CARE,SURREY DOCKS FARM PROVIDENT SOCIETY,720,LD LTS 18-64,DAYCARE,2103036559,1000000958
05.12.2019,ADULT SOCIAL CARE,SAGECARE LTD,935,LD LTS 18-64,HOMECARE - C&V,2103036152,1000080924
05.12.2019,ADULT SOCIAL CARE,SAGECARE LTD,986,LD LTS 18-64,HOMECARE - C&V,2103036108,1000080924
05.12.2019,ADULT SOCIAL CARE,SAGECARE LTD,675.75,MEM LTS 18-64,HOMECARE - C&V,2103036132,1000080924
05.12.2019,ADULT SOCIAL CARE,SAGECARE LTD,255,MEM LTS 65+,HOMECARE - C&V,2103036159,1000080924
05.12.2019,ADULT SOCIAL CARE,SAGECARE LTD,263.5,MEM LTS 65+,HOMECARE - C&V,2103036129,1000080924
05.12.2019,ADULT SOCIAL CARE,SAGECARE LTD,331.5,MEM LTS 65+,HOMECARE - C&V,2103036317,1000080924
05.12.2019,ADULT SOCIAL CARE,ELEANOR NURSING AND SOCIAL CARE LTD,512.12,MEM LTS 65+,HOMECARE - SPOT,2103036494,1000081695
05.12.2019,ADULT SOCIAL CARE,SAGECARE LTD,522.75,MEM LTS 65+,HOMECARE - C&V,2103036299,1000080924
05.12.2019,ADULT SOCIAL CARE,SAGECARE LTD,570.63,MEM LTS 65+,HOMECARE - C&V,2103036244,1000080924
05.12.2019,ADULT SOCIAL CARE,SAGECARE LTD,646,MEM LTS 65+,HOMECARE - C&V,2103036307,1000080924
05.12.2019,ADULT SOCIAL CARE,SAGECARE LTD,913.75,MEM LTS 65+,HOMECARE - C&V,2103036291,1000080924
05.12.2019,ADULT SOCIAL CARE,SAGECARE LTD,"1,181.50",MEM LTS 65+,HOMECARE - C&V,2103036328,1000080924
05.12.2019,ADULT SOCIAL CARE,SAGECARE LTD,"1,729.75",MEM LTS 65+,HOMECARE - C&V,2103036169,1000080924
05.12.2019,ADULT SOCIAL CARE,THAMES HOMECARE SERVICE LTD,299.83,MH LTS 18-64,HOMECARE - SPOT,2103036514,1000079295
05.12.2019,ADULT SOCIAL CARE,SAGECARE LTD,348.5,MH LTS 18-64,HOMECARE - C&V,2103036184,1000080924
05.12.2019,ADULT SOCIAL CARE,SAGECARE LTD,378.25,MH LTS 18-64,HOMECARE - C&V,2103036125,1000080924
05.12.2019,ADULT SOCIAL CARE,SAGECARE LTD,531.25,MH LTS 18-64,HOMECARE - C&V,2103036107,1000080924
05.12.2019,ADULT SOCIAL CARE,SAGECARE LTD,663,MH LTS 18-64,HOMECARE - C&V,2103036146,1000080924
05.12.2019,ADULT SOCIAL CARE,SAGECARE LTD,272,MH LTS 65+,HOMECARE - C&V,2103036202,1000080924
05.12.2019,ADULT SOCIAL CARE,SAGECARE LTD,399.5,MH LTS 65+,HOMECARE - C&V,2103036185,1000080924
05.12.2019,ADULT SOCIAL CARE,SAGECARE LTD,514.25,MH LTS 65+,HOMECARE - C&V,2103036160,1000080924
05.12.2019,ADULT SOCIAL CARE,SAGECARE LTD,607.75,MH LTS 65+,HOMECARE - C&V,2103036190,1000080924
05.12.2019,ADULT SOCIAL CARE,SAGECARE LTD,841.5,MH LTS 65+,HOMECARE - C&V,2103036253,1000080924
05.12.2019,ADULT SOCIAL CARE,THAMES HOMECARE SERVICE LTD,250.6,PHY LTS 18-64,HOMECARE - SPOT,2103036537,1000079295
05.12.2019,ADULT SOCIAL CARE,SAGECARE LTD,255,PHY LTS 18-64,HOMECARE - C&V,2103036138,1000080924
05.12.2019,ADULT SOCIAL CARE,SAGECARE LTD,276.25,PHY LTS 18-64,HOMECARE - C&V,2103036156,1000080924
05.12.2019,ADULT SOCIAL CARE,SAGECARE LTD,280.5,PHY LTS 18-64,HOMECARE - C&V,2103036096,1000080924
05.12.2019,ADULT SOCIAL CARE,THAMES HOMECARE SERVICE LTD,286.4,PHY LTS 18-64,HOMECARE - SPOT,2103036498,1000079295
05.12.2019,ADULT SOCIAL CARE,SAGECARE LTD,301.75,PHY LTS 18-64,HOMECARE - C&V,2103036141,1000080924
05.12.2019,ADULT SOCIAL CARE,SAGECARE LTD,306,PHY LTS 18-64,HOMECARE - C&V,2103036315,1000080924
05.12.2019,ADULT SOCIAL CARE,THAMES HOMECARE SERVICE LTD,308.78,PHY LTS 18-64,HOMECARE - SPOT,2103036528,1000079295
05.12.2019,ADULT SOCIAL CARE,SAGECARE LTD,310.25,PHY LTS 18-64,HOMECARE - C&V,2103036198,1000080924
05.12.2019,ADULT SOCIAL CARE,THAMES HOMECARE SERVICE LTD,322.2,PHY LTS 18-64,HOMECARE - SPOT,2103036521,1000079295
05.12.2019,ADULT SOCIAL CARE,SAGECARE LTD,331.5,PHY LTS 18-64,HOMECARE - C&V,2103036208,1000080924
05.12.2019,ADULT SOCIAL CARE,SAGECARE LTD,352.75,PHY LTS 18-64,HOMECARE - C&V,2103036306,1000080924
05.12.2019,ADULT SOCIAL CARE,SAGECARE LTD,357,PHY LTS 18-64,HOMECARE - C&V,2103036158,1000080924
05.12.2019,ADULT SOCIAL CARE,SAGECARE LTD,365.5,PHY LTS 18-64,HOMECARE - C&V,2103036189,1000080924
05.12.2019,ADULT SOCIAL CARE,THAMES HOMECARE SERVICE LTD,380.38,PHY LTS 18-64,HOMECARE - SPOT,2103036540,1000079295
05.12.2019,ADULT SOCIAL CARE,SAGECARE LTD,399.5,PHY LTS 18-64,HOMECARE - C&V,2103036157,1000080924
05.12.2019,ADULT SOCIAL CARE,SAGECARE LTD,403.75,PHY LTS 18-64,HOMECARE - C&V,2103036249,1000080924
05.12.2019,ADULT SOCIAL CARE,SAGECARE LTD,403.75,PHY LTS 18-64,HOMECARE - C&V,2103036282,1000080924
05.12.2019,ADULT SOCIAL CARE,SAGECARE LTD,450.5,PHY LTS 18-64,HOMECARE - C&V,2103036127,1000080924
05.12.2019,ADULT SOCIAL CARE,SAGECARE LTD,467.5,PHY LTS 18-64,HOMECARE - C&V,2103036164,1000080924
05.12.2019,ADULT SOCIAL CARE,SAGECARE LTD,510,PHY LTS 18-64,HOMECARE - C&V,2103036166,1000080924
05.12.2019,ADULT SOCIAL CARE,SAGECARE LTD,514.25,PHY LTS 18-64,HOMECARE - C&V,2103036103,1000080924
05.12.2019,ADULT SOCIAL CARE,SAGECARE LTD,556.75,PHY LTS 18-64,HOMECARE - C&V,2103036332,1000080924
05.12.2019,ADULT SOCIAL CARE,SAGECARE LTD,565.25,PHY LTS 18-64,HOMECARE - C&V,2103036199,1000080924
05.12.2019,ADULT SOCIAL CARE,SAGECARE LTD,565.25,PHY LTS 18-64,HOMECARE - C&V,2103036218,1000080924
05.12.2019,ADULT SOCIAL CARE,SAGECARE LTD,616.25,PHY LTS 18-64,HOMECARE - C&V,2103036155,1000080924
05.12.2019,ADULT SOCIAL CARE,THAMES HOMECARE SERVICE LTD,626.5,PHY LTS 18-64,HOMECARE - SPOT,2103036500,1000079295
05.12.2019,ADULT SOCIAL CARE,THAMES HOMECARE SERVICE LTD,639.93,PHY LTS 18-64,HOMECARE - SPOT,2103036504,1000079295
05.12.2019,ADULT SOCIAL CARE,SAGECARE LTD,675.75,PHY LTS 18-64,HOMECARE - C&V,2103036238,1000080924
05.12.2019,ADULT SOCIAL CARE,ELEANOR NURSING AND SOCIAL CARE LTD,709.44,PHY LTS 18-64,HOMECARE - SPOT,2103036489,1000081695
05.12.2019,ADULT SOCIAL CARE,SAGECARE LTD,714,PHY LTS 18-64,HOMECARE - C&V,2103036094,1000080924
05.12.2019,ADULT SOCIAL CARE,ELEANOR NURSING AND SOCIAL CARE LTD,726.6,PHY LTS 18-64,HOMECARE - SPOT,2103036483,1000081695
05.12.2019,ADULT SOCIAL CARE,SAGECARE LTD,735.25,PHY LTS 18-64,HOMECARE - SPOT,2103036336,1000080924
05.12.2019,ADULT SOCIAL CARE,SAGECARE LTD,739.5,PHY LTS 18-64,HOMECARE - C&V,2103036181,1000080924
05.12.2019,ADULT SOCIAL CARE,SAGECARE LTD,771.37,PHY LTS 18-64,HOMECARE - C&V,2103036148,1000080924
05.12.2019,ADULT SOCIAL CARE,ELEANOR NURSING AND SOCIAL CARE LTD,796.08,PHY LTS 18-64,HOMECARE - C&V,2103036486,1000081695
05.12.2019,ADULT SOCIAL CARE,ELEANOR NURSING AND SOCIAL CARE LTD,817.56,PHY LTS 18-64,HOMECARE - SPOT,2103036481,1000081695
05.12.2019,ADULT SOCIAL CARE,SAGECARE LTD,828.75,PHY LTS 18-64,HOMECARE - C&V,2103036297,1000080924
05.12.2019,ADULT SOCIAL CARE,SAGECARE LTD,858.5,PHY LTS 18-64,HOMECARE - C&V,2103036264,1000080924
05.12.2019,ADULT SOCIAL CARE,SAGECARE LTD,875.5,PHY LTS 18-64,HOMECARE - C&V,2103036111,1000080924
05.12.2019,ADULT SOCIAL CARE,THAMES HOMECARE SERVICE LTD,921.85,PHY LTS 18-64,HOMECARE - SPOT,2103036533,1000079295
05.12.2019,ADULT SOCIAL CARE,SAGECARE LTD,930.75,PHY LTS 18-64,HOMECARE - C&V,2103036171,1000080924
05.12.2019,ADULT SOCIAL CARE,ELEANOR NURSING AND SOCIAL CARE LTD,951.64,PHY LTS 18-64,HOMECARE - SPOT,2103036480,1000081695
05.12.2019,ADULT SOCIAL CARE,SAGECARE LTD,981.75,PHY LTS 18-64,HOMECARE - C&V,2103036117,1000080924
05.12.2019,ADULT SOCIAL CARE,SAGECARE LTD,986,PHY LTS 18-64,HOMECARE - C&V,2103036278,1000080924
05.12.2019,ADULT SOCIAL CARE,ELEANOR NURSING AND SOCIAL CARE LTD,"1,038.00",PHY LTS 18-64,HOMECARE - SPOT,2103036488,1000081695
05.12.2019,ADULT SOCIAL CARE,SAGECARE LTD,"1,117.75",PHY LTS 18-64,HOMECARE - C&V,2103036280,1000080924
05.12.2019,ADULT SOCIAL CARE,SAGECARE LTD,"1,134.75",PHY LTS 18-64,HOMECARE - C&V,2103036258,1000080924
05.12.2019,ADULT SOCIAL CARE,SAGECARE LTD,"1,177.25",PHY LTS 18-64,HOMECARE - C&V,2103036312,1000080924
05.12.2019,ADULT SOCIAL CARE,SAGECARE LTD,"1,207.00",PHY LTS 18-64,HOMECARE - C&V,2103036310,1000080924
05.12.2019,ADULT SOCIAL CARE,SAGECARE LTD,"1,496.00",PHY LTS 18-64,HOMECARE - C&V,2103036131,1000080924
05.12.2019,ADULT SOCIAL CARE,SAGECARE LTD,"1,521.50",PHY LTS 18-64,HOMECARE - C&V,2103036236,1000080924
05.12.2019,ADULT SOCIAL CARE,SAGECARE LTD,"1,576.75",PHY LTS 18-64,HOMECARE - C&V,2103036339,1000080924
05.12.2019,ADULT SOCIAL CARE,SAGECARE LTD,"1,670.25",PHY LTS 18-64,HOMECARE - C&V,2103036193,1000080924
05.12.2019,ADULT SOCIAL CARE,SAGECARE LTD,"1,870.00",PHY LTS 18-64,HOMECARE - C&V,2103036248,1000080924
05.12.2019,ADULT SOCIAL CARE,SAGECARE LTD,"1,891.25",PHY LTS 18-64,HOMECARE - C&V,2103036223,1000080924
05.12.2019,ADULT SOCIAL CARE,ELEANOR NURSING AND SOCIAL CARE LTD,"3,105.52",PHY LTS 18-64,HOMECARE - SPOT,2103036485,1000081695
05.12.2019,ADULT SOCIAL CARE,ELEANOR NURSING AND SOCIAL CARE LTD,"3,252.84",PHY LTS 18-64,HOMECARE - SPOT,2103036484,1000081695
05.12.2019,ADULT SOCIAL CARE,THAMES HOMECARE SERVICE LTD,250.6,PHY LTS 65+,HOMECARE - SPOT,2103036550,1000079295
05.12.2019,ADULT SOCIAL CARE,SAGECARE LTD,250.75,PHY LTS 65+,HOMECARE - C&V,2103036217,1000080924
05.12.2019,ADULT SOCIAL CARE,SAGECARE LTD,267.75,PHY LTS 65+,HOMECARE - C&V,2103036112,1000080924
05.12.2019,ADULT SOCIAL CARE,THAMES HOMECARE SERVICE LTD,268.5,PHY LTS 65+,HOMECARE - SPOT,2103036496,1000079295
05.12.2019,ADULT SOCIAL CARE,THAMES HOMECARE SERVICE LTD,277.45,PHY LTS 65+,HOMECARE - SPOT,2103036524,1000079295
05.12.2019,ADULT SOCIAL CARE,THAMES HOMECARE SERVICE LTD,281.93,PHY LTS 65+,HOMECARE - SPOT,2103036542,1000079295
05.12.2019,ADULT SOCIAL CARE,SAGECARE LTD,284.75,PHY LTS 65+,HOMECARE - C&V,2103036335,1000080924
05.12.2019,ADULT SOCIAL CARE,ELEANOR NURSING AND SOCIAL CARE LTD,293.12,PHY LTS 65+,HOMECARE - SPOT,2103036479,1000081695
05.12.2019,ADULT SOCIAL CARE,THAMES HOMECARE SERVICE LTD,295.35,PHY LTS 65+,HOMECARE - SPOT,2103036515,1000079295
05.12.2019,ADULT SOCIAL CARE,SAGECARE LTD,310.25,PHY LTS 65+,HOMECARE - C&V,2103036120,1000080924
05.12.2019,ADULT SOCIAL CARE,SAGECARE LTD,313.65,PHY LTS 65+,HOMECARE - C&V,2103036319,1000080924
05.12.2019,ADULT SOCIAL CARE,SAGECARE LTD,314.5,PHY LTS 65+,HOMECARE - C&V,2103036163,1000080924
05.12.2019,ADULT SOCIAL CARE,SAGECARE LTD,327.25,PHY LTS 65+,HOMECARE - C&V,2103036161,1000080924
05.12.2019,ADULT SOCIAL CARE,THAMES HOMECARE SERVICE LTD,344.58,PHY LTS 65+,HOMECARE - SPOT,2103036511,1000079295
05.12.2019,ADULT SOCIAL CARE,THAMES HOMECARE SERVICE LTD,344.58,PHY LTS 65+,HOMECARE - SPOT,2103036522,1000079295
05.12.2019,ADULT SOCIAL CARE,THAMES HOMECARE SERVICE LTD,344.58,PHY LTS 65+,HOMECARE - SPOT,2103036539,1000079295
05.12.2019,ADULT SOCIAL CARE,ELEANOR NURSING AND SOCIAL CARE LTD,350.46,PHY LTS 65+,HOMECARE - SPOT,2103036472,1000081695
05.12.2019,ADULT SOCIAL CARE,SAGECARE LTD,352.75,PHY LTS 65+,HOMECARE - C&V,2103036226,1000080924
05.12.2019,ADULT SOCIAL CARE,SAGECARE LTD,352.75,PHY LTS 65+,HOMECARE - C&V,2103036338,1000080924
05.12.2019,ADULT SOCIAL CARE,SAGECARE LTD,357,PHY LTS 65+,HOMECARE - C&V,2103036130,1000080924
05.12.2019,ADULT SOCIAL CARE,SAGECARE LTD,357,PHY LTS 65+,HOMECARE - C&V,2103036228,1000080924
05.12.2019,ADULT SOCIAL CARE,SAGECARE LTD,361.25,PHY LTS 65+,HOMECARE - C&V,2103036341,1000080924
05.12.2019,ADULT SOCIAL CARE,ELEANOR NURSING AND SOCIAL CARE LTD,363.44,PHY LTS 65+,HOMECARE - SPOT,2103036476,1000081695
05.12.2019,ADULT SOCIAL CARE,ELEANOR NURSING AND SOCIAL CARE LTD,363.44,PHY LTS 65+,HOMECARE - SPOT,2103036492,1000081695
05.12.2019,ADULT SOCIAL CARE,SAGECARE LTD,369.75,PHY LTS 65+,HOMECARE - C&V,2103036215,1000080924
05.12.2019,ADULT SOCIAL CARE,SAGECARE LTD,378.25,PHY LTS 65+,HOMECARE - C&V,2103036293,1000080924
05.12.2019,ADULT SOCIAL CARE,SAGECARE LTD,378.25,PHY LTS 65+,HOMECARE - C&V,2103036301,1000080924
05.12.2019,ADULT SOCIAL CARE,SAGECARE LTD,395.25,PHY LTS 65+,HOMECARE - C&V,2103036245,1000080924
05.12.2019,ADULT SOCIAL CARE,SAGECARE LTD,395.25,PHY LTS 65+,HOMECARE - C&V,2103036281,1000080924
05.12.2019,ADULT SOCIAL CARE,THAMES HOMECARE SERVICE LTD,398.28,PHY LTS 65+,HOMECARE - SPOT,2103036510,1000079295
05.12.2019,ADULT SOCIAL CARE,SAGECARE LTD,408,PHY LTS 65+,HOMECARE - C&V,2103036126,1000080924
05.12.2019,ADULT SOCIAL CARE,SAGECARE LTD,425,PHY LTS 65+,HOMECARE - C&V,2103036092,1000080924
05.12.2019,ADULT SOCIAL CARE,SAGECARE LTD,437.75,PHY LTS 65+,HOMECARE - C&V,2103036229,1000080924
05.12.2019,ADULT SOCIAL CARE,SAGECARE LTD,446.25,PHY LTS 65+,HOMECARE - C&V,2103036337,1000080924
05.12.2019,ADULT SOCIAL CARE,SAGECARE LTD,450.5,PHY LTS 65+,HOMECARE - C&V,2103036273,1000080924
05.12.2019,ADULT SOCIAL CARE,SAGECARE LTD,459,PHY LTS 65+,HOMECARE - C&V,2103036269,1000080924
05.12.2019,ADULT SOCIAL CARE,SAGECARE LTD,459,PHY LTS 65+,HOMECARE - C&V,2103036308,1000080924
05.12.2019,ADULT SOCIAL CARE,SAGECARE LTD,463.25,PHY LTS 65+,HOMECARE - C&V,2103036093,1000080924
05.12.2019,ADULT SOCIAL CARE,SAGECARE LTD,467.5,PHY LTS 65+,HOMECARE - C&V,2103036213,1000080924
05.12.2019,ADULT SOCIAL CARE,SAGECARE LTD,467.5,PHY LTS 65+,HOMECARE - C&V,2103036260,1000080924
05.12.2019,ADULT SOCIAL CARE,SAGECARE LTD,471.75,PHY LTS 65+,HOMECARE - C&V,2103036320,1000080924
05.12.2019,ADULT SOCIAL CARE,SAGECARE LTD,476,PHY LTS 65+,HOMECARE - C&V,2103036133,1000080924
05.12.2019,ADULT SOCIAL CARE,SAGECARE LTD,476,PHY LTS 65+,HOMECARE - C&V,2103036271,1000080924
05.12.2019,ADULT SOCIAL CARE,SAGECARE LTD,476,PHY LTS 65+,HOMECARE - C&V,2103036276,1000080924
05.12.2019,ADULT SOCIAL CARE,SAGECARE LTD,480.25,PHY LTS 65+,HOMECARE - C&V,2103036267,1000080924
05.12.2019,ADULT SOCIAL CARE,SAGECARE LTD,480.25,PHY LTS 65+,HOMECARE - C&V,2103036283,1000080924
05.12.2019,ADULT SOCIAL CARE,THAMES HOMECARE SERVICE LTD,483.3,PHY LTS 65+,HOMECARE - SPOT,2103036554,1000079295
05.12.2019,ADULT SOCIAL CARE,SAGECARE LTD,488.75,PHY LTS 65+,HOMECARE - C&V,2103036175,1000080924
05.12.2019,ADULT SOCIAL CARE,SAGECARE LTD,488.75,PHY LTS 65+,HOMECARE - C&V,2103036311,1000080924
05.12.2019,ADULT SOCIAL CARE,THAMES HOMECARE SERVICE LTD,501.2,PHY LTS 65+,HOMECARE - SPOT,2103036553,1000079295
05.12.2019,ADULT SOCIAL CARE,ELEANOR NURSING AND SOCIAL CARE LTD,519,PHY LTS 65+,HOMECARE - SPOT,2103036477,1000081695
05.12.2019,ADULT SOCIAL CARE,SAGECARE LTD,527,PHY LTS 65+,HOMECARE - C&V,2103036172,1000080924
05.12.2019,ADULT SOCIAL CARE,ELEANOR NURSING AND SOCIAL CARE LTD,536.3,PHY LTS 65+,HOMECARE - SPOT,2103036471,1000081695
05.12.2019,ADULT SOCIAL CARE,THAMES HOMECARE SERVICE LTD,537,PHY LTS 65+,HOMECARE - SPOT,2103036538,1000079295
05.12.2019,ADULT SOCIAL CARE,SAGECARE LTD,539.75,PHY LTS 65+,HOMECARE - C&V,2103036176,1000080924
05.12.2019,ADULT SOCIAL CARE,SAGECARE LTD,548.25,PHY LTS 65+,HOMECARE - C&V,2103036211,1000080924
05.12.2019,ADULT SOCIAL CARE,THAMES HOMECARE SERVICE LTD,563.85,PHY LTS 65+,HOMECARE - SPOT,2103036507,1000079295
05.12.2019,ADULT SOCIAL CARE,THAMES HOMECARE SERVICE LTD,563.85,PHY LTS 65+,HOMECARE - SPOT,2103036517,1000079295
05.12.2019,ADULT SOCIAL CARE,THAMES HOMECARE SERVICE LTD,563.85,PHY LTS 65+,HOMECARE - SPOT,2103036549,1000079295
05.12.2019,ADULT SOCIAL CARE,SAGECARE LTD,573.75,PHY LTS 65+,HOMECARE - C&V,2103036344,1000080924
05.12.2019,ADULT SOCIAL CARE,SAGECARE LTD,578,PHY LTS 65+,HOMECARE - C&V,2103036105,1000080924
05.12.2019,ADULT SOCIAL CARE,SAGECARE LTD,595,PHY LTS 65+,HOMECARE - C&V,2103036113,1000080924
05.12.2019,ADULT SOCIAL CARE,SAGECARE LTD,600.1,PHY LTS 65+,HOMECARE - C&V,2103036285,1000080924
05.12.2019,ADULT SOCIAL CARE,SAGECARE LTD,603.5,PHY LTS 65+,HOMECARE - C&V,2103036252,1000080924
05.12.2019,ADULT SOCIAL CARE,SAGECARE LTD,624.75,PHY LTS 65+,HOMECARE - C&V,2103036262,1000080924
05.12.2019,ADULT SOCIAL CARE,SAGECARE LTD,624.75,PHY LTS 65+,HOMECARE - C&V,2103036304,1000080924
05.12.2019,ADULT SOCIAL CARE,THAMES HOMECARE SERVICE LTD,635.45,PHY LTS 65+,HOMECARE - C&V,2103036547,1000079295
05.12.2019,ADULT SOCIAL CARE,SAGECARE LTD,658.75,PHY LTS 65+,HOMECARE - C&V,2103036287,1000080924
05.12.2019,ADULT SOCIAL CARE,SAGECARE LTD,663,PHY LTS 65+,HOMECARE - C&V,2103036136,1000080924
05.12.2019,ADULT SOCIAL CARE,SAGECARE LTD,663,PHY LTS 65+,HOMECARE - C&V,2103036231,1000080924
05.12.2019,ADULT SOCIAL CARE,SAGECARE LTD,671.5,PHY LTS 65+,HOMECARE - C&V,2103036197,1000080924
05.12.2019,ADULT SOCIAL CARE,SAGECARE LTD,671.5,PHY LTS 65+,HOMECARE - C&V,2103036334,1000080924
05.12.2019,ADULT SOCIAL CARE,SAGECARE LTD,675.75,PHY LTS 65+,HOMECARE - C&V,2103036140,1000080924
05.12.2019,ADULT SOCIAL CARE,SAGECARE LTD,675.75,PHY LTS 65+,HOMECARE - C&V,2103036203,1000080924
05.12.2019,ADULT SOCIAL CARE,SAGECARE LTD,680,PHY LTS 65+,HOMECARE - C&V,2103036246,1000080924
05.12.2019,ADULT SOCIAL CARE,SAGECARE LTD,688.22,PHY LTS 65+,HOMECARE - C&V,2103036232,1000080924
05.12.2019,ADULT SOCIAL CARE,SAGECARE LTD,688.5,PHY LTS 65+,HOMECARE - C&V,2103036263,1000080924
05.12.2019,ADULT SOCIAL CARE,SAGECARE LTD,692.75,PHY LTS 65+,HOMECARE - C&V,2103036147,1000080924
05.12.2019,ADULT SOCIAL CARE,SAGECARE LTD,697,PHY LTS 65+,HOMECARE - C&V,2103036192,1000080924
05.12.2019,ADULT SOCIAL CARE,SAGECARE LTD,697,PHY LTS 65+,HOMECARE - C&V,2103036294,1000080924
05.12.2019,ADULT SOCIAL CARE,SAGECARE LTD,705.5,PHY LTS 65+,HOMECARE - C&V,2103036241,1000080924
05.12.2019,ADULT SOCIAL CARE,SAGECARE LTD,705.5,PHY LTS 65+,HOMECARE - C&V,2103036342,1000080924
05.12.2019,ADULT SOCIAL CARE,SAGECARE LTD,722.5,PHY LTS 65+,HOMECARE - C&V,2103036188,1000080924
05.12.2019,ADULT SOCIAL CARE,SAGECARE LTD,722.5,PHY LTS 65+,HOMECARE - C&V,2103036290,1000080924
05.12.2019,ADULT SOCIAL CARE,SAGECARE LTD,731,PHY LTS 65+,HOMECARE - C&V,2103036286,1000080924
05.12.2019,ADULT SOCIAL CARE,SAGECARE LTD,731,PHY LTS 65+,HOMECARE - C&V,2103036333,1000080924
05.12.2019,ADULT SOCIAL CARE,SAGECARE LTD,739.5,PHY LTS 65+,HOMECARE - C&V,2103036298,1000080924
05.12.2019,ADULT SOCIAL CARE,SAGECARE LTD,743.75,PHY LTS 65+,HOMECARE - C&V,2103036097,1000080924
05.12.2019,ADULT SOCIAL CARE,SAGECARE LTD,752.25,PHY LTS 65+,HOMECARE - C&V,2103036295,1000080924
05.12.2019,ADULT SOCIAL CARE,ELEANOR NURSING AND SOCIAL CARE LTD,761.2,PHY LTS 65+,HOMECARE - SPOT,2103036474,1000081695
05.12.2019,ADULT SOCIAL CARE,SAGECARE LTD,777.75,PHY LTS 65+,HOMECARE - C&V,2103036086,1000080924
05.12.2019,ADULT SOCIAL CARE,SAGECARE LTD,790.5,PHY LTS 65+,HOMECARE - C&V,2103036235,1000080924
05.12.2019,ADULT SOCIAL CARE,SAGECARE LTD,794.75,PHY LTS 65+,HOMECARE - C&V,2103036134,1000080924
05.12.2019,ADULT SOCIAL CARE,SAGECARE LTD,799,PHY LTS 65+,HOMECARE - C&V,2103036205,1000080924
05.12.2019,ADULT SOCIAL CARE,SAGECARE LTD,803.25,PHY LTS 65+,HOMECARE - C&V,2103036091,1000080924
05.12.2019,ADULT SOCIAL CARE,SAGECARE LTD,807.5,PHY LTS 65+,HOMECARE - C&V,2103036089,1000080924
05.12.2019,ADULT SOCIAL CARE,SAGECARE LTD,807.5,PHY LTS 65+,HOMECARE - C&V,2103036174,1000080924
05.12.2019,ADULT SOCIAL CARE,SAGECARE LTD,807.5,PHY LTS 65+,HOMECARE - C&V,2103036221,1000080924
05.12.2019,ADULT SOCIAL CARE,THAMES HOMECARE SERVICE LTD,814.45,PHY LTS 65+,HOMECARE - SPOT,2103036499,1000079295
05.12.2019,ADULT SOCIAL CARE,SAGECARE LTD,816,PHY LTS 65+,HOMECARE - C&V,2103036322,1000080924
05.12.2019,ADULT SOCIAL CARE,SAGECARE LTD,824.5,PHY LTS 65+,HOMECARE - C&V,2103036194,1000080924
05.12.2019,ADULT SOCIAL CARE,SAGECARE LTD,827.33,PHY LTS 65+,HOMECARE - C&V,2103036144,1000080924
05.12.2019,ADULT SOCIAL CARE,SAGECARE LTD,837.25,PHY LTS 65+,HOMECARE - C&V,2103036256,1000080924
05.12.2019,ADULT SOCIAL CARE,SAGECARE LTD,841.5,PHY LTS 65+,HOMECARE - C&V,2103036095,1000080924
05.12.2019,ADULT SOCIAL CARE,SAGECARE LTD,845.75,PHY LTS 65+,HOMECARE - C&V,2103036137,1000080924
05.12.2019,ADULT SOCIAL CARE,ELEANOR NURSING AND SOCIAL CARE LTD,847.84,PHY LTS 65+,HOMECARE - SPOT,2103036469,1000081695
05.12.2019,ADULT SOCIAL CARE,SAGECARE LTD,867,PHY LTS 65+,HOMECARE - C&V,2103036219,1000080924
05.12.2019,ADULT SOCIAL CARE,SAGECARE LTD,868.7,PHY LTS 65+,HOMECARE - C&V,2103036292,1000080924
05.12.2019,ADULT SOCIAL CARE,SAGECARE LTD,875.5,PHY LTS 65+,HOMECARE - C&V,2103036165,1000080924
05.12.2019,ADULT SOCIAL CARE,SAGECARE LTD,884,PHY LTS 65+,HOMECARE - C&V,2103036114,1000080924
05.12.2019,ADULT SOCIAL CARE,SAGECARE LTD,901,PHY LTS 65+,HOMECARE - C&V,2103036098,1000080924
05.12.2019,ADULT SOCIAL CARE,SAGECARE LTD,905.25,PHY LTS 65+,HOMECARE - C&V,2103036209,1000080924
05.12.2019,ADULT SOCIAL CARE,SAGECARE LTD,905.25,PHY LTS 65+,HOMECARE - C&V,2103036222,1000080924
05.12.2019,ADULT SOCIAL CARE,SAGECARE LTD,913.75,PHY LTS 65+,HOMECARE - SPOT,2103036115,1000080924
05.12.2019,ADULT SOCIAL CARE,ELEANOR NURSING AND SOCIAL CARE LTD,917.04,PHY LTS 65+,HOMECARE - SPOT,2103036475,1000081695
05.12.2019,ADULT SOCIAL CARE,SAGECARE LTD,922.25,PHY LTS 65+,HOMECARE - C&V,2103036182,1000080924
05.12.2019,ADULT SOCIAL CARE,SAGECARE LTD,935,PHY LTS 65+,HOMECARE - C&V,2103036325,1000080924
05.12.2019,ADULT SOCIAL CARE,SAGECARE LTD,939.25,PHY LTS 65+,HOMECARE - C&V,2103036178,1000080924
05.12.2019,ADULT SOCIAL CARE,SAGECARE LTD,956.25,PHY LTS 65+,HOMECARE - C&V,2103036233,1000080924
05.12.2019,ADULT SOCIAL CARE,SAGECARE LTD,959.93,PHY LTS 65+,HOMECARE - C&V,2103036200,1000080924
05.12.2019,ADULT SOCIAL CARE,SAGECARE LTD,981.75,PHY LTS 65+,HOMECARE - C&V,2103036237,1000080924
05.12.2019,ADULT SOCIAL CARE,SAGECARE LTD,981.75,PHY LTS 65+,HOMECARE - C&V,2103036330,1000080924
05.12.2019,ADULT SOCIAL CARE,SAGECARE LTD,986,PHY LTS 65+,HOMECARE - C&V,2103036106,1000080924
05.12.2019,ADULT SOCIAL CARE,SAGECARE LTD,990.25,PHY LTS 65+,HOMECARE - C&V,2103036118,1000080924
05.12.2019,ADULT SOCIAL CARE,SAGECARE LTD,"1,003.00",PHY LTS 65+,HOMECARE - C&V,2103036102,1000080924
05.12.2019,ADULT SOCIAL CARE,SAGECARE LTD,"1,003.00",PHY LTS 65+,HOMECARE - C&V,2103036168,1000080924
05.12.2019,ADULT SOCIAL CARE,ELEANOR NURSING AND SOCIAL CARE LTD,"1,020.76",PHY LTS 65+,HOMECARE - SPOT,2103036473,1000081695
05.12.2019,ADULT SOCIAL CARE,THAMES HOMECARE SERVICE LTD,"1,029.25",PHY LTS 65+,HOMECARE - SPOT,2103036513,1000079295
05.12.2019,ADULT SOCIAL CARE,SAGECARE LTD,"1,037.00",PHY LTS 65+,HOMECARE - C&V,2103036259,1000080924
05.12.2019,ADULT SOCIAL CARE,SAGECARE LTD,"1,045.50",PHY LTS 65+,HOMECARE - C&V,2103036251,1000080924
05.12.2019,ADULT SOCIAL CARE,SAGECARE LTD,"1,049.75",PHY LTS 65+,HOMECARE - C&V,2103036314,1000080924
05.12.2019,ADULT SOCIAL CARE,SAGECARE LTD,"1,062.50",PHY LTS 65+,HOMECARE - C&V,2103036210,1000080924
05.12.2019,ADULT SOCIAL CARE,SAGECARE LTD,"1,075.25",PHY LTS 65+,HOMECARE - C&V,2103036224,1000080924
05.12.2019,ADULT SOCIAL CARE,SAGECARE LTD,"1,079.50",PHY LTS 65+,HOMECARE - C&V,2103036090,1000080924
05.12.2019,ADULT SOCIAL CARE,SAGECARE LTD,"1,079.50",PHY LTS 65+,HOMECARE - C&V,2103036170,1000080924
05.12.2019,ADULT SOCIAL CARE,SAGECARE LTD,"1,079.50",PHY LTS 65+,HOMECARE - C&V,2103036216,1000080924
05.12.2019,ADULT SOCIAL CARE,SAGECARE LTD,"1,083.75",PHY LTS 65+,HOMECARE - C&V,2103036099,1000080924
05.12.2019,ADULT SOCIAL CARE,SAGECARE LTD,"1,096.50",PHY LTS 65+,HOMECARE - C&V,2103036186,1000080924
05.12.2019,ADULT SOCIAL CARE,SAGECARE LTD,"1,113.50",PHY LTS 65+,HOMECARE - C&V,2103036110,1000080924
05.12.2019,ADULT SOCIAL CARE,SAGECARE LTD,"1,117.75",PHY LTS 65+,HOMECARE - C&V,2103036250,1000080924
05.12.2019,ADULT SOCIAL CARE,SAGECARE LTD,"1,133.33",PHY LTS 65+,HOMECARE - C&V,2103036191,1000080924
05.12.2019,ADULT SOCIAL CARE,SAGECARE LTD,"1,147.50",PHY LTS 65+,HOMECARE - C&V,2103036088,1000080924
05.12.2019,ADULT SOCIAL CARE,SAGECARE LTD,"1,185.75",PHY LTS 65+,HOMECARE - C&V,2103036242,1000080924
05.12.2019,ADULT SOCIAL CARE,SAGECARE LTD,"1,190.00",PHY LTS 65+,HOMECARE - C&V,2103036346,1000080924
05.12.2019,ADULT SOCIAL CARE,SAGECARE LTD,"1,194.25",PHY LTS 65+,HOMECARE - C&V,2103036340,1000080924
05.12.2019,ADULT SOCIAL CARE,ELEANOR NURSING AND SOCIAL CARE LTD,"1,206.82",PHY LTS 65+,HOMECARE - SPOT,2103036493,1000081695
05.12.2019,ADULT SOCIAL CARE,SAGECARE LTD,"1,224.00",PHY LTS 65+,HOMECARE - C&V,2103036313,1000080924
05.12.2019,ADULT SOCIAL CARE,SAGECARE LTD,"1,228.25",PHY LTS 65+,HOMECARE - C&V,2103036201,1000080924
05.12.2019,ADULT SOCIAL CARE,SAGECARE LTD,"1,228.25",PHY LTS 65+,HOMECARE - C&V,2103036206,1000080924
05.12.2019,ADULT SOCIAL CARE,SAGECARE LTD,"1,245.25",PHY LTS 65+,HOMECARE - C&V,2103036154,1000080924
05.12.2019,ADULT SOCIAL CARE,SAGECARE LTD,"1,258.00",PHY LTS 65+,HOMECARE - C&V,2103036347,1000080924
05.12.2019,ADULT SOCIAL CARE,SAGECARE LTD,"1,283.50",PHY LTS 65+,HOMECARE - C&V,2103036329,1000080924
05.12.2019,ADULT SOCIAL CARE,SAGECARE LTD,"1,296.25",PHY LTS 65+,HOMECARE - C&V,2103036204,1000080924
05.12.2019,ADULT SOCIAL CARE,SAGECARE LTD,"1,309.00",PHY LTS 65+,HOMECARE - C&V,2103036116,1000080924
05.12.2019,ADULT SOCIAL CARE,SAGECARE LTD,"1,428.00",PHY LTS 65+,HOMECARE - C&V,2103036277,1000080924
05.12.2019,ADULT SOCIAL CARE,SAGECARE LTD,"1,487.50",PHY LTS 65+,HOMECARE - C&V,2103036230,1000080924
05.12.2019,ADULT SOCIAL CARE,ELEANOR NURSING AND SOCIAL CARE LTD,"1,522.68",PHY LTS 65+,HOMECARE - SPOT,2103036478,1000081695
05.12.2019,ADULT SOCIAL CARE,SAGECARE LTD,"1,564.00",PHY LTS 65+,HOMECARE - C&V,2103036139,1000080924
05.12.2019,ADULT SOCIAL CARE,SAGECARE LTD,"1,576.75",PHY LTS 65+,HOMECARE - C&V,2103036145,1000080924
05.12.2019,ADULT SOCIAL CARE,SAGECARE LTD,"1,691.50",PHY LTS 65+,HOMECARE - C&V,2103036162,1000080924
05.12.2019,ADULT SOCIAL CARE,SAGECARE LTD,"1,789.53",PHY LTS 65+,HOMECARE - C&V,2103036348,1000080924
05.12.2019,ADULT SOCIAL CARE,SAGECARE LTD,"2,167.50",PHY LTS 65+,HOMECARE - C&V,2103036266,1000080924
05.12.2019,ADULT SOCIAL CARE,SAGECARE LTD,"2,167.50",PHY LTS 65+,HOMECARE - C&V,2103036326,1000080924
05.12.2019,ADULT SOCIAL CARE,SAGECARE LTD,"2,197.25",PHY LTS 65+,HOMECARE - C&V,2103036124,1000080924
05.12.2019,ADULT SOCIAL CARE,SAGECARE LTD,"2,201.50",PHY LTS 65+,HOMECARE - C&V,2103036349,1000080924
05.12.2019,ADULT SOCIAL CARE,SAGECARE LTD,"2,244.00",PHY LTS 65+,HOMECARE - C&V,2103036305,1000080924
05.12.2019,ADULT SOCIAL CARE,SAGECARE LTD,"2,273.75",PHY LTS 65+,HOMECARE - C&V,2103036296,1000080924
05.12.2019,ADULT SOCIAL CARE,SAGECARE LTD,"2,282.25",PHY LTS 65+,HOMECARE - C&V,2103036187,1000080924
05.12.2019,ADULT SOCIAL CARE,SAGECARE LTD,"2,320.50",PHY LTS 65+,HOMECARE - C&V,2103036309,1000080924
05.12.2019,ADULT SOCIAL CARE,SAGECARE LTD,"2,414.00",PHY LTS 65+,HOMECARE - C&V,2103036265,1000080924
05.12.2019,ADULT SOCIAL CARE,SAGECARE LTD,"2,414.00",PHY LTS 65+,HOMECARE - C&V,2103036345,1000080924
05.12.2019,ADULT SOCIAL CARE,SAGECARE LTD,"2,418.25",PHY LTS 65+,HOMECARE - C&V,2103036240,1000080924
05.12.2019,ADULT SOCIAL CARE,SAGECARE LTD,"2,418.25",PHY LTS 65+,HOMECARE - C&V,2103036324,1000080924
05.12.2019,ADULT SOCIAL CARE,SAGECARE LTD,"2,469.25",PHY LTS 65+,HOMECARE - C&V,2103036207,1000080924
05.12.2019,ADULT SOCIAL CARE,SAGECARE LTD,"2,537.25",PHY LTS 65+,HOMECARE - C&V,2103036167,1000080924
05.12.2019,ADULT SOCIAL CARE,SAGECARE LTD,"2,550.00",PHY LTS 65+,HOMECARE - C&V,2103036177,1000080924
05.12.2019,ADULT SOCIAL CARE,SAGECARE LTD,"2,601.00",PHY LTS 65+,HOMECARE - C&V,2103036195,1000080924
05.12.2019,ADULT SOCIAL CARE,SAGECARE LTD,"3,004.75",PHY LTS 65+,HOMECARE - C&V,2103036225,1000080924
05.12.2019,ADULT SOCIAL CARE,SAGECARE LTD,"3,162.00",PHY LTS 65+,HOMECARE - C&V,2103036270,1000080924
05.12.2019,ADULT SOCIAL CARE,THAMES HOMECARE SERVICE LTD,411.7,PHY STS 18-64,HOMECARE - IC,2103036509,1000079295
05.12.2019,ADULT SOCIAL CARE,SAGECARE LTD,272,PHY STS 65+,HOMECARE - IC,2103036556,1000080924
05.12.2019,ADULT SOCIAL CARE,SAGECARE LTD,841.5,PHY STS 65+,HOMECARE - IC,2103036558,1000080924
05.12.2019,ADULT SOCIAL CARE,SYKES CHOICE LTD,"2,888.40",SAFEGUARDING & DOLS,OTHER CONTRACTORS,5902391762,1000082690
05.12.2019,ADULT SOCIAL CARE,ELEANOR NURSING AND SOCIAL CARE LTD,917.04,SEN LTS 65+,HOMECARE - SPOT,2103036470,1000081695
05.12.2019,ADULT SOCIAL CARE,THAMES HOMECARE SERVICE LTD,268.5,SOCIAL ISOLATION,HOMECARE - SPOT,2103036532,1000079295
05.12.2019,ADULT SOCIAL CARE,SAGECARE LTD,340.28,SOCIAL ISOLATION,HOMECARE - C&V,2103036268,1000080924
05.12.2019,ADULT SOCIAL CARE,SAGECARE LTD,391,SOCIAL ISOLATION,HOMECARE - C&V,2103036109,1000080924
05.12.2019,ADULT SOCIAL CARE,SAGECARE LTD,480.25,SOCIAL ISOLATION,HOMECARE - C&V,2103036300,1000080924
05.12.2019,ADULT SOCIAL CARE,SURREY DOCKS FARM PROVIDENT SOCIETY,500,SOCIAL ISOLATION,DAYCARE,2103036562,1000000958
05.12.2019,ADULT SOCIAL CARE,SAGECARE LTD,786.25,SOCIAL ISOLATION,HOMECARE - C&V,2103036104,1000080924
05.12.2019,ADULT SOCIAL CARE,SAGECARE LTD,"2,503.25",SOCIAL ISOLATION,HOMECARE - C&V,2103036257,1000080924
05.12.2019,ADULT SOCIAL CARE,SAGECARE LTD,"2,915.50",SOCIAL ISOLATION,HOMECARE - C&V,2103036255,1000080924
05.12.2019,ADULT SOCIAL CARE,POTTON KARE SERVICES LTD,395.1,SPECIALIST CARE,SECTION 17 PAYMENTS TO AGENCIES/CARERS,2103036458,1000080630
05.12.2019,ADULT SOCIAL CARE,POTTON KARE SERVICES LTD,455.4,SPECIALIST CARE,SECTION 17 PAYMENTS TO AGENCIES/CARERS,2103036465,1000080630
05.12.2019,ADULT SOCIAL CARE,POTTON KARE SERVICES LTD,525.15,SPECIALIST CARE,SECTION 17 PAYMENTS TO AGENCIES/CARERS,2103036459,1000080630
05.12.2019,ADULT SOCIAL CARE,POTTON KARE SERVICES LTD,667.2,SPECIALIST CARE,SECTION 17 PAYMENTS TO AGENCIES/CARERS,2103036454,1000080630
05.12.2019,ADULT SOCIAL CARE,POTTON KARE SERVICES LTD,711.45,SPECIALIST CARE,SECTION 17 PAYMENTS TO AGENCIES/CARERS,2103036455,1000080630
05.12.2019,ADULT SOCIAL CARE,POTTON KARE SERVICES LTD,744.9,SPECIALIST CARE,SECTION 17 PAYMENTS TO AGENCIES/CARERS,2103036466,1000080630
05.12.2019,ADULT SOCIAL CARE,INTERSERVE HEALTHCARE,"1,593.25",SPECIALIST CARE,SECTION 17 PAYMENTS TO AGENCIES/CARERS,2103036452,1000049612
05.12.2019,ASSET MANAGEMENT,PRB ESTATES LTD,"26,400.90",MAJOR REPAIRS,BUILDING R&M,2103036606,3000001691
05.12.2019,CENTRAL FUNCTIONS,TEAL CONSULTING LTD,"2,359.88",OPERATIONAL TEAM,OTHER CONTRACTORS,5902390568,1000075983
05.12.2019,CENTRAL FUNCTIONS,TEAL CONSULTING LTD,"6,896.50",OPERATIONAL TEAM,OTHER CONTRACTORS,5902390570,1000075983
05.12.2019,CHIEF EXECUTIVE,LOLLY UK LTD,"5,000.00",CAPITAL PS (REGEN),CONSTRUCTION FEES  - EXTERNAL,5902390899,1000083050
05.12.2019,CHILDREN AND ADULT,TECHNIFORM GRAPHICS LTD,365,CAPITAL PS (SOC SERV),FURNITURE & FITTINGS ACQUISITION,5902391719,1447223
05.12.2019,CHILDREN'S SERVICES,ANTALIS LTD,584,CENTRAL SUPPORT,STATIONERY,5902391681,1000066919
05.12.2019,CHILDREN'S SERVICES,ISABELLE GRAVENSTEIN T/A REVIVAL,928,CENTRAL SUPPORT,MEDICAL / HEALTH & SAFETY SERVICES,5902391683,1000027424
05.12.2019,CHILDREN'S SERVICES,NCFE,819,DIRECT DELIVERY,MATERIALS,5902391877,1000048913
05.12.2019,CHILDREN'S SERVICES,REDACTED PERSONAL DATA,733.57,DISABILITY & HIV,PAYMENTS TO CARERS,REDACTED,REDACTED
05.12.2019,CHILDREN'S SERVICES,RYANCARE FOSTERING,400,FRIENDS & FAMILY FOSTERING,COMPUTER CONSUMABLES,5902391830,1000062376
05.12.2019,CHILDREN'S SERVICES,BY THE BRIDGE LTD,544.44,FRIENDS & FAMILY FOSTERING,EXTERNAL AGENCIES AND BODIES,5902391839,1000043961
05.12.2019,CHILDREN'S SERVICES,GREATER LONDON FOSTERING,300,FURTHER EDUCATION SUPPORT,CLIENT TRANSPORT,5902391840,1000029184
05.12.2019,CHILDREN'S SERVICES,ISWP ASSESSMENT SERVICES LTD,267.97,LEGAL,LEGAL FEES & COURT COSTS,2103035809,1000083591
05.12.2019,CHILDREN'S SERVICES,KENT COUNTY COUNCIL - LASER,"1,513.27",MGMT & PARENTING PROG TEAM,INTERPRETING SERVICES,5902390696,1000012926
05.12.2019,CHILDREN'S SERVICES,DULWICH MONTESSORI NURSERY SCHOOL,310.05,NURSERY ED GRANT 3 AND 4 YR OLDS,GRANTS,2103036571,1000020859
05.12.2019,CHILDREN'S SERVICES,ANGEL OAK ACADEMY,413.4,NURSERY ED GRANT 3 AND 4 YR OLDS,GRANTS,2103036565,1000075379
05.12.2019,CHILDREN'S SERVICES,ELEPHANT & CASTLE DAY NURSERY LTD,413.4,NURSERY ED GRANT 3 AND 4 YR OLDS,GRANTS,2103036575,11329999
05.12.2019,CHILDREN'S SERVICES,SANDRA LITCHMORE,413.4,NURSERY ED GRANT 3 AND 4 YR OLDS,GRANTS,2103036576,1000067981
05.12.2019,CHILDREN'S SERVICES,REDRIFF PRIMARY SCHOOL,413.4,NURSERY ED GRANT 3 AND 4 YR OLDS,GRANTS,2103036590,1000067877
05.12.2019,CHILDREN'S SERVICES,THE FRUIT TREE DAY NURSERY,516.75,NURSERY ED GRANT 3 AND 4 YR OLDS,GRANTS,2103036593,1000072492
05.12.2019,CHILDREN'S SERVICES,TODDLE ON INN LTD,516.75,NURSERY ED GRANT 3 AND 4 YR OLDS,GRANTS,2103036595,1000076934
05.12.2019,CHILDREN'S SERVICES,VICTORY IN COMMUNITY RESOURCE CENTRE,516.75,NURSERY ED GRANT 3 AND 4 YR OLDS,GRANTS,2103036596,1000058383
05.12.2019,CHILDREN'S SERVICES,DYASON PRE-SCHOOL,620.1,NURSERY ED GRANT 3 AND 4 YR OLDS,GRANTS,2103036573,11255736
05.12.2019,CHILDREN'S SERVICES,HEAVEN SENT NURSERY LTD,620.1,NURSERY ED GRANT 3 AND 4 YR OLDS,GRANTS,2103036580,1000071859
05.12.2019,CHILDREN'S SERVICES,CTY NURSERY LTD,723.45,NURSERY ED GRANT 3 AND 4 YR OLDS,GRANTS,2103036569,1000063131
05.12.2019,CHILDREN'S SERVICES,SURREY SQUARE PRIMARY SCHOOL,723.45,NURSERY ED GRANT 3 AND 4 YR OLDS,GRANTS,2103036592,1000082648
05.12.2019,CHILDREN'S SERVICES,GOOSE GREEN PRIMARY AND NURSERY SCHOOL,826.8,NURSERY ED GRANT 3 AND 4 YR OLDS,GRANTS,2103036578,1000070613
05.12.2019,CHILDREN'S SERVICES,LITTLE ACORNS DAY NURSERY,826.8,NURSERY ED GRANT 3 AND 4 YR OLDS,GRANTS,2103036584,1000015844
05.12.2019,CHILDREN'S SERVICES,JOHN DONNE PRIMARY SCHOOL,"1,550.25",NURSERY ED GRANT 3 AND 4 YR OLDS,GRANTS,2103036582,1000073253
05.12.2019,CHILDREN'S SERVICES,KEYS CHILDCARE LTD,857.14,RESIDENTIAL,OTHER PAYMENTS FOR CLIENTS,2103036443,1000081582
05.12.2019,CHILDREN'S SERVICES,PLUS ONE LTD,"6,421.43",RESIDENTIAL,RESIDENTIAL CARE,2103036444,1000013874
05.12.2019,CHILDREN'S SERVICES,THE DRIVE CARE HOMES LTD,"13,670.83",RESIDENTIAL,RESIDENTIAL CARE,2103036468,1000003889
05.12.2019,CHILDREN'S SERVICES,HORIZON CARE & EDUCATION GROUP LTD,"14,357.10",RESIDENTIAL,RESIDENTIAL CARE,2103036436,1000075467
05.12.2019,CHILDREN'S SERVICES,ST CHRISTOPHER FELLOWSHIP,"14,571.30",RESIDENTIAL,RESIDENTIAL CARE,2103036429,1000045269
05.12.2019,CHILDREN'S SERVICES,HILLCREST CARE SERVICES LTD,"14,957.14",RESIDENTIAL,RESIDENTIAL CARE,2103036433,1000071137
05.12.2019,CHILDREN'S SERVICES,ACORN HOMES (UK) LTD,"16,071.30",RESIDENTIAL,RESIDENTIAL CARE,2103036428,1000080423
05.12.2019,CHILDREN'S SERVICES,KEYS CHILDCARE LTD,"16,071.43",RESIDENTIAL,RESIDENTIAL CARE,2103036442,1000081582
05.12.2019,CHILDREN'S SERVICES,CASTLE HOMES LIMITED,"16,344.69",RESIDENTIAL,RESIDENTIAL CARE,2103036439,1000019388
05.12.2019,CHILDREN'S SERVICES,EXCEPTIONAL CARE LTD,"18,000.00",RESIDENTIAL,RESIDENTIAL CARE,2103036467,1000080896
05.12.2019,CHILDREN'S SERVICES,CASTLE HOMES LIMITED,"19,285.71",RESIDENTIAL,RESIDENTIAL CARE,2103036445,1000019388
05.12.2019,CHILDREN'S SERVICES,KEYS SPECIALIST RESIDENTIAL CHILDREN'S SERVICES,"21,214.29",RESIDENTIAL,RESIDENTIAL CARE,2103036440,1000081606
05.12.2019,CHILDREN'S SERVICES,CHILDHOOD FIRST,"21,484.29",RESIDENTIAL,RESIDENTIAL CARE,2103036435,1000076330
05.12.2019,CHILDREN'S SERVICES,CHILDHOOD FIRST,"23,271.43",RESIDENTIAL,RESIDENTIAL CARE,2103036430,1000076330
05.12.2019,CHILDREN'S SERVICES,OUTBOUND CARE LTD,"27,875.14",RESIDENTIAL,RESIDENTIAL CARE,2103036434,1000083072
05.12.2019,CHILDREN'S SERVICES,AREA CAMDEN LTD,"39,642.85",RESIDENTIAL,RESIDENTIAL CARE,2103036441,1000083221
05.12.2019,CHILDREN'S SERVICES,UNIVERSITY OF BATH,"9,250.00",SCHOLARSHIP SCHEME,EXTERNAL AGENCIES AND BODIES,5902391801,1000042106
05.12.2019,CHILDREN'S SERVICES,UNIVERSITY OF EXETER,"9,250.00",SCHOLARSHIP SCHEME,EXTERNAL AGENCIES AND BODIES,5902391808,1000042056
05.12.2019,CHILDREN'S SERVICES,PURPLE PEBBLES(CHILD CARE) SERVICES,"-1,449.53",SEMI INDEPENDENT CARE LEAVERS,EXTERNAL AGENCIES AND BODIES,2103036392,1000070705
05.12.2019,CHILDREN'S SERVICES,PURPLE PEBBLES(CHILD CARE) SERVICES,"-1,395.50",SEMI INDEPENDENT CARE LEAVERS,EXTERNAL AGENCIES AND BODIES,2103036370,1000070705
05.12.2019,CHILDREN'S SERVICES,PURPLE PEBBLES(CHILD CARE) SERVICES,-866.67,SEMI INDEPENDENT CARE LEAVERS,EXTERNAL AGENCIES AND BODIES,2103036350,1000070705
05.12.2019,CHILDREN'S SERVICES,PURPLE PEBBLES(CHILD CARE) SERVICES,-697.75,SEMI INDEPENDENT CARE LEAVERS,EXTERNAL AGENCIES AND BODIES,2103036362,1000070705
05.12.2019,CHILDREN'S SERVICES,PURPLE PEBBLES(CHILD CARE) SERVICES,-697.75,SEMI INDEPENDENT CARE LEAVERS,EXTERNAL AGENCIES AND BODIES,2103036401,1000070705
05.12.2019,CHILDREN'S SERVICES,PURPLE PEBBLES(CHILD CARE) SERVICES,321.43,SEMI INDEPENDENT CARE LEAVERS,EXTERNAL AGENCIES AND BODIES,2103036353,1000070705
05.12.2019,CHILDREN'S SERVICES,PURPLE PEBBLES(CHILD CARE) SERVICES,325,SEMI INDEPENDENT CARE LEAVERS,EXTERNAL AGENCIES AND BODIES,2103036372,1000070705
05.12.2019,CHILDREN'S SERVICES,PURPLE PEBBLES(CHILD CARE) SERVICES,325,SEMI INDEPENDENT CARE LEAVERS,EXTERNAL AGENCIES AND BODIES,2103036381,1000070705
05.12.2019,CHILDREN'S SERVICES,PURPLE PEBBLES(CHILD CARE) SERVICES,325,SEMI INDEPENDENT CARE LEAVERS,EXTERNAL AGENCIES AND BODIES,2103036382,1000070705
05.12.2019,CHILDREN'S SERVICES,PURPLE PEBBLES(CHILD CARE) SERVICES,325,SEMI INDEPENDENT CARE LEAVERS,EXTERNAL AGENCIES AND BODIES,2103036393,1000070705
05.12.2019,CHILDREN'S SERVICES,PURPLE PEBBLES(CHILD CARE) SERVICES,325,SEMI INDEPENDENT CARE LEAVERS,EXTERNAL AGENCIES AND BODIES,2103036397,1000070705
05.12.2019,CHILDREN'S SERVICES,PURPLE PEBBLES(CHILD CARE) SERVICES,350,SEMI INDEPENDENT CARE LEAVERS,EXTERNAL AGENCIES AND BODIES,2103036358,1000070705
05.12.2019,CHILDREN'S SERVICES,SILVER BIRCH CARE LTD,375,SEMI INDEPENDENT CARE LEAVERS,EXTERNAL AGENCIES AND BODIES,2103036379,1000076525
05.12.2019,CHILDREN'S SERVICES,PURPLE PEBBLES(CHILD CARE) SERVICES,550,SEMI INDEPENDENT CARE LEAVERS,EXTERNAL AGENCIES AND BODIES,2103036395,1000070705
05.12.2019,CHILDREN'S SERVICES,PURPLE PEBBLES(CHILD CARE) SERVICES,575,SEMI INDEPENDENT CARE LEAVERS,EXTERNAL AGENCIES AND BODIES,2103036391,1000070705
05.12.2019,CHILDREN'S SERVICES,PURPLE PEBBLES(CHILD CARE) SERVICES,"1,150.00",SEMI INDEPENDENT CARE LEAVERS,EXTERNAL AGENCIES AND BODIES,2103036367,1000070705
05.12.2019,CHILDREN'S SERVICES,PURPLE PEBBLES(CHILD CARE) SERVICES,"1,285.71",SEMI INDEPENDENT CARE LEAVERS,EXTERNAL AGENCIES AND BODIES,2103036387,1000070705
05.12.2019,CHILDREN'S SERVICES,PURPLE PEBBLES(CHILD CARE) SERVICES,"1,328.57",SEMI INDEPENDENT CARE LEAVERS,EXTERNAL AGENCIES AND BODIES,2103036373,1000070705
05.12.2019,CHILDREN'S SERVICES,PURPLE PEBBLES(CHILD CARE) SERVICES,"1,328.57",SEMI INDEPENDENT CARE LEAVERS,EXTERNAL AGENCIES AND BODIES,2103036394,1000070705
05.12.2019,CHILDREN'S SERVICES,PURPLE PEBBLES(CHILD CARE) SERVICES,"1,328.57",SEMI INDEPENDENT CARE LEAVERS,EXTERNAL AGENCIES AND BODIES,2103036398,1000070705
05.12.2019,CHILDREN'S SERVICES,PURPLE PEBBLES(CHILD CARE) SERVICES,"1,339.29",SEMI INDEPENDENT CARE LEAVERS,EXTERNAL AGENCIES AND BODIES,2103036368,1000070705
05.12.2019,CHILDREN'S SERVICES,PURPLE PEBBLES(CHILD CARE) SERVICES,"1,372.86",SEMI INDEPENDENT CARE LEAVERS,EXTERNAL AGENCIES AND BODIES,2103036402,1000070705
05.12.2019,CHILDREN'S SERVICES,PURPLE PEBBLES(CHILD CARE) SERVICES,"1,392.86",SEMI INDEPENDENT CARE LEAVERS,EXTERNAL AGENCIES AND BODIES,2103036375,1000070705
05.12.2019,CHILDREN'S SERVICES,PURPLE PEBBLES(CHILD CARE) SERVICES,"1,392.86",SEMI INDEPENDENT CARE LEAVERS,EXTERNAL AGENCIES AND BODIES,2103036386,1000070705
05.12.2019,CHILDREN'S SERVICES,FINEFAIR LTD,"1,632.90",SEMI INDEPENDENT CARE LEAVERS,EXTERNAL AGENCIES AND BODIES,2103036354,1000075570
05.12.2019,CHILDREN'S SERVICES,PURPLE PEBBLES(CHILD CARE) SERVICES,"1,650.00",SEMI INDEPENDENT CARE LEAVERS,EXTERNAL AGENCIES AND BODIES,2103036363,1000070705
05.12.2019,CHILDREN'S SERVICES,PURPLE PEBBLES(CHILD CARE) SERVICES,"1,650.00",SEMI INDEPENDENT CARE LEAVERS,EXTERNAL AGENCIES AND BODIES,2103036365,1000070705
05.12.2019,CHILDREN'S SERVICES,HEARTWOOD OUTREACH SERVICES LTD,"1,826.70",SEMI INDEPENDENT CARE LEAVERS,EXTERNAL AGENCIES AND BODIES,2103036448,1000075021
05.12.2019,CHILDREN'S SERVICES,PURPLE PEBBLES(CHILD CARE) SERVICES,"2,640.00",SEMI INDEPENDENT CARE LEAVERS,EXTERNAL AGENCIES AND BODIES,2103036404,1000070705
05.12.2019,CHILDREN'S SERVICES,ADULLAM SUPPORT LTD,"2,989.28",SEMI INDEPENDENT CARE LEAVERS,EXTERNAL AGENCIES AND BODIES,2103036451,1000081148
05.12.2019,CHILDREN'S SERVICES,FINEFAIR LTD,"3,021.30",SEMI INDEPENDENT CARE LEAVERS,EXTERNAL AGENCIES AND BODIES,2103036385,1000075570
05.12.2019,CHILDREN'S SERVICES,SYDNEY CARE LTD,"3,621.42",SEMI INDEPENDENT CARE LEAVERS,EXTERNAL AGENCIES AND BODIES,2103036355,1000081598
05.12.2019,CHILDREN'S SERVICES,ADULLAM SUPPORT LTD,"4,368.52",SEMI INDEPENDENT CARE LEAVERS,EXTERNAL AGENCIES AND BODIES,2103036449,1000081148
05.12.2019,CHILDREN'S SERVICES,PURPLE PEBBLES(CHILD CARE) SERVICES,325,SEMI INDEPENDENT LAC,EXTERNAL AGENCIES AND BODIES,2103036374,1000070705
05.12.2019,CHILDREN'S SERVICES,PURPLE PEBBLES(CHILD CARE) SERVICES,350,SEMI INDEPENDENT LAC,EXTERNAL AGENCIES AND BODIES,2103036405,1000070705
05.12.2019,CHILDREN'S SERVICES,PURPLE PEBBLES(CHILD CARE) SERVICES,350,SEMI INDEPENDENT LAC,EXTERNAL AGENCIES AND BODIES,2103036418,1000070705
05.12.2019,CHILDREN'S SERVICES,PURPLE PEBBLES(CHILD CARE) SERVICES,450,SEMI INDEPENDENT LAC,EXTERNAL AGENCIES AND BODIES,2103036414,1000070705
05.12.2019,CHILDREN'S SERVICES,PURPLE PEBBLES(CHILD CARE) SERVICES,"1,100.00",SEMI INDEPENDENT LAC,EXTERNAL AGENCIES AND BODIES,2103036419,1000070705
05.12.2019,CHILDREN'S SERVICES,PURPLE PEBBLES(CHILD CARE) SERVICES,"1,285.71",SEMI INDEPENDENT LAC,EXTERNAL AGENCIES AND BODIES,2103036361,1000070705
05.12.2019,CHILDREN'S SERVICES,PURPLE PEBBLES(CHILD CARE) SERVICES,"1,328.57",SEMI INDEPENDENT LAC,EXTERNAL AGENCIES AND BODIES,2103036421,1000070705
05.12.2019,CHILDREN'S SERVICES,PURPLE PEBBLES(CHILD CARE) SERVICES,"1,371.43",SEMI INDEPENDENT LAC,EXTERNAL AGENCIES AND BODIES,2103036406,1000070705
05.12.2019,CHILDREN'S SERVICES,PURPLE PEBBLES(CHILD CARE) SERVICES,"1,371.43",SEMI INDEPENDENT LAC,EXTERNAL AGENCIES AND BODIES,2103036420,1000070705
05.12.2019,CHILDREN'S SERVICES,ADULLAM SUPPORT LTD,"1,379.24",SEMI INDEPENDENT LAC,EXTERNAL AGENCIES AND BODIES,2103036450,1000081148
05.12.2019,CHILDREN'S SERVICES,PURPLE PEBBLES(CHILD CARE) SERVICES,"1,417.14",SEMI INDEPENDENT LAC,EXTERNAL AGENCIES AND BODIES,2103036423,1000070705
05.12.2019,CHILDREN'S SERVICES,YOUNG LONDON TODAY,"3,428.40",SEMI INDEPENDENT LAC,EXTERNAL AGENCIES AND BODIES,2103036425,1000071232
05.12.2019,CHILDREN'S SERVICES,YOUNG LONDON TODAY,"3,542.68",SEMI INDEPENDENT LAC,EXTERNAL AGENCIES AND BODIES,2103036416,1000071232
05.12.2019,CHILDREN'S SERVICES,SILVER BIRCH CARE LTD,"4,099.79",SEMI INDEPENDENT LAC,EXTERNAL AGENCIES AND BODIES,2103036408,1000076525
05.12.2019,CHILDREN'S SERVICES,SYDNEY CARE LTD,"7,071.42",SEMI INDEPENDENT LAC,EXTERNAL AGENCIES AND BODIES,2103036415,1000081598
05.12.2019,CHILDREN'S SERVICES,ABOVE & BEYOND RESIDENTIAL CARE LTD,"8,360.00",SEMI INDEPENDENT LAC,EXTERNAL AGENCIES AND BODIES,2103036446,1000083522
05.12.2019,CHILDREN'S SERVICES,ASSOCIATED CARE SERVICES LTD,"11,571.43",SEMI INDEPENDENT LAC,EXTERNAL AGENCIES AND BODIES,2103036437,1000070299
05.12.2019,CHILDREN'S SERVICES,ASSOCIATED CARE SERVICES LTD,"11,571.43",SEMI INDEPENDENT LAC,EXTERNAL AGENCIES AND BODIES,2103036438,1000070299
05.12.2019,CHILDREN'S SERVICES,RELA SUPPORT SERVICES LTD,"16,885.71",SEMI INDEPENDENT LAC,EXTERNAL AGENCIES AND BODIES,2103036424,1000073128
05.12.2019,CHILDREN'S SERVICES,RELA SUPPORT SERVICES LTD,"17,448.57",SEMI INDEPENDENT LAC,EXTERNAL AGENCIES AND BODIES,2103036417,1000073128
05.12.2019,CHILDREN'S SERVICES,ABOVE & BEYOND RESIDENTIAL CARE LTD,"30,576.85",SEMI INDEPENDENT LAC,EXTERNAL AGENCIES AND BODIES,2103036447,1000083522
05.12.2019,CHILDREN'S SERVICES,ARC COMMUNITY TRUSTEES,650,SPECIAL GUARDIANSHIP,EXTERNAL AGENCIES AND BODIES,5902391873,1000046206
05.12.2019,CHILDREN'S SERVICES,PURPLE PEBBLES(CHILD CARE) SERVICES,-697.75,UASC CARE LEAVERS,EXTERNAL AGENCIES AND BODIES,2103036403,1000070705
05.12.2019,CHILDREN'S SERVICES,PURPLE PEBBLES(CHILD CARE) SERVICES,325,UASC CARE LEAVERS,EXTERNAL AGENCIES AND BODIES,2103036352,1000070705
05.12.2019,CHILDREN'S SERVICES,PURPLE PEBBLES(CHILD CARE) SERVICES,325,UASC CARE LEAVERS,EXTERNAL AGENCIES AND BODIES,2103036357,1000070705
05.12.2019,CHILDREN'S SERVICES,PURPLE PEBBLES(CHILD CARE) SERVICES,325,UASC CARE LEAVERS,EXTERNAL AGENCIES AND BODIES,2103036364,1000070705
05.12.2019,CHILDREN'S SERVICES,PURPLE PEBBLES(CHILD CARE) SERVICES,325,UASC CARE LEAVERS,EXTERNAL AGENCIES AND BODIES,2103036371,1000070705
05.12.2019,CHILDREN'S SERVICES,PURPLE PEBBLES(CHILD CARE) SERVICES,325,UASC CARE LEAVERS,EXTERNAL AGENCIES AND BODIES,2103036377,1000070705
05.12.2019,CHILDREN'S SERVICES,PURPLE PEBBLES(CHILD CARE) SERVICES,325,UASC CARE LEAVERS,EXTERNAL AGENCIES AND BODIES,2103036384,1000070705
05.12.2019,CHILDREN'S SERVICES,PURPLE PEBBLES(CHILD CARE) SERVICES,650,UASC CARE LEAVERS,EXTERNAL AGENCIES AND BODIES,2103036380,1000070705
05.12.2019,CHILDREN'S SERVICES,PURPLE PEBBLES(CHILD CARE) SERVICES,"1,221.43",UASC CARE LEAVERS,EXTERNAL AGENCIES AND BODIES,2103036400,1000070705
05.12.2019,CHILDREN'S SERVICES,PURPLE PEBBLES(CHILD CARE) SERVICES,"1,242.86",UASC CARE LEAVERS,EXTERNAL AGENCIES AND BODIES,2103036388,1000070705
05.12.2019,CHILDREN'S SERVICES,PURPLE PEBBLES(CHILD CARE) SERVICES,"1,285.71",UASC CARE LEAVERS,EXTERNAL AGENCIES AND BODIES,2103036356,1000070705
05.12.2019,CHILDREN'S SERVICES,PURPLE PEBBLES(CHILD CARE) SERVICES,"1,328.57",UASC CARE LEAVERS,EXTERNAL AGENCIES AND BODIES,2103036383,1000070705
05.12.2019,CHILDREN'S SERVICES,PURPLE PEBBLES(CHILD CARE) SERVICES,"1,371.43",UASC CARE LEAVERS,EXTERNAL AGENCIES AND BODIES,2103036376,1000070705
05.12.2019,CHILDREN'S SERVICES,PURPLE PEBBLES(CHILD CARE) SERVICES,"1,382.14",UASC CARE LEAVERS,EXTERNAL AGENCIES AND BODIES,2103036399,1000070705
05.12.2019,CHILDREN'S SERVICES,PURPLE PEBBLES(CHILD CARE) SERVICES,"1,435.71",UASC CARE LEAVERS,EXTERNAL AGENCIES AND BODIES,2103036396,1000070705
05.12.2019,CHILDREN'S SERVICES,YOUNG LONDON TODAY,"1,585.50",UASC CARE LEAVERS,EXTERNAL AGENCIES AND BODIES,2103036359,1000071232
05.12.2019,CHILDREN'S SERVICES,YOUNG LONDON TODAY,"1,638.35",UASC CARE LEAVERS,EXTERNAL AGENCIES AND BODIES,2103036369,1000071232
05.12.2019,CHILDREN'S SERVICES,NETPEX LTD CORPORATE SERVICES,300,UASC FURTHER EDUCATION SUPPORT,CLIENT TRANSPORT,5902391826,1000076073
05.12.2019,CHILDREN'S SERVICES,PURPLE PEBBLES(CHILD CARE) SERVICES,320,UASC LAC,EXTERNAL AGENCIES AND BODIES,2103036412,1000070705
05.12.2019,CHILDREN'S SERVICES,PURPLE PEBBLES(CHILD CARE) SERVICES,325,UASC LAC,EXTERNAL AGENCIES AND BODIES,2103036422,1000070705
05.12.2019,CHILDREN'S SERVICES,PURPLE PEBBLES(CHILD CARE) SERVICES,575,UASC LAC,EXTERNAL AGENCIES AND BODIES,2103036426,1000070705
05.12.2019,CHILDREN'S SERVICES,PURPLE PEBBLES(CHILD CARE) SERVICES,"1,382.14",UASC LAC,EXTERNAL AGENCIES AND BODIES,2103036411,1000070705
05.12.2019,CHILDREN'S SERVICES,REDACTED PERSONAL DATA,300,UNIVERSITY SUPPORT,CLIENT TRANSPORT,REDACTED,REDACTED
05.12.2019,CHILDREN'S SERVICES,REDACTED PERSONAL DATA,"1,200.00",UNIVERSITY SUPPORT,OTHER PAYMENTS FOR CLIENTS,REDACTED,REDACTED
05.12.2019,CHILDREN'S SERVICES,ISABELLE GRAVENSTEIN T/A REVIVAL,348,YOS SUPPORT,MEDICAL / HEALTH & SAFETY SERVICES,5902391685,1000027424
05.12.2019,CHILDREN'S SERVICES,AERIALTEC LONDON & S.E LTD,395,YOS SUPPORT,COMMS & COMPUTING CONTRACT CHARGES,5902391687,1000063271
05.12.2019,COMMUNITIES,SARAH JAMESON,550,NO RECOURSE TO PUBLIC FUNDS,LEGAL FEES & COURT COSTS,2103035863,1000083606
05.12.2019,COMMUNITIES,SAGECARE LTD,771.38,NO RECOURSE TO PUBLIC FUNDS,HOMECARE - C&V,2103036149,1000080924
05.12.2019,COMMUNITIES,APEX HOUSING SOLUTIONS LTD,"1,020.00",NO RECOURSE TO PUBLIC FUNDS,ACCOMMODATION CHARGES,5902391795,1000079786
05.12.2019,COMMUNITIES,ELEANOR NURSING AND SOCIAL CARE LTD,"1,176.56",NO RECOURSE TO PUBLIC FUNDS,HOMECARE - C&V,2103036482,1000081695
05.12.2019,COMMUNITIES,THAMES HOMECARE SERVICE LTD,"1,261.95",NO RECOURSE TO PUBLIC FUNDS,HOMECARE - C&V,2103036503,1000079295
05.12.2019,COMMUNITIES,TURNING POINT,"1,349.56",NO RECOURSE TO PUBLIC FUNDS,ACCOMMODATION CHARGES,5902391774,11321523
05.12.2019,COMMUNITIES,DINARDO SUPPORTS LTD,"1,520.00",NO RECOURSE TO PUBLIC FUNDS,ACCOMMODATION CHARGES,5902391727,1000063093
05.12.2019,COMMUNITIES,GOLDSTONE ESTATES LTD,"1,890.00",NO RECOURSE TO PUBLIC FUNDS,ACCOMMODATION CHARGES,5902391784,1000076548
05.12.2019,COMMUNITIES,CROWN HOUSING LTD,"2,790.00",NO RECOURSE TO PUBLIC FUNDS,ACCOMMODATION CHARGES,5902391789,1000075070
05.12.2019,COMMUNITIES,VENTURE HOUSING (LONDON) LTD,"4,167.00",NO RECOURSE TO PUBLIC FUNDS,ACCOMMODATION CHARGES,5902391816,1000056686
05.12.2019,COMMUNITIES,NATIONWIDE ACCOMMODATION,"4,875.00",NO RECOURSE TO PUBLIC FUNDS,ACCOMMODATION CHARGES,5902391790,1000076112
05.12.2019,COMMUNITIES,CARE UNLIMITED GROUP LTD,"5,870.70",NO RECOURSE TO PUBLIC FUNDS,RESIDENTIAL CARE,5902391729,11172617
05.12.2019,COMMUNITIES,CARE UNLIMITED GROUP LTD,"6,066.26",NO RECOURSE TO PUBLIC FUNDS,RESIDENTIAL CARE,5902391732,11172617
05.12.2019,COMMUNITIES,ZFA ACCOMMODATION LTD,"8,685.00",NO RECOURSE TO PUBLIC FUNDS,ACCOMMODATION CHARGES,5902391792,1000082620
05.12.2019,COMMUNITIES,CROMWOOD HOUSING,"9,570.00",NO RECOURSE TO PUBLIC FUNDS,ACCOMMODATION CHARGES,5902391807,1000071450
05.12.2019,COMMUNITIES,FAMILY LINKS,258,PREVENT,PROFESSIONAL FEES,5902391101,1000083445
05.12.2019,COMMUNITIES,OPEN COMMUNITIES LTD,"1,065.75",RESIDENT INVOLVEMENT TEAM,PROFESSIONAL FEES,5902391766,1000065800
05.12.2019,CUSTOMER EXPERIENCE HGF,IMPERIAL COLLEGE PROJECTS LTD,500,CORONER'S,PROFESSIONAL FEES,5902391712,1000080106
05.12.2019,CUSTOMER EXPERIENCE HGF,IMPERIAL COLLEGE PROJECTS LTD,624,CORONER'S,PROFESSIONAL FEES,5902391714,1000080106
05.12.2019,CUSTOMER EXPERIENCE HGF,IMPERIAL COLLEGE PROJECTS LTD,639,CORONER'S,PROFESSIONAL FEES,5902391710,1000080106
05.12.2019,CUSTOMER EXPERIENCE HGF,CIVICA UK LTD,"1,138.70",CORONER'S,PROFESSIONAL FEES,5902391202,1730625
05.12.2019,CUSTOMER EXPERIENCE HGF,REDACTED PERSONAL DATA,"1,338.00",HOMELESS PROJECTS,GRANTS,REDACTED,REDACTED
05.12.2019,CUSTOMER EXPERIENCE HGF,REACH-OUT HOUSING LTD,"1,583.66",HOMELESS PROJECTS,GRANTS,5902391033,1000071129
05.12.2019,CUSTOMER EXPERIENCE HGF,REACH-OUT HOUSING LTD,"2,366.16",HOMELESS PROJECTS,GRANTS,5902391023,1000071129
05.12.2019,CUSTOMER EXPERIENCE HGF,LONDON BOROUGH OF CAMDEN,395.32,NIGHTLY TA (NSC),EXTERNAL AGENCIES AND BODIES,5902391677,1000083612
05.12.2019,CUSTOMER EXPERIENCE HGF,LONDON BOROUGH OF CAMDEN,483.91,NIGHTLY TA (NSC),EXTERNAL AGENCIES AND BODIES,5902391676,1000083612
05.12.2019,CUSTOMER EXPERIENCE HGF,VENTURE HOUSING (LONDON) LTD,"2,360.00",NIGHTLY TA (NSC),EXTERNAL AGENCIES AND BODIES,5902391876,1000056686
05.12.2019,CUSTOMER EXPERIENCE HGF,S & G PROPERTIES,"4,845.00",NIGHTLY TA (NSC),EXTERNAL AGENCIES AND BODIES,5902391781,1000005082
05.12.2019,CUSTOMER EXPERIENCE HGF,VENTURE HOUSING (LONDON) LTD,"91,315.15",NIGHTLY TA (NSC),EXTERNAL AGENCIES AND BODIES,5902391875,1000056686
05.12.2019,CUSTOMER EXPERIENCE HGF,ROYAL BOROUGH OF KENSINGTON & CHELSEA,"5,000.00",PSL PLACEMENTS,EXTERNAL AGENCIES AND BODIES,5902391111,1000033864
05.12.2019,CUSTOMER EXPERIENCE HGF,BURLINGTON UNIFORMS,267.06,REGISTRARS,OFFICE EXPENSES,5902391019,1000062536
05.12.2019,CUSTOMER EXPERIENCE HGF,CIVIL CEREMONIES LTD,323.61,REGISTRARS,OFFICE EXPENSES,5902391707,1000035694
05.12.2019,ENVIRONMENT AND LEISURE,CONNICK TREE CARE REIGATE LTD,620,CAPITAL PS (LEISURE),CONSTRUCTION FEES  - EXTERNAL,5902391815,1000070069
05.12.2019,ENVIRONMENT AND LEISURE,CONWAY AECOM LTD,"1,095.85",CAPITAL PS (LEISURE),CONSTRUCTION,2103036599,3000001595
05.12.2019,ENVIRONMENT AND LEISURE,AWORTH LAND SURVEYS LTD,"1,525.00",CAPITAL PS (LEISURE),CONST'N MAIN CONTRACT - NON CERTIFICATED,5902391878,1000072575
05.12.2019,ENVIRONMENT AND LEISURE,R G WEBBER LTD,"2,000.00",CAPITAL PS (LEISURE),CONSTRUCTION SITE COSTS,2103036607,4013944
05.12.2019,ENVIRONMENT AND LEISURE,AWORTH LAND SURVEYS LTD,"2,075.00",CAPITAL PS (LEISURE),CONST'N MAIN CONTRACT - NON CERTIFICATED,5902391878,1000072575
05.12.2019,ENVIRONMENT AND LEISURE,CONWAY AECOM LTD,"2,297.19",CAPITAL PS (LEISURE),CONSTRUCTION SUB CONTRACT -CERTIFICATED,5902391706,1000071205
05.12.2019,ENVIRONMENT AND LEISURE,R G WEBBER LTD,"3,850.00",CAPITAL PS (LEISURE),CONSTRUCTION SITE COSTS,2103036607,4013944
05.12.2019,ENVIRONMENT AND LEISURE,R G WEBBER LTD,"3,882.00",CAPITAL PS (LEISURE),CONSTRUCTION SITE COSTS,2103036607,4013944
05.12.2019,ENVIRONMENT AND LEISURE,CONWAY AECOM LTD,"6,715.71",CAPITAL PS (LEISURE),CONSTRUCTION SUB CONTRACT -CERTIFICATED,5902391704,1000071205
05.12.2019,ENVIRONMENT AND LEISURE,CONWAY AECOM LTD,"13,121.65",CAPITAL PS (LEISURE),CONSTRUCTION FEES,2103036601,3000001595
05.12.2019,ENVIRONMENT AND LEISURE,R G WEBBER LTD,"13,590.00",CAPITAL PS (LEISURE),CONSTRUCTION SITE COSTS,2103036607,4013944
05.12.2019,ENVIRONMENT AND LEISURE,CONWAY AECOM LTD,"32,050.40",CAPITAL PS (LEISURE),CONSTRUCTION FEES,2103036600,3000001595
05.12.2019,ENVIRONMENT AND LEISURE,ASKEWS & HOLTS LIBRARY SERVICES LTD,"1,341.10",CAPITAL PS (REGEN),"PLANT, MACHINERY & EQUIPMENT ACQUISITION",5902391594,1494168
05.12.2019,ENVIRONMENT DIRECTORATE,SIEMENS FINANCIAL SERVICES LIMITED,375.21,BUSINESS CORE,CATERING MATERIALS & SUPPLIES,5902391845,1000053403
05.12.2019,ENVIRONMENT DIRECTORATE,LEX AUTOLEASE,-897.2,CAR LEASING CTRL A/C,VEHICLE LEASING CHARGES,5902389547,1000069462
05.12.2019,ENVIRONMENT DIRECTORATE,LEX AUTOLEASE,-459.92,CAR LEASING CTRL A/C,VEHICLE LEASING CHARGES,5902389562,1000069462
05.12.2019,ENVIRONMENT DIRECTORATE,LEX AUTOLEASE,-390.68,CAR LEASING CTRL A/C,VEHICLE LEASING CHARGES,5902389554,1000069462
05.12.2019,ENVIRONMENT DIRECTORATE,LEX AUTOLEASE,-334.88,CAR LEASING CTRL A/C,VEHICLE LEASING CHARGES,5902389541,1000069462
05.12.2019,ENVIRONMENT DIRECTORATE,LEX AUTOLEASE,441.55,CAR LEASING CTRL A/C,VEHICLE LEASING CHARGES,5902389499,1000069462
05.12.2019,ENVIRONMENT DIRECTORATE,LEX AUTOLEASE,"8,985.88",CAR LEASING CTRL A/C,VEHICLE LEASING CHARGES,5902391803,1000069462
05.12.2019,ENVIRONMENT DIRECTORATE,LEX AUTOLEASE,"9,095.47",CAR LEASING CTRL A/C,VEHICLE LEASING CHARGES,5902391803,1000069462
05.12.2019,ENVIRONMENT DIRECTORATE,AVALON ABSEILING LTD,"4,250.00",COMMERCIAL PEST CONTROL WORKS,OTHER CONTRACTORS,5902391701,1000080453
05.12.2019,ENVIRONMENT DIRECTORATE,LEX AUTOLEASE,"1,209.60",COMMERCIAL VEH CTRL A/C,HIRED VEHICLES,5902389664,1000069462
05.12.2019,ENVIRONMENT DIRECTORATE,FUTURE GARMENTS LTD T/A EUROX,264.43,MANAGEMENT TEAM,"CLOTHING, UNIFORMS & LAUNDRY",5902390984,1000080983
05.12.2019,ENVIRONMENT DIRECTORATE,ANTALIS LTD,292,MANAGEMENT TEAM,STATIONERY,5902391636,1000066919
05.12.2019,ENVIRONMENT DIRECTORATE,KILLGERM CHEMICALS LTD,546.99,PEST CONTROL,MATERIALS,5902391703,1000045706
05.12.2019,ENVIRONMENT DIRECTORATE,KILLGERM CHEMICALS LTD,552.16,PEST CONTROL,MATERIALS,5902391705,1000045706
05.12.2019,ENVIRONMENT DIRECTORATE,BEVAN BRITTAN LLP,"2,764.10",PFI PROJECT,PAYMENTS FOR LEGAL SERVICES,5902391694,1000047779
05.12.2019,ENVIRONMENT DIRECTORATE,BEVAN BRITTAN LLP,"3,760.80",PFI PROJECT,PAYMENTS FOR LEGAL SERVICES,5902391693,1000047779
05.12.2019,ENVIRONMENT DIRECTORATE,CRESPO DESIGN LTD,700,PROJECT SUPPORT,MARKETING & PUBLICITY SERVICES,5902391825,1000075973
05.12.2019,ENVIRONMENT DIRECTORATE,CABLE TEST LTD,471.4,PUBLIC LIGHTING,SOUTHWARK DIRECT CHARGES,5902391862,1000079183
05.12.2019,ENVIRONMENT DIRECTORATE,CABLE TEST LTD,878.5,PUBLIC LIGHTING,SOUTHWARK DIRECT CHARGES,5902391865,1000079183
05.12.2019,ENVIRONMENT DIRECTORATE,CABLE TEST LTD,924.9,PUBLIC LIGHTING,SOUTHWARK DIRECT CHARGES,5902391864,1000079183
05.12.2019,ENVIRONMENT DIRECTORATE,CABLE TEST LTD,"1,558.12",PUBLIC LIGHTING,SOUTHWARK DIRECT CHARGES,5902391860,1000079183
05.12.2019,ENVIRONMENT DIRECTORATE,CABLE TEST LTD,"2,029.52",PUBLIC LIGHTING,SOUTHWARK DIRECT CHARGES,5902391859,1000079183
05.12.2019,ENVIRONMENT DIRECTORATE,STRIPPERS PAINT REMOVERS LTD,"1,086.00",STREETS  (NORTH WEST),MATERIALS,5902391572,1000037514
05.12.2019,ENVIRONMENT DIRECTORATE,WSP UK LTD,"4,956.00",TRANSPORT PROJECTS,CONSULTANTS SERVICES,5902390838,1000054214
05.12.2019,FINANCE & GOVERNANCE,STAFFINO,"1,425.00",ADMINISTRATION SUPPORT,SOFTWARE,6101915325,INTERNATIONAL PAYMENT
05.12.2019,HOUSING GENERAL FUND,DDS DEMOLITION LTD,"4,780.49",CAPITAL PS (STRAT SERV),CONSTRUCTION FEES,2103036602,3000002058
05.12.2019,HOUSING HRA,REC LTD,750,CAPITAL PS (HRA),CONSTRUCTION MAIN CONTRACT -CERTIFICATED,5902391725,1000032541
05.12.2019,HOUSING HRA,HARRADINES REMOVALS,900,CAPITAL PS (HRA),CAPITAL GRANTS,5902391794,1006511
05.12.2019,HOUSING HRA,REC LTD,"1,250.00",CAPITAL PS (HRA),CONSTRUCTION FEES  - EXTERNAL,5902391715,1000032541
05.12.2019,HOUSING HRA,CALFORD SEADEN LLP,"1,826.50",CAPITAL PS (HRA),CONSTRUCTION FEES  - EXTERNAL,5902391597,1061592
05.12.2019,HOUSING HRA,CALFORD SEADEN LLP,"3,078.30",CAPITAL PS (HRA),CONSTRUCTION FEES  - EXTERNAL,5902391695,1061592
05.12.2019,HOUSING HRA,WATERSLADE LTD,"4,600.00",CAPITAL PS (HRA),CONSTRUCTION FEES  - EXTERNAL,5902391832,1000075795
05.12.2019,HOUSING HRA,SALTASH ENTERPRISES LTD,"17,102.92",CAPITAL PS (HRA),CONSTRUCTION MAIN CONTRACT -CERTIFICATED,2103036610,4013605
05.12.2019,HOUSING HRA,ENGIE REGENERATION (APOLLO) LTD,"18,851.36",CAPITAL PS (HRA),CONSTRUCTION MAIN CONTRACT -CERTIFICATED,2103036605,4000449
05.12.2019,HOUSING HRA,SALTASH ENTERPRISES LTD,"21,023.15",CAPITAL PS (HRA),CONSTRUCTION MAIN CONTRACT -CERTIFICATED,2103036609,4013605
05.12.2019,HOUSING HRA,CALFORD SEADEN LLP,"22,689.45",CAPITAL PS (HRA),CONSTRUCTION FEES  - EXTERNAL,5902391668,1061592
05.12.2019,HOUSING HRA,QUALITY SOLICITORS MARTIN TOLHURST,"30,000.00",CAPITAL PS (HRA),CAPITAL GRANTS,2103033685,1000077496
05.12.2019,HOUSING HRA,CALFORD SEADEN LLP,"37,663.95",CAPITAL PS (HRA),CONSTRUCTION FEES,5902391841,1061592
05.12.2019,HOUSING HRA,COLLIER CONTRACTS LTD,"40,000.00",CAPITAL PS (HRA),CONSTRUCTION MAIN CONTRACT -CERTIFICATED,2103036598,3000002072
05.12.2019,HOUSING HRA,SALTASH ENTERPRISES LTD,"43,080.75",CAPITAL PS (HRA),CONSTRUCTION MAIN CONTRACT -CERTIFICATED,2103036608,4013605
05.12.2019,HOUSING HRA,ENGIE REGENERATION (APOLLO) LTD,"61,278.39",CAPITAL PS (HRA),CONSTRUCTION MAIN CONTRACT -CERTIFICATED,2103036604,4000449
05.12.2019,HOUSING HRA,MLM CONSULTING ENGINEERS LTD,"2,000.00",CAPITAL PS (REGEN),CONSTRUCTION FEES - LEGAL,5902391778,1000059806
05.12.2019,HOUSING HRA,MARTIN ARNOLD LTD,"4,365.78",CAPITAL PS (REGEN),CONSTRUCTION SITE COSTS,5902391868,1000076993
05.12.2019,HOUSING HRA,STAFFINO,"1,092.50",HOME OWNERSHIP,SOFTWARE,6101915325,INTERNATIONAL PAYMENT
05.12.2019,LAW & DEMOCRACY,ELECTORAL REFORM SERVICES LTD,"1,448.07",ELECTORAL REGISTRATION,SUBSCRIPTIONS,2103035791,1052156
05.12.2019,LAW & DEMOCRACY,ELECTORAL REFORM SERVICES LTD,"4,310.35",ELECTORAL REGISTRATION,SOFTWARE,2103035774,1052156
05.12.2019,LAW & DEMOCRACY,THE LAW SOCIETY,499,LEGAL SVCES MANAGEMENT,PROFESSIONAL FEES,5902391813,1000025543
05.12.2019,LEISURE DIRECTORATE,P D CONSTRUCTION LTD,300,BURGESS AREA TEAM,OTHER R&M,5902391070,1000000390
05.12.2019,LEISURE DIRECTORATE,KENT COUNTY COUNCIL - LASER,685.08,BURGESS AREA TEAM,ELECTRICITY,5902390761,1000012926
05.12.2019,LEISURE DIRECTORATE,P D CONSTRUCTION LTD,852,BURGESS AREA TEAM,OTHER R&M,5902391059,1000000390
05.12.2019,LEISURE DIRECTORATE,P D CONSTRUCTION LTD,280,CEMETERIES,BUILDING R&M,5902391769,1000000390
05.12.2019,LEISURE DIRECTORATE,G WORRALL & SON LTD,521,CEMETERIES,OTHER R&M,5902391793,1013481
05.12.2019,LEISURE DIRECTORATE,WEST MALLING FLOWERS,708.33,CREMATORIUM,MATERIALS,5902391799,1000079594
05.12.2019,LEISURE DIRECTORATE,TICKETMASTER UK LTD,"4,070.63",FIREWORK DISPLAY,PROFESSIONAL FEES,5902391798,1000040503
05.12.2019,LEISURE DIRECTORATE,CONTINENTAL DRIFTS LTD,"65,535.92",FIREWORK DISPLAY,PROFESSIONAL FEES,5902391726,1000027315
05.12.2019,LEISURE DIRECTORATE,CONSTANTINE LIMITED,500.06,HERITAGE,OTHER CONTRACTORS,5902391747,11202702
05.12.2019,LEISURE DIRECTORATE,ASKEWS & HOLTS LIBRARY SERVICES LTD,826.15,STOCK SERVICES,BOOKS & PUBLICATIONS,5902391308,1494168
05.12.2019,LEISURE DIRECTORATE,ASKEWS & HOLTS LIBRARY SERVICES LTD,"5,222.23",STOCK SERVICES,BOOKS & PUBLICATIONS,5902391307,1494168
05.12.2019,LEVIES & PRECEPTS,GREATER LONDON AUTHORITY,"151,064.40",LONDON PENSION FUND,LEVIES,5902391740,1000015827
05.12.2019,MODERNISATION HGF,REED BUSINESS INFORMATION LTD,"9,089.00",CONSULTANCY,SUBSCRIPTIONS,5902391779,1000005640
05.12.2019,MODERNISATION HGF,COMENSURA LTD,"578,830.77",WEEKLY PAYMENTS,AGENCY STAFF,5902391810,1000051261
05.12.2019,NEW BUILD,PROJECT CENTRE LTD,"1,137.00",DEVELOPMENT DELIVERY,CONSULTANTS SERVICES,5902391043,1000072621
05.12.2019,NEW BUILD,PROJECT CENTRE LTD,"1,137.00",DEVELOPMENT DELIVERY,CONSULTANTS SERVICES,5902391044,1000072621
05.12.2019,NEW BUILD,PROJECT CENTRE LTD,"1,137.00",DEVELOPMENT DELIVERY,CONSULTANTS SERVICES,5902391046,1000072621
05.12.2019,NEW BUILD,PROJECT CENTRE LTD,"1,137.00",DEVELOPMENT DELIVERY,CONSULTANTS SERVICES,5902391048,1000072621
05.12.2019,NEW BUILD,PROJECT CENTRE LTD,"1,137.00",DEVELOPMENT DELIVERY,CONSULTANTS SERVICES,5902391056,1000072621
05.12.2019,PLANNING AND TRANSPORT,SOUTH LONDON GALLERY,"2,337.50",PECKHAM TOWNSCAPE HERITAGE INITIATIVE,MISCELLANEOUS EXPENSES,5902391817,11011694
05.12.2019,PLANNING AND TRANSPORT,THE CONNECTED PLACES CATAPULT,"41,666.67",PLANNING POLICY TEAM,INFORMATION MANAGEMENT,5902391837,1000083367
05.12.2019,PUBLIC HEALTH,QUALITY MEDICAL SOLUTIONS LTD (QMS),"17,875.75",HEALTH CHECKS CONTRACTS,EXTERNAL AGENCIES AND BODIES,5902390791,1000072192
05.12.2019,REGENERATION,BYWATERS (LEYTON) LTD,"6,806.94",TOWER WORKSHOPS,REFUSE COLLECTION CONTRACT,5902391831,1822101
05.12.2019,RESIDENT SERVICES,HARROW GREEN LTD,"-1,112.19",OPERATIONS/OFFICES ACCOMMODATION,REMOVAL EXPENSES,5902390601,1000076673
05.12.2019,RESIDENT SERVICES,HARROW GREEN LTD,797.82,OPERATIONS/OFFICES ACCOMMODATION,REMOVAL EXPENSES,5902391765,1000076673
05.12.2019,RESIDENT SERVICES,DR FABIO VITIELLO,"1,110.00",OPERATIONS/OFFICES ACCOMMODATION,LEGAL FEES & COURT COSTS,2103035789,1000066878
05.12.2019,RESIDENT SERVICES,HARROW GREEN LTD,"5,147.68",OPERATIONS/OFFICES ACCOMMODATION,REMOVAL EXPENSES,5902391763,1000076673
05.12.2019,RESIDENT SERVICES,HARROW GREEN LTD,"5,586.32",OPERATIONS/OFFICES ACCOMMODATION,REMOVAL EXPENSES,5902391754,1000076673
05.12.2019,RESIDENT SERVICES,HARROW GREEN LTD,"10,902.26",OPERATIONS/OFFICES ACCOMMODATION,REMOVAL EXPENSES,5902391755,1000076673
05.12.2019,RESIDENT SERVICES,HARROW GREEN LTD,"10,939.59",OPERATIONS/OFFICES ACCOMMODATION,REMOVAL EXPENSES,5902391751,1000076673
05.12.2019,RESIDENT SERVICES,NEWINGTON BUTTS MANAGEMENT LTD,"4,178.50",PRIVATE SERVICE CHARGES,SERVICE CHARGES,5902391697,1000081298
05.12.2019,RESIDENT SERVICES,GAS ELEC BUREAU SERVICES,340,TA ESTATE VOIDS,GRANTS,5902391863,1000074110
05.12.2019,RESIDENT SERVICES,GALAXY LETTINGS LTD,720,TA PLACEMENTS,EXTERNAL AGENCIES AND BODIES,5902391750,1000055897
05.12.2019,RESIDENT SERVICES,CROWN HOUSING LTD,"1,365.00",TA PLACEMENTS,EXTERNAL AGENCIES AND BODIES,5902391752,1000075070
05.12.2019,RESIDENT SERVICES,PROPERTYPLACEBOOK LTD,"2,275.00",TA PLACEMENTS,EXTERNAL AGENCIES AND BODIES,5902391756,1000077817
05.12.2019,RESIDENT SERVICES,NORBURY PROPERTY SERVICES (LONDON) LTD,"5,790.00",TA PLACEMENTS,EXTERNAL AGENCIES AND BODIES,5902391773,1000075566
05.12.2019,SOUTHWARK SCHOOL FOR FUTURE,FAITHFUL & GOULD,"13,625.00",CAPITAL PS (REGEN),CONSTRUCTION FEES,5902391361,1000061390
06.12.2019,ADULT SOCIAL CARE,ALL4U FOSTERING LTD,"6,235.20",DISABILITIES LAC,EXTERNAL AGENCIES AND BODIES,2103036705,1000080663
06.12.2019,ADULT SOCIAL CARE,AMELIA'S HOUSE LIMITED,"13,500.00",DISABILITIES LAC,EXTERNAL AGENCIES AND BODIES,2103036938,1000083007
06.12.2019,ADULT SOCIAL CARE,KENT COUNTY COUNCIL - LASER,622.14,FRED FRANCIS CENTRE,GAS,5902391804,1000012926
06.12.2019,ADULT SOCIAL CARE,HATS GROUP LTD,306,LD LTS 18-64,CLIENT TRANSPORT,2103036804,1000042743
06.12.2019,ADULT SOCIAL CARE,CARE DIRECT UK LTD,347.51,LD LTS 18-64,SUPPORTED LIVING,2103036808,1000066322
06.12.2019,ADULT SOCIAL CARE,HATS GROUP LTD,448,LD LTS 18-64,CLIENT TRANSPORT,2103036805,1000042743
06.12.2019,ADULT SOCIAL CARE,TRUECARE HAVEN SUPPORT LTD,"1,520.00",LD LTS 18-64,HOMECARE - SPOT,2103036813,1000078974
06.12.2019,ADULT SOCIAL CARE,TRUECARE HAVEN SUPPORT LTD,"3,460.80",LD LTS 18-64,SUPPORTED LIVING,2103036809,1000078974
06.12.2019,ADULT SOCIAL CARE,MARTIN VITERA LTD,288.02,ORIENT ST � RESPITE,PREMISES CLEANING,5902392002,1560597
06.12.2019,ADULT SOCIAL CARE,THAMES HOMECARE SERVICE LTD,250.6,PHY LTS 18-64,HOMECARE - SPOT,2103036780,1000079295
06.12.2019,ADULT SOCIAL CARE,THAMES HOMECARE SERVICE LTD,286.4,PHY LTS 18-64,HOMECARE - SPOT,2103036783,1000079295
06.12.2019,ADULT SOCIAL CARE,THAMES HOMECARE SERVICE LTD,308.78,PHY LTS 18-64,HOMECARE - SPOT,2103036717,1000079295
06.12.2019,ADULT SOCIAL CARE,THAMES HOMECARE SERVICE LTD,322.2,PHY LTS 18-64,HOMECARE - SPOT,2103036719,1000079295
06.12.2019,ADULT SOCIAL CARE,THAMES HOMECARE SERVICE LTD,380.38,PHY LTS 18-64,HOMECARE - SPOT,2103036711,1000079295
06.12.2019,ADULT SOCIAL CARE,PROFAD CARE AGENCY,390.6,PHY LTS 18-64,HOMECARE - SPOT,2103036810,1000079032
06.12.2019,ADULT SOCIAL CARE,PROFAD CARE AGENCY,390.6,PHY LTS 18-64,HOMECARE - SPOT,2103036814,1000079032
06.12.2019,ADULT SOCIAL CARE,THAMES HOMECARE SERVICE LTD,626.5,PHY LTS 18-64,HOMECARE - SPOT,2103036790,1000079295
06.12.2019,ADULT SOCIAL CARE,THAMES HOMECARE SERVICE LTD,639.93,PHY LTS 18-64,HOMECARE - SPOT,2103036772,1000079295
06.12.2019,ADULT SOCIAL CARE,THAMES HOMECARE SERVICE LTD,921.85,PHY LTS 18-64,HOMECARE - SPOT,2103036767,1000079295
06.12.2019,ADULT SOCIAL CARE,THAMES HOMECARE SERVICE LTD,250.6,PHY LTS 65+,HOMECARE - SPOT,2103036789,1000079295
06.12.2019,ADULT SOCIAL CARE,THAMES HOMECARE SERVICE LTD,268.5,PHY LTS 65+,HOMECARE - SPOT,2103036723,1000079295
06.12.2019,ADULT SOCIAL CARE,THAMES HOMECARE SERVICE LTD,277.45,PHY LTS 65+,HOMECARE - SPOT,2103036787,1000079295
06.12.2019,ADULT SOCIAL CARE,THAMES HOMECARE SERVICE LTD,281.93,PHY LTS 65+,HOMECARE - SPOT,2103036713,1000079295
06.12.2019,ADULT SOCIAL CARE,THAMES HOMECARE SERVICE LTD,295.35,PHY LTS 65+,HOMECARE - SPOT,2103036768,1000079295
06.12.2019,ADULT SOCIAL CARE,THAMES HOMECARE SERVICE LTD,344.58,PHY LTS 65+,HOMECARE - SPOT,2103036757,1000079295
06.12.2019,ADULT SOCIAL CARE,THAMES HOMECARE SERVICE LTD,344.58,PHY LTS 65+,HOMECARE - SPOT,2103036784,1000079295
06.12.2019,ADULT SOCIAL CARE,THAMES HOMECARE SERVICE LTD,344.58,PHY LTS 65+,HOMECARE - SPOT,2103036793,1000079295
06.12.2019,ADULT SOCIAL CARE,THAMES HOMECARE SERVICE LTD,358,PHY LTS 65+,HOMECARE - SPOT,2103036739,1000079295
06.12.2019,ADULT SOCIAL CARE,THAMES HOMECARE SERVICE LTD,398.28,PHY LTS 65+,HOMECARE - SPOT,2103036735,1000079295
06.12.2019,ADULT SOCIAL CARE,THAMES HOMECARE SERVICE LTD,492.25,PHY LTS 65+,HOMECARE - SPOT,2103036771,1000079295
06.12.2019,ADULT SOCIAL CARE,CARE DIRECT UK LTD,497,PHY LTS 65+,HOMECARE - SPOT,2103036797,1000066322
06.12.2019,ADULT SOCIAL CARE,THAMES HOMECARE SERVICE LTD,501.2,PHY LTS 65+,HOMECARE - SPOT,2103036770,1000079295
06.12.2019,ADULT SOCIAL CARE,CARE DIRECT UK LTD,505.88,PHY LTS 65+,HOMECARE - SPOT,2103036811,1000066322
06.12.2019,ADULT SOCIAL CARE,THAMES HOMECARE SERVICE LTD,519.1,PHY LTS 65+,HOMECARE - SPOT,2103036753,1000079295
06.12.2019,ADULT SOCIAL CARE,THAMES HOMECARE SERVICE LTD,537,PHY LTS 65+,HOMECARE - SPOT,2103036764,1000079295
06.12.2019,ADULT SOCIAL CARE,CARE DIRECT UK LTD,559.13,PHY LTS 65+,HOMECARE - SPOT,2103036803,1000066322
06.12.2019,ADULT SOCIAL CARE,THAMES HOMECARE SERVICE LTD,563.85,PHY LTS 65+,HOMECARE - SPOT,2103036729,1000079295
06.12.2019,ADULT SOCIAL CARE,THAMES HOMECARE SERVICE LTD,563.85,PHY LTS 65+,HOMECARE - SPOT,2103036761,1000079295
06.12.2019,ADULT SOCIAL CARE,THAMES HOMECARE SERVICE LTD,563.85,PHY LTS 65+,HOMECARE - SPOT,2103036782,1000079295
06.12.2019,ADULT SOCIAL CARE,THAMES HOMECARE SERVICE LTD,635.45,PHY LTS 65+,HOMECARE - C&V,2103036743,1000079295
06.12.2019,ADULT SOCIAL CARE,GOLD CARE HOMES (BURROWS HOUSE) LTD,657,PHY LTS 65+,PLACEMENTS - RESPITE,2103036709,1000070656
06.12.2019,ADULT SOCIAL CARE,THAMES HOMECARE SERVICE LTD,832.35,PHY LTS 65+,HOMECARE - SPOT,2103036775,1000079295
06.12.2019,ADULT SOCIAL CARE,THAMES HOMECARE SERVICE LTD,"1,029.25",PHY LTS 65+,HOMECARE - SPOT,2103036792,1000079295
06.12.2019,ADULT SOCIAL CARE,THAMES HOMECARE SERVICE LTD,331.15,PHY STS 18-64,HOMECARE - IC,2103036751,1000079295
06.12.2019,ADULT SOCIAL CARE,THAMES HOMECARE SERVICE LTD,760.75,PHY STS 65+,HOMECARE - IC,2103036794,1000079295
06.12.2019,ADULT SOCIAL CARE,THAMES HOMECARE SERVICE LTD,268.5,SOCIAL ISOLATION,HOMECARE - SPOT,2103036737,1000079295
06.12.2019,ADULT SOCIAL CARE,CAREMARK LTD,565.2,SOCIAL ISOLATION,HOMECARE - SPOT,2103036806,1000081358
06.12.2019,ADULT SOCIAL CARE,THAMES HOMECARE SERVICE LTD,"-1,217.20",SPECIALIST CARE,SECTION 17 PAYMENTS TO AGENCIES/CARERS,2103036949,1000079295
06.12.2019,ADULT SOCIAL CARE,CONTACT PROFESSIONALS,266,SPECIALIST CARE,SECTION 17 PAYMENTS TO AGENCIES/CARERS,2103036818,1000057263
06.12.2019,ADULT SOCIAL CARE,CONTACT PROFESSIONALS,266,SPECIALIST CARE,SECTION 17 PAYMENTS TO AGENCIES/CARERS,2103036857,1000057263
06.12.2019,ADULT SOCIAL CARE,CONTACT PROFESSIONALS,266,SPECIALIST CARE,SECTION 17 PAYMENTS TO AGENCIES/CARERS,2103036880,1000057263
06.12.2019,ADULT SOCIAL CARE,CONTACT PROFESSIONALS,304,SPECIALIST CARE,SECTION 17 PAYMENTS TO AGENCIES/CARERS,2103036655,1000057263
06.12.2019,ADULT SOCIAL CARE,CONTACT PROFESSIONALS,304,SPECIALIST CARE,SECTION 17 PAYMENTS TO AGENCIES/CARERS,2103036836,1000057263
06.12.2019,ADULT SOCIAL CARE,CONTACT PROFESSIONALS,304,SPECIALIST CARE,SECTION 17 PAYMENTS TO AGENCIES/CARERS,2103036860,1000057263
06.12.2019,ADULT SOCIAL CARE,HCP STAFFING SERVICES LTD,342.12,SPECIALIST CARE,SECTION 17 PAYMENTS TO AGENCIES/CARERS,2103036663,1000078329
06.12.2019,ADULT SOCIAL CARE,HCP STAFFING SERVICES LTD,365.51,SPECIALIST CARE,SECTION 17 PAYMENTS TO AGENCIES/CARERS,2103036697,1000078329
06.12.2019,ADULT SOCIAL CARE,CONTACT PROFESSIONALS,380,SPECIALIST CARE,SECTION 17 PAYMENTS TO AGENCIES/CARERS,2103036665,1000057263
06.12.2019,ADULT SOCIAL CARE,CONTACT PROFESSIONALS,380,SPECIALIST CARE,SECTION 17 PAYMENTS TO AGENCIES/CARERS,2103036877,1000057263
06.12.2019,ADULT SOCIAL CARE,CONTACT PROFESSIONALS,380,SPECIALIST CARE,SECTION 17 PAYMENTS TO AGENCIES/CARERS,2103036890,1000057263
06.12.2019,ADULT SOCIAL CARE,INTERSERVE HEALTHCARE,444.33,SPECIALIST CARE,SECTION 17 PAYMENTS TO AGENCIES/CARERS,2103036669,1000049612
06.12.2019,ADULT SOCIAL CARE,PECULIAR CARE HOMES LTD,448.75,SPECIALIST CARE,SECTION 17 PAYMENTS TO AGENCIES/CARERS,2103036951,1000076991
06.12.2019,ADULT SOCIAL CARE,CONTACT PROFESSIONALS,456,SPECIALIST CARE,SECTION 17 PAYMENTS TO AGENCIES/CARERS,2103036816,1000057263
06.12.2019,ADULT SOCIAL CARE,CONTACT PROFESSIONALS,684,SPECIALIST CARE,SECTION 17 PAYMENTS TO AGENCIES/CARERS,2103036856,1000057263
06.12.2019,ADULT SOCIAL CARE,THAMES HOMECARE SERVICE LTD,956.76,SPECIALIST CARE,SECTION 17 PAYMENTS TO AGENCIES/CARERS,2103036948,1000079295
06.12.2019,ADULT SOCIAL CARE,CONTACT PROFESSIONALS,494,TRANSITIONS 14-18YRS,SECTION 17 PAYMENTS TO AGENCIES/CARERS,2103036820,1000057263
06.12.2019,ADULT SOCIAL CARE,PECULIAR CARE HOMES LTD,"1,615.50",TRANSITIONS 14-18YRS,SECTION 17 PAYMENTS TO AGENCIES/CARERS,2103036950,1000076991
06.12.2019,ASSET MANAGEMENT,ANTONY HODARI  SOLICITORS,"1,750.00",DISREPAIR,PAYMENTS FOR LEGAL SERVICES,2103036970,1000031040
06.12.2019,ASSET MANAGEMENT,CLARKE BARNES SOLICITORS LLP,"2,500.00",DISREPAIR,PAYMENTS FOR LEGAL SERVICES,2103036979,1000078090
06.12.2019,ASSET MANAGEMENT,CURTIS SOLICITORS LTD,"4,269.76",DISREPAIR,PAYMENTS FOR LEGAL SERVICES,2103036982,1000083234
06.12.2019,ASSET MANAGEMENT,BELSHAW & CURTIN SOLICITORS,"4,500.00",DISREPAIR,PAYMENTS FOR LEGAL SERVICES,2103036968,1767379
06.12.2019,ASSET MANAGEMENT,SETFORDS LAW LTD,"7,500.00",DISREPAIR,PAYMENTS FOR LEGAL SERVICES,2103036975,1000070746
06.12.2019,ASSET MANAGEMENT,ANTHONY GOLD SOLICITORS,"7,500.00",DISREPAIR,PAYMENTS FOR LEGAL SERVICES,2103036980,1000050198
06.12.2019,ASSET MANAGEMENT,ANTHONY GOLD SOLICITORS,"11,000.00",DISREPAIR,PAYMENTS FOR LEGAL SERVICES,2103036981,1000050198
06.12.2019,ASSET MANAGEMENT,XACT CONSULTANCY AND TRAINING LTD,"1,113.00",HEALTH AND SAFETY,TRAINING,5902391910,1000083329
06.12.2019,ASSET MANAGEMENT,HAYS RECRUITING EXPERTS WORLDWIDE,"1,500.00",HEALTH AND SAFETY,PROFESSIONAL FEES,5902392005,11319307
06.12.2019,ASSET MANAGEMENT,HAYS RECRUITING EXPERTS WORLDWIDE,"8,125.65",HEALTH AND SAFETY,PROFESSIONAL FEES,5902392013,11319307
06.12.2019,ASSET MANAGEMENT,RELIANCE HIGH-TECH LTD,742.17,REPAIRS OPERATIONS,OFFICE EXPENSES,5902392074,1000079374
06.12.2019,CENTRAL FUNCTIONS,KENT COUNTY COUNCIL - LASER,"-1,109.09",HEATING ACCOUNT,ELECTRICITY,2103034684,1000012926
06.12.2019,CENTRAL FUNCTIONS,KENT COUNTY COUNCIL - LASER,-506.34,HEATING ACCOUNT,ELECTRICITY,2103034686,1000012926
06.12.2019,CENTRAL FUNCTIONS,VEOLIA ES (UK)LTD,"160,982.62",HEATING ACCOUNT,GAS,5902391930,1824835
06.12.2019,CHIEF EXECUTIVE,TYCO INTEGRATED FIRE & SECURITY,"1,000.00",CAPITAL PS (REGEN),CONSTR'N SUB CONTRACT - NON CERTIFICATED,5902391902,1000077948
06.12.2019,CHIEF EXECUTIVE,TYCO INTEGRATED FIRE & SECURITY,"8,035.00",CAPITAL PS (REGEN),CONSTR'N SUB CONTRACT - NON CERTIFICATED,5902391902,1000077948
06.12.2019,CHIEF EXECUTIVE,LIVESEY EXCHANGE,"27,144.45",CAPITAL PS (REGEN),CONSTRUCTION,5902391386,1000082440
06.12.2019,CHIEF EXECUTIVE,CONWAY AECOM LTD,"48,223.67",CAPITAL PS (REGEN),CONSTRUCTION SUB CONTRACT -CERTIFICATED,2103036621,3000001595
06.12.2019,CHIEF EXECUTIVE'S OFFICE,HANLON COMPUTER SYSTEM LTD,"10,100.00",CHIEF EXEC'S OFFICE,EXTERNAL AGENCIES AND BODIES,5902391889,1000023031
06.12.2019,CHILDREN'S SERVICES,ALFRED SALTER PRIMARY SCHOOL,"6,500.00",ALFRED SALTER PRIMARY SCHOOL,SCHOOLS CAPITATION,2103035749,5001000005
06.12.2019,CHILDREN'S SERVICES,BESSEMER GRANGE PRIMARY SCHOOL,"1,500.00",BESSEMER GRANGE PRIMARY SCHOOL,SCHOOLS CAPITATION,2103035751,5001000009
06.12.2019,CHILDREN'S SERVICES,THE SPEECH CENTRE,275,CENTRAL SUPPORT,MEDICAL / HEALTH & SAFETY SERVICES,5902392087,1000035799
06.12.2019,CHILDREN'S SERVICES,THE SPEECH CENTRE,279,CENTRAL SUPPORT,MEDICAL / HEALTH & SAFETY SERVICES,5902392087,1000035799
06.12.2019,CHILDREN'S SERVICES,THE SPEECH CENTRE,279.99,CENTRAL SUPPORT,MEDICAL / HEALTH & SAFETY SERVICES,5902392087,1000035799
06.12.2019,CHILDREN'S SERVICES,THE SPEECH CENTRE,375,CENTRAL SUPPORT,MEDICAL / HEALTH & SAFETY SERVICES,5902392086,1000035799
06.12.2019,CHILDREN'S SERVICES,THE SPEECH CENTRE,381,CENTRAL SUPPORT,MEDICAL / HEALTH & SAFETY SERVICES,5902392089,1000035799
06.12.2019,CHILDREN'S SERVICES,THE SPEECH CENTRE,381,CENTRAL SUPPORT,MEDICAL / HEALTH & SAFETY SERVICES,5902392090,1000035799
06.12.2019,CHILDREN'S SERVICES,THE SPEECH CENTRE,490,CENTRAL SUPPORT,TRAINING,5902392084,1000035799
06.12.2019,CHILDREN'S SERVICES,THE SPEECH CENTRE,490,CENTRAL SUPPORT,TRAINING,5902392093,1000035799
06.12.2019,CHILDREN'S SERVICES,THE SPEECH CENTRE,980,CENTRAL SUPPORT,MEDICAL / HEALTH & SAFETY SERVICES,5902392087,1000035799
06.12.2019,CHILDREN'S SERVICES,THE SPEECH CENTRE,990,CENTRAL SUPPORT,MEDICAL / HEALTH & SAFETY SERVICES,5902392087,1000035799
06.12.2019,CHILDREN'S SERVICES,CHARLOTTE  SHARMAN PRIMARY SCHOOL,"1,500.00",CHARLOTTE SHARMAN PRIMARY SCHOOL,SCHOOLS CAPITATION,2103035753,5001000016
06.12.2019,CHILDREN'S SERVICES,COBOURG PRIMARY SCHOOL,"5,087.99",COBOURG PRIMARY SCHOOL,SCHOOLS CAPITATION,2103035746,5001000021
06.12.2019,CHILDREN'S SERVICES,COMBER GROVE PRIMARY SCHOOL,"15,200.00",COMBER GROVE PRIMARY SCHOOL,SCHOOLS CAPITATION,2103035756,5001000022
06.12.2019,CHILDREN'S SERVICES,DULWICH WOOD PRIMARY SCHOOL,"1,500.00",DULWICH WOOD PRIMARY SCHOOL,SCHOOLS CAPITATION,2103035748,5001000042
06.12.2019,CHILDREN'S SERVICES,REDACTED PERSONAL DATA,"2,722.50",FAMILY ASSESSMENTS,RESIDENTIAL CARE,REDACTED,REDACTED
06.12.2019,CHILDREN'S SERVICES,OASIS PLACES LTD,"2,785.71",FAMILY ASSESSMENTS,RESIDENTIAL CARE,2103036933,1000077696
06.12.2019,CHILDREN'S SERVICES,OASIS PLACES LTD,"15,000.00",FAMILY ASSESSMENTS,RESIDENTIAL CARE,2103036934,1000077696
06.12.2019,CHILDREN'S SERVICES,AVOCET SOCIAL CARE LTD,"6,100.00",FOSTERING PRAC GROUPS,PROFESSIONAL FEES,5902392088,1000071940
06.12.2019,CHILDREN'S SERVICES,CORE ASSETS FOSTERING LTD,-994.33,FRIENDS & FAMILY FOSTERING,EXTERNAL AGENCIES AND BODIES,2103036943,11288002
06.12.2019,CHILDREN'S SERVICES,CORE ASSETS FOSTERING LTD,"1,169.80",FRIENDS & FAMILY FOSTERING,EXTERNAL AGENCIES AND BODIES,2103036947,11288002
06.12.2019,CHILDREN'S SERVICES,CORE ASSETS FOSTERING LTD,"3,211.60",FRIENDS & FAMILY FOSTERING,EXTERNAL AGENCIES AND BODIES,2103036944,11288002
06.12.2019,CHILDREN'S SERVICES,FUSION FOSTERING LTD,"3,579.22",FRIENDS & FAMILY FOSTERING,EXTERNAL AGENCIES AND BODIES,2103036945,1000081674
06.12.2019,CHILDREN'S SERVICES,ORANGE GROVE FOSTERCARE LTD,"3,630.73",FRIENDS & FAMILY FOSTERING,EXTERNAL AGENCIES AND BODIES,2103036703,1000078716
06.12.2019,CHILDREN'S SERVICES,LIGHTHOUSE FOSTERING LTD,"5,580.86",FRIENDS & FAMILY FOSTERING,EXTERNAL AGENCIES AND BODIES,2103036707,1000080372
06.12.2019,CHILDREN'S SERVICES,FOLLOWING WHISPERS FAMILY SERVICE LTD,"6,315.00",FRIENDS & FAMILY FOSTERING,EXTERNAL AGENCIES AND BODIES,2103036699,1000065611
06.12.2019,CHILDREN'S SERVICES,FOLLOWING WHISPERS FAMILY SERVICE LTD,"6,642.90",FRIENDS & FAMILY FOSTERING,EXTERNAL AGENCIES AND BODIES,2103036701,1000065611
06.12.2019,CHILDREN'S SERVICES,GRANGE PRIMARY SCHOOL,"15,200.00",GRANGE PRIMARY SCHOOL,SCHOOLS CAPITATION,2103035757,5001000029
06.12.2019,CHILDREN'S SERVICES,HIGHSHORE SCHOOL,"6,500.00",HIGHSHORE,SCHOOLS CAPITATION,2103035747,5001000046
06.12.2019,CHILDREN'S SERVICES,JOHN RUSKIN PRIMARY SCHOOL,"5,860.00",JOHN RUSKIN PRIMARY SCHOOL,SCHOOLS CAPITATION,2103035752,5001000040
06.12.2019,CHILDREN'S SERVICES,KEYWORTH PRIMARY SCHOOL,"6,850.00",KEYWORTH PRIMARY SCHOOL,SCHOOLS CAPITATION,2103035750,5001000041
06.12.2019,CHILDREN'S SERVICES,PERSONAL INDEPENDENCE SUPPORT CIC,"7,952.00",MGMT & PARENTING PROG TEAM,EXTERNAL AGENCIES AND BODIES,5902391680,1000083483
06.12.2019,CHILDREN'S SERVICES,THE DRIVE CARE HOMES LTD,"1,699.00",RESIDENTIAL,RESIDENTIAL CARE,2103036942,1000003889
06.12.2019,CHILDREN'S SERVICES,TULIP CARE TWO LTD,"14,000.00",RESIDENTIAL,RESIDENTIAL CARE,2103036939,1000079091
06.12.2019,CHILDREN'S SERVICES,THE AMICUS COMMUNITY (ARUNDEL) LTD,"19,907.10",RESIDENTIAL,RESIDENTIAL CARE,2103036936,1000079012
06.12.2019,CHILDREN'S SERVICES,UNIQUE CARE HOMES SUPPORT LTD,"22,520.00",RESIDENTIAL,RESIDENTIAL CARE,2103036941,1000083349
06.12.2019,CHILDREN'S SERVICES,UNIQUE CARE HOMES SUPPORT LTD,"31,340.00",RESIDENTIAL,RESIDENTIAL CARE,2103036937,1000083349
06.12.2019,CHILDREN'S SERVICES,UNIQUE CARE HOMES SUPPORT LTD,"31,340.00",RESIDENTIAL,RESIDENTIAL CARE,2103036940,1000083349
06.12.2019,CHILDREN'S SERVICES,THE DRIVE CARE HOMES LTD,650,RESOURCE PANEL,SECTION 17 PAYMENTS TO AGENCIES/CARERS,2103036952,1000003889
06.12.2019,CHILDREN'S SERVICES,PURPLE PEBBLES(CHILD CARE) SERVICES,"1,821.43",RESOURCE PANEL,OTHER PAYMENTS FOR CLIENTS,2103036935,1000070705
06.12.2019,CHILDREN'S SERVICES,ROTHERHITHE PRIMARY SCHOOL,"18,500.00",ROTHERHITHE PRIMARY SCHOOL,SCHOOLS CAPITATION,2103035755,5001000058
06.12.2019,CHILDREN'S SERVICES,RYE OAK PRIMARY SCHOOL,"2,590.00",RYE OAK PRIMARY SCHOOL,SCHOOLS CAPITATION,2103035754,5001000059
06.12.2019,CHILDREN'S SERVICES,GRANGE PRIMARY SCHOOL,"44,405.29",SCHOOLS IN FINANCIAL DIFFICULTY,SCHOOLS CAPITATION,2103035758,5001000029
06.12.2019,CHILDREN'S SERVICES,YOUNG FUTURES,868.56,SEMI INDEPENDENT CARE LEAVERS,EXTERNAL AGENCIES AND BODIES,2103036917,1000059563
06.12.2019,CHILDREN'S SERVICES,YOUNG FUTURES,"1,017.12",SEMI INDEPENDENT CARE LEAVERS,EXTERNAL AGENCIES AND BODIES,2103036923,1000059563
06.12.2019,CHILDREN'S SERVICES,FUTURE FOUNDATIONS LTD,"1,667.14",SEMI INDEPENDENT CARE LEAVERS,EXTERNAL AGENCIES AND BODIES,2103036911,1000063272
06.12.2019,CHILDREN'S SERVICES,FUTURE FOUNDATIONS LTD,"1,667.14",SEMI INDEPENDENT CARE LEAVERS,EXTERNAL AGENCIES AND BODIES,2103036921,1000063272
06.12.2019,CHILDREN'S SERVICES,FUTURE FOUNDATIONS LTD,"2,322.85",SEMI INDEPENDENT CARE LEAVERS,EXTERNAL AGENCIES AND BODIES,2103036906,1000063272
06.12.2019,CHILDREN'S SERVICES,FUTURE FOUNDATIONS LTD,"2,520.00",SEMI INDEPENDENT CARE LEAVERS,EXTERNAL AGENCIES AND BODIES,2103036907,1000063272
06.12.2019,CHILDREN'S SERVICES,FUTURE FOUNDATIONS LTD,"2,520.00",SEMI INDEPENDENT CARE LEAVERS,EXTERNAL AGENCIES AND BODIES,2103036920,1000063272
06.12.2019,CHILDREN'S SERVICES,FUTURE FOUNDATIONS LTD,"2,815.71",SEMI INDEPENDENT CARE LEAVERS,EXTERNAL AGENCIES AND BODIES,2103036929,1000063272
06.12.2019,CHILDREN'S SERVICES,ADULLAM SUPPORT LTD,"2,892.86",SEMI INDEPENDENT CARE LEAVERS,EXTERNAL AGENCIES AND BODIES,2103036915,1000081148
06.12.2019,CHILDREN'S SERVICES,ADULLAM SUPPORT LTD,"2,959.32",SEMI INDEPENDENT CARE LEAVERS,EXTERNAL AGENCIES AND BODIES,2103036926,1000081148
06.12.2019,CHILDREN'S SERVICES,YOUNG FUTURES,"3,257.10",SEMI INDEPENDENT CARE LEAVERS,EXTERNAL AGENCIES AND BODIES,2103036905,1000059563
06.12.2019,CHILDREN'S SERVICES,FUTURE FOUNDATIONS LTD,"4,277.14",SEMI INDEPENDENT CARE LEAVERS,EXTERNAL AGENCIES AND BODIES,2103036924,1000063272
06.12.2019,CHILDREN'S SERVICES,HOLIBROOK HOUSE LTD,"6,107.14",SEMI INDEPENDENT CARE LEAVERS,EXTERNAL AGENCIES AND BODIES,2103036925,1000067873
06.12.2019,CHILDREN'S SERVICES,FUTURE FOUNDATIONS LTD,"35,584.28",SEMI INDEPENDENT CARE LEAVERS,EXTERNAL AGENCIES AND BODIES,2103036928,1000063272
06.12.2019,CHILDREN'S SERVICES,TRANSFORMING LIVES COMPANY LTD,256.85,SEMI INDEPENDENT LAC,OTHER PAYMENTS FOR CLIENTS,2103036902,1000083352
06.12.2019,CHILDREN'S SERVICES,ADULLAM SUPPORT LTD,"1,334.74",SEMI INDEPENDENT LAC,EXTERNAL AGENCIES AND BODIES,2103036914,1000081148
06.12.2019,CHILDREN'S SERVICES,FUTURE FOUNDATIONS LTD,"2,815.71",SEMI INDEPENDENT LAC,EXTERNAL AGENCIES AND BODIES,2103036901,1000063272
06.12.2019,CHILDREN'S SERVICES,YOUNG LONDON TODAY,"3,428.40",SEMI INDEPENDENT LAC,EXTERNAL AGENCIES AND BODIES,2103036900,1000071232
06.12.2019,CHILDREN'S SERVICES,HOLISTIC SUPPORTED LIVING LTD,"3,665.00",SEMI INDEPENDENT LAC,EXTERNAL AGENCIES AND BODIES,2103036899,1000082130
06.12.2019,CHILDREN'S SERVICES,YOUNG LONDON TODAY,593.33,UASC CARE LEAVERS,EXTERNAL AGENCIES AND BODIES,2103036908,1000071232
06.12.2019,CHILDREN'S SERVICES,FUTURE FOUNDATIONS LTD,"1,667.14",UASC CARE LEAVERS,EXTERNAL AGENCIES AND BODIES,2103036918,1000063272
06.12.2019,CHILDREN'S SERVICES,FUTURE FOUNDATIONS LTD,"1,667.14",UASC CARE LEAVERS,EXTERNAL AGENCIES AND BODIES,2103036919,1000063272
06.12.2019,CHILDREN'S SERVICES,FUTURE FOUNDATIONS LTD,"1,667.14",UASC CARE LEAVERS,EXTERNAL AGENCIES AND BODIES,2103036927,1000063272
06.12.2019,CHILDREN'S SERVICES,FUTURE FOUNDATIONS LTD,"1,667.14",UASC CARE LEAVERS,EXTERNAL AGENCIES AND BODIES,2103036930,1000063272
06.12.2019,CHILDREN'S SERVICES,FUTURE FOUNDATIONS LTD,"2,421.42",UASC CARE LEAVERS,EXTERNAL AGENCIES AND BODIES,2103036916,1000063272
06.12.2019,CHILDREN'S SERVICES,FUTURE FOUNDATIONS LTD,"2,520.00",UASC CARE LEAVERS,EXTERNAL AGENCIES AND BODIES,2103036931,1000063272
06.12.2019,CHILDREN'S SERVICES,FUTURE FOUNDATIONS LTD,"3,012.85",UASC CARE LEAVERS,EXTERNAL AGENCIES AND BODIES,2103036904,1000063272
06.12.2019,CHILDREN'S SERVICES,FUTURE FOUNDATIONS LTD,"3,113.28",UASC CARE LEAVERS,EXTERNAL AGENCIES AND BODIES,2103036932,1000063272
06.12.2019,CHILDREN'S SERVICES,FUTURE FOUNDATIONS LTD,"2,322.85",UASC LAC,EXTERNAL AGENCIES AND BODIES,2103036903,1000063272
06.12.2019,CHILDREN'S SERVICES,CONNEXIONS CUISINE,264.3,YOS SUPPORT,REFRESHMENTS FOR MEETINGS,5902392101,11317153
06.12.2019,CHILDREN'S SERVICES,CONNEXIONS CUISINE,280.97,YOS SUPPORT,REFRESHMENTS FOR MEETINGS,5902392103,11317153
06.12.2019,CHILDREN'S SERVICES,CROWNE PLAZA HOTELS & RESORTS,507,YOS SUPPORT,HIRE OF ROOMS/HALLS,5902392106,1000083432
06.12.2019,CHILDREN'S SERVICES,DODS PARLIAMENTARY COMMUNICATIONS LTD,837,YOS SUPPORT,TRAINING,5902392104,1000067040
06.12.2019,CHILDREN'S SERVICES,"R.I.S.E. (REFUGE, INFORMATION, SUPPORT AND EDUCATION) LTD",999,YOS SUPPORT,TRAINING,5902392100,1000083316
06.12.2019,COMMUNITIES,THAMES HOMECARE SERVICE LTD,"1,315.65",NO RECOURSE TO PUBLIC FUNDS,HOMECARE - C&V,2103036760,1000079295
06.12.2019,CUSTOMER EXPERIENCE HGF,VALTECH LTD,551.2,BLUE BADGES,MATERIALS,5902391786,1000082245
06.12.2019,CUSTOMER EXPERIENCE HGF,SG PATH LTD,415.8,CORONER'S,PROFESSIONAL FEES,5902391994,1000077883
06.12.2019,CUSTOMER EXPERIENCE HGF,KENT COUNTY COUNCIL - LASER,665.83,CORONER'S,ELECTRICITY,5902391943,1000012926
06.12.2019,CUSTOMER EXPERIENCE HGF,FRESHVIEW ESTATES LTD,"1,299.05",HOMELESS PROJECTS,GRANTS,5902391434,1000081189
06.12.2019,CUSTOMER EXPERIENCE HGF,BRITISH RED CROSS SOCIETY,620,HOUSING OPTIONS,TRAINING,5902392083,1000038088
06.12.2019,CUSTOMER EXPERIENCE HGF,VENTURE HOUSING (LONDON) LTD,-576,NIGHTLY TA (NSC),EXTERNAL AGENCIES AND BODIES,5902391921,1000056686
06.12.2019,CUSTOMER EXPERIENCE HGF,FINEFAIR LTD,709,NIGHTLY TA (NSC),EXTERNAL AGENCIES AND BODIES,5902392081,1000075570
06.12.2019,CUSTOMER EXPERIENCE HGF,FINEFAIR LTD,736,NIGHTLY TA (NSC),EXTERNAL AGENCIES AND BODIES,5902392080,1000075570
06.12.2019,CUSTOMER EXPERIENCE HGF,PROPERTYPLACEBOOK LTD,"1,225.00",NIGHTLY TA (NSC),EXTERNAL AGENCIES AND BODIES,5902391950,1000077817
06.12.2019,CUSTOMER EXPERIENCE HGF,VENTURE HOUSING (LONDON) LTD,"5,508.00",NIGHTLY TA (NSC),EXTERNAL AGENCIES AND BODIES,5902391900,1000056686
06.12.2019,CUSTOMER EXPERIENCE HGF,KINDLY PROPERTIES LTD,"14,958.75",NIGHTLY TA (NSC),EXTERNAL AGENCIES AND BODIES,5902391933,1000060734
06.12.2019,CUSTOMER EXPERIENCE HGF,PROPERTYPLACEBOOK LTD,"99,429.00",NIGHTLY TA (NSC),EXTERNAL AGENCIES AND BODIES,5902391893,1000077817
06.12.2019,CUSTOMER EXPERIENCE HGF,DENHAN PROPERTY SERVICES LTD,"-8,175.11",PSL PLACEMENTS,EXTERNAL AGENCIES AND BODIES,5902392073,1000082464
06.12.2019,CUSTOMER EXPERIENCE HGF,DENHAN PROPERTY SERVICES LTD,"10,120.00",PSL PLACEMENTS,EXTERNAL AGENCIES AND BODIES,5902392072,1000082464
06.12.2019,CUSTOMER EXPERIENCE HGF,DENHAN PROPERTY SERVICES LTD,"167,331.03",PSL PLACEMENTS,EXTERNAL AGENCIES AND BODIES,5902392071,1000082464
06.12.2019,ENVIRONMENT AND LEISURE,PREMIER SURVEYS,580,CAPITAL PS (LEISURE),CONSTR'N SUB CONTRACT - NON CERTIFICATED,5902390963,1000075479
06.12.2019,ENVIRONMENT AND LEISURE,HELLO LAMP POST LTD,"1,450.00",CAPITAL PS (LEISURE),CONSTRUCTION FEES  - EXTERNAL,5902391053,1000082641
06.12.2019,ENVIRONMENT DIRECTORATE,THE CCTV USER GROUP,275,CCTV,TRAINING,5902391880,1000063904
06.12.2019,ENVIRONMENT DIRECTORATE,THE CCTV USER GROUP,960,CCTV,TRAINING,5902391879,1000063904
06.12.2019,ENVIRONMENT DIRECTORATE,LONDON HIRE T/A R J MOTORS,270.97,COMMERCIAL VEH CTRL A/C,VEHICLE REPAIRS & MAINTENANCE,5902391964,1000047106
06.12.2019,ENVIRONMENT DIRECTORATE,LONDON HIRE T/A R J MOTORS,270.97,COMMERCIAL VEH CTRL A/C,VEHICLE REPAIRS & MAINTENANCE,5902391988,1000047106
06.12.2019,ENVIRONMENT DIRECTORATE,LONDON HIRE T/A R J MOTORS,270.97,COMMERCIAL VEH CTRL A/C,VEHICLE REPAIRS & MAINTENANCE,5902391989,1000047106
06.12.2019,ENVIRONMENT DIRECTORATE,LONDON HIRE T/A R J MOTORS,379.5,COMMERCIAL VEH CTRL A/C,VEHICLE REPAIRS & MAINTENANCE,5902391987,1000047106
06.12.2019,ENVIRONMENT DIRECTORATE,DAWSONGROUP VANS LTD,435.17,COMMERCIAL VEH CTRL A/C,HIRED VEHICLES,5902391945,1000082230
06.12.2019,ENVIRONMENT DIRECTORATE,ACCESS HIRE NATIONWIDE LTD,"1,914.95",COMMERCIAL VEH CTRL A/C,HIRED VEHICLES,5902391947,1000048527
06.12.2019,ENVIRONMENT DIRECTORATE,ACCESS HIRE NATIONWIDE LTD,"1,914.95",COMMERCIAL VEH CTRL A/C,HIRED VEHICLES,5902391949,1000048527
06.12.2019,ENVIRONMENT DIRECTORATE,GREENHAM TRADING LTD,"1,610.35",ESTATE CLEANING-GENERAL,MATERIALS,5902391688,1000006610
06.12.2019,ENVIRONMENT DIRECTORATE,LONDON HIRE T/A R J MOTORS,379.5,FLEET INSURANCE WORKS,TRANSPORT INSURANCE COSTS,5902391996,1000047106
06.12.2019,ENVIRONMENT DIRECTORATE,MERCEDES BENZ,"2,125.28",FLEET INSURANCE WORKS,TRANSPORT INSURANCE COSTS,5902392047,1000083426
06.12.2019,ENVIRONMENT DIRECTORATE,BELL BRUSH COMPANY,"1,045.40",MANAGEMENT TEAM,MATERIALS,5902391371,1259776
06.12.2019,ENVIRONMENT DIRECTORATE,SILK GROUP LTD,290,"ROAD SAFETY EDUCATION,TRAINING&PUBLICITY",MATERIALS,5902391885,1000055810
06.12.2019,ENVIRONMENT DIRECTORATE,SILK GROUP LTD,"1,335.00","ROAD SAFETY EDUCATION,TRAINING&PUBLICITY",MATERIALS,5902391885,1000055810
06.12.2019,ENVIRONMENT DIRECTORATE,BCS (ELECTRICAL & BUILDING) LTD,"15,752.36",SBS - HOLDING ACCOUNT,OTHER CONTRACTORS,2103036620,3000001471
06.12.2019,EXCHEQUER SERVICES,BETTER BANKSIDE,"48,359.65",BETTER BANKSIDE,EXTERNAL AGENCIES AND BODIES,5902391929,1000036227
06.12.2019,HOUSING,A & E ELKINS LTD,"67,893.31",A&E ELKINS,I-WORLD CONTRACTORS HOLDING ACCOUNT,2103036623,4012501
06.12.2019,HOUSING,PRB ESTATES LTD,"32,945.95",PRBE,I-WORLD CONTRACTORS HOLDING ACCOUNT,2103036617,3000001691
06.12.2019,HOUSING HRA,REC LTD,750,CAPITAL PS (HRA),CONSTRUCTION FEES  - EXTERNAL,5902392023,1000032541
06.12.2019,HOUSING HRA,BSW HEATING LTD,"34,685.56",CAPITAL PS (HRA),CONSTRUCTION MAIN CONTRACT -CERTIFICATED,2103036619,3000000580
06.12.2019,HOUSING HRA,ASPEN BUILD (EAST ANGLIA) LTD,"161,891.88",CAPITAL PS (HRA),CONSTRUCTION MAIN CONTRACT -CERTIFICATED,2103036618,3000002075
06.12.2019,HOUSING HRA,ENGIE REGENERATION (APOLLO) LTD,"238,558.59",CAPITAL PS (HRA),CONSTRUCTION MAIN CONTRACT -CERTIFICATED,2103036624,4000449
06.12.2019,HOUSING HRA,A & E ELKINS LTD,"292,183.25",CAPITAL PS (HRA),CONSTRUCTION MAIN CONTRACT -CERTIFICATED,2103036603,4012501
06.12.2019,HOUSING HRA,ENGIE REGENERATION LTD,"468,172.61",CAPITAL PS (HRA),CONSTRUCTION MAIN CONTRACT -CERTIFICATED,2103037032,3000002035
06.12.2019,HOUSING HRA,THAMES WATER UTILITIES LTD,350,CAPITAL PS (REGEN),UTILITIES INSTALLATION,5902391958,1000051868
06.12.2019,HOUSING HRA,P3R ENGINEERS LTD,"6,000.00",CAPITAL PS (REGEN),CONSTRUCTION FEES - ENGINEER,5902392057,1000082909
06.12.2019,HOUSING HRA,P3R ENGINEERS LTD,"15,000.00",CAPITAL PS (REGEN),CONSTRUCTION FEES - ENGINEER,5902392055,1000082909
06.12.2019,HOUSING HRA,KENT COUNTY COUNCIL - LASER,"6,625.69",RESIDENT SERVICES BUSINESS SUPPORT,ELECTRICITY,6101915432,DIRECT DEBIT PAYMENT
06.12.2019,HOUSING HRA,TRAVIS PERKINS TRADING COMPANY LTD,-870,STORES/LOGISTICS,BSU STORES AUTO POSTINGS,5902392056,1514319
06.12.2019,LEISURE DIRECTORATE,SPORTS AND LEISURE MANAGEMENT LTD,"21,218.11",FACILITIES MANAGEMENT,OTHER CONTRACTORS,5902391917,1000077862
06.12.2019,LEISURE DIRECTORATE,BEDE HOUSE ASSOCIATION,"7,740.75",GRANTS COMMISSIONING,GRANTS,5902392019,11265073
06.12.2019,LEISURE DIRECTORATE,BIBLIOTHECA LTD,414.23,STOCK SERVICES,STATIONERY,5902391312,1000069536
06.12.2019,PLANNING AND TRANSPORT,WATES PROPERTY SERVICES LTD,"1,702.78",DANGEROUS STRUCTURES,OTHER CONTRACTORS,5902391941,11322039
06.12.2019,PLANNING AND TRANSPORT,GVA GRIMLEY LTD T/A AVISON YOUNG,"22,685.00",STRATEGIC APPLICATIONS,PROFESSIONAL FEES,5902391937,1000016057
06.12.2019,PUBLIC HEALTH,ARTS 4 DEMENTIA,"5,000.00",PLACE & HEALTH IMPROVEMENT,EXTERNAL AGENCIES AND BODIES,5902391006,1000083599
06.12.2019,REGENERATION,SOILTECHNICS LTD,"1,400.00",BLACKFRIARS ROAD PROJECT,PROFESSIONAL FEES,5902391072,1000014274
06.12.2019,REGENERATION,WE MADE THAT LLP,"3,875.00",OKR MASTER PLANNING,CONSULTANTS SERVICES,5902391887,1000076806
06.12.2019,REGENERATION,WE MADE THAT LLP,"3,981.25",OKR MASTER PLANNING,CONSULTANTS SERVICES,5902391887,1000076806
06.12.2019,REGENERATION,3 FOX INTERNATIONAL LTD,"30,000.00",STAKEHOLDER ENGAGEMENT,MARKETING & PUBLICITY SERVICES,5902391212,1000046371
06.12.2019,RESIDENT SERVICES,RELIANCE HIGH-TECH LTD,"1,684.59",OPERATIONS/OFFICES ACCOMMODATION,OFFICE EXPENSES,5902392074,1000079374
06.12.2019,RESIDENT SERVICES,CHARTWELLS,"4,931.00",SUPPORTED HOSTELS,CATERING MATERIALS & SUPPLIES,5902391891,1000010625
06.12.2019,SOUTHWARK BUILDING SERVICES,TRAVIS PERKINS TRADING COMPANY LTD,"-1,500.00",STORES/LOGISTICS,CREDITORS -GR/IR CLEARING ACCOUNT,5902392040,1514319
06.12.2019,SOUTHWARK BUILDING SERVICES,TRAVIS PERKINS TRADING COMPANY LTD,-541,STORES/LOGISTICS,CREDITORS -GR/IR CLEARING ACCOUNT,5902392066,1514319
06.12.2019,SOUTHWARK BUILDING SERVICES,TRAVIS PERKINS TRADING COMPANY LTD,252,STORES/LOGISTICS,CREDITORS -GR/IR CLEARING ACCOUNT,5902392058,1514319
06.12.2019,SOUTHWARK BUILDING SERVICES,TRAVIS PERKINS TRADING COMPANY LTD,254.7,STORES/LOGISTICS,CREDITORS -GR/IR CLEARING ACCOUNT,5902392039,1514319
06.12.2019,SOUTHWARK BUILDING SERVICES,TRAVIS PERKINS TRADING COMPANY LTD,263.1,STORES/LOGISTICS,CREDITORS -GR/IR CLEARING ACCOUNT,5902392061,1514319
06.12.2019,SOUTHWARK BUILDING SERVICES,TRAVIS PERKINS TRADING COMPANY LTD,273.6,STORES/LOGISTICS,CREDITORS -GR/IR CLEARING ACCOUNT,5902392065,1514319
06.12.2019,SOUTHWARK BUILDING SERVICES,TRAVIS PERKINS TRADING COMPANY LTD,282,STORES/LOGISTICS,CREDITORS -GR/IR CLEARING ACCOUNT,5902392065,1514319
06.12.2019,SOUTHWARK BUILDING SERVICES,TRAVIS PERKINS TRADING COMPANY LTD,295.54,STORES/LOGISTICS,CREDITORS -GR/IR CLEARING ACCOUNT,5902392039,1514319
06.12.2019,SOUTHWARK BUILDING SERVICES,TRAVIS PERKINS TRADING COMPANY LTD,315,STORES/LOGISTICS,CREDITORS -GR/IR CLEARING ACCOUNT,5902392058,1514319
06.12.2019,SOUTHWARK BUILDING SERVICES,TRAVIS PERKINS TRADING COMPANY LTD,316,STORES/LOGISTICS,CREDITORS -GR/IR CLEARING ACCOUNT,5902392058,1514319
06.12.2019,SOUTHWARK BUILDING SERVICES,TRAVIS PERKINS TRADING COMPANY LTD,331.52,STORES/LOGISTICS,CREDITORS -GR/IR CLEARING ACCOUNT,5902392061,1514319
06.12.2019,SOUTHWARK BUILDING SERVICES,TRAVIS PERKINS TRADING COMPANY LTD,342.25,STORES/LOGISTICS,CREDITORS -GR/IR CLEARING ACCOUNT,5902392061,1514319
06.12.2019,SOUTHWARK BUILDING SERVICES,TRAVIS PERKINS TRADING COMPANY LTD,348.6,STORES/LOGISTICS,CREDITORS -GR/IR CLEARING ACCOUNT,5902392061,1514319
06.12.2019,SOUTHWARK BUILDING SERVICES,TRAVIS PERKINS TRADING COMPANY LTD,350,STORES/LOGISTICS,CREDITORS -GR/IR CLEARING ACCOUNT,5902392061,1514319
06.12.2019,SOUTHWARK BUILDING SERVICES,TRAVIS PERKINS TRADING COMPANY LTD,351,STORES/LOGISTICS,CREDITORS -GR/IR CLEARING ACCOUNT,5902392039,1514319
06.12.2019,SOUTHWARK BUILDING SERVICES,TRAVIS PERKINS TRADING COMPANY LTD,360,STORES/LOGISTICS,CREDITORS -GR/IR CLEARING ACCOUNT,5902392039,1514319
06.12.2019,SOUTHWARK BUILDING SERVICES,TRAVIS PERKINS TRADING COMPANY LTD,362.16,STORES/LOGISTICS,CREDITORS -GR/IR CLEARING ACCOUNT,5902392058,1514319
06.12.2019,SOUTHWARK BUILDING SERVICES,TRAVIS PERKINS TRADING COMPANY LTD,364.9,STORES/LOGISTICS,CREDITORS -GR/IR CLEARING ACCOUNT,5902392058,1514319
06.12.2019,SOUTHWARK BUILDING SERVICES,TRAVIS PERKINS TRADING COMPANY LTD,374,STORES/LOGISTICS,CREDITORS -GR/IR CLEARING ACCOUNT,5902392065,1514319
06.12.2019,SOUTHWARK BUILDING SERVICES,TRAVIS PERKINS TRADING COMPANY LTD,405,STORES/LOGISTICS,CREDITORS -GR/IR CLEARING ACCOUNT,5902392061,1514319
06.12.2019,SOUTHWARK BUILDING SERVICES,TRAVIS PERKINS TRADING COMPANY LTD,415.83,STORES/LOGISTICS,CREDITORS -GR/IR CLEARING ACCOUNT,5902392061,1514319
06.12.2019,SOUTHWARK BUILDING SERVICES,TRAVIS PERKINS TRADING COMPANY LTD,422.2,STORES/LOGISTICS,CREDITORS -GR/IR CLEARING ACCOUNT,5902392065,1514319
06.12.2019,SOUTHWARK BUILDING SERVICES,TRAVIS PERKINS TRADING COMPANY LTD,422.2,STORES/LOGISTICS,CREDITORS -GR/IR CLEARING ACCOUNT,5902392065,1514319
06.12.2019,SOUTHWARK BUILDING SERVICES,TRAVIS PERKINS TRADING COMPANY LTD,438.3,STORES/LOGISTICS,CREDITORS -GR/IR CLEARING ACCOUNT,5902392061,1514319
06.12.2019,SOUTHWARK BUILDING SERVICES,TRAVIS PERKINS TRADING COMPANY LTD,450,STORES/LOGISTICS,CREDITORS -GR/IR CLEARING ACCOUNT,5902392056,1514319
06.12.2019,SOUTHWARK BUILDING SERVICES,TRAVIS PERKINS TRADING COMPANY LTD,452.7,STORES/LOGISTICS,CREDITORS -GR/IR CLEARING ACCOUNT,5902392065,1514319
06.12.2019,SOUTHWARK BUILDING SERVICES,TRAVIS PERKINS TRADING COMPANY LTD,459,STORES/LOGISTICS,CREDITORS -GR/IR CLEARING ACCOUNT,5902392039,1514319
06.12.2019,SOUTHWARK BUILDING SERVICES,TRAVIS PERKINS TRADING COMPANY LTD,459.5,STORES/LOGISTICS,CREDITORS -GR/IR CLEARING ACCOUNT,5902392061,1514319
06.12.2019,SOUTHWARK BUILDING SERVICES,TRAVIS PERKINS TRADING COMPANY LTD,470,STORES/LOGISTICS,CREDITORS -GR/IR CLEARING ACCOUNT,5902392058,1514319
06.12.2019,SOUTHWARK BUILDING SERVICES,TRAVIS PERKINS TRADING COMPANY LTD,487.5,STORES/LOGISTICS,CREDITORS -GR/IR CLEARING ACCOUNT,5902392039,1514319
06.12.2019,SOUTHWARK BUILDING SERVICES,TRAVIS PERKINS TRADING COMPANY LTD,492,STORES/LOGISTICS,CREDITORS -GR/IR CLEARING ACCOUNT,5902392058,1514319
06.12.2019,SOUTHWARK BUILDING SERVICES,TRAVIS PERKINS TRADING COMPANY LTD,496,STORES/LOGISTICS,CREDITORS -GR/IR CLEARING ACCOUNT,5902392058,1514319
06.12.2019,SOUTHWARK BUILDING SERVICES,TRAVIS PERKINS TRADING COMPANY LTD,518,STORES/LOGISTICS,CREDITORS -GR/IR CLEARING ACCOUNT,5902392061,1514319
06.12.2019,SOUTHWARK BUILDING SERVICES,TRAVIS PERKINS TRADING COMPANY LTD,528,STORES/LOGISTICS,CREDITORS -GR/IR CLEARING ACCOUNT,5902392061,1514319
06.12.2019,SOUTHWARK BUILDING SERVICES,TRAVIS PERKINS TRADING COMPANY LTD,540,STORES/LOGISTICS,CREDITORS -GR/IR CLEARING ACCOUNT,5902392061,1514319
06.12.2019,SOUTHWARK BUILDING SERVICES,TRAVIS PERKINS TRADING COMPANY LTD,541,STORES/LOGISTICS,CREDITORS -GR/IR CLEARING ACCOUNT,5902392065,1514319
06.12.2019,SOUTHWARK BUILDING SERVICES,TRAVIS PERKINS TRADING COMPANY LTD,560.32,STORES/LOGISTICS,CREDITORS -GR/IR CLEARING ACCOUNT,5902392065,1514319
06.12.2019,SOUTHWARK BUILDING SERVICES,TRAVIS PERKINS TRADING COMPANY LTD,584.4,STORES/LOGISTICS,CREDITORS -GR/IR CLEARING ACCOUNT,5902392061,1514319
06.12.2019,SOUTHWARK BUILDING SERVICES,TRAVIS PERKINS TRADING COMPANY LTD,586,STORES/LOGISTICS,CREDITORS -GR/IR CLEARING ACCOUNT,5902392039,1514319
06.12.2019,SOUTHWARK BUILDING SERVICES,TRAVIS PERKINS TRADING COMPANY LTD,600,STORES/LOGISTICS,CREDITORS -GR/IR CLEARING ACCOUNT,5902392065,1514319
06.12.2019,SOUTHWARK BUILDING SERVICES,TRAVIS PERKINS TRADING COMPANY LTD,600.5,STORES/LOGISTICS,CREDITORS -GR/IR CLEARING ACCOUNT,5902392039,1514319
06.12.2019,SOUTHWARK BUILDING SERVICES,TRAVIS PERKINS TRADING COMPANY LTD,610,STORES/LOGISTICS,CREDITORS -GR/IR CLEARING ACCOUNT,5902392061,1514319
06.12.2019,SOUTHWARK BUILDING SERVICES,TRAVIS PERKINS TRADING COMPANY LTD,625,STORES/LOGISTICS,CREDITORS -GR/IR CLEARING ACCOUNT,5902392061,1514319
06.12.2019,SOUTHWARK BUILDING SERVICES,TRAVIS PERKINS TRADING COMPANY LTD,723.44,STORES/LOGISTICS,CREDITORS -GR/IR CLEARING ACCOUNT,5902392065,1514319
06.12.2019,SOUTHWARK BUILDING SERVICES,TRAVIS PERKINS TRADING COMPANY LTD,726,STORES/LOGISTICS,CREDITORS -GR/IR CLEARING ACCOUNT,5902392061,1514319
06.12.2019,SOUTHWARK BUILDING SERVICES,TRAVIS PERKINS TRADING COMPANY LTD,813,STORES/LOGISTICS,CREDITORS -GR/IR CLEARING ACCOUNT,5902392065,1514319
06.12.2019,SOUTHWARK BUILDING SERVICES,TRAVIS PERKINS TRADING COMPANY LTD,835.5,STORES/LOGISTICS,CREDITORS -GR/IR CLEARING ACCOUNT,5902392058,1514319
06.12.2019,SOUTHWARK BUILDING SERVICES,TRAVIS PERKINS TRADING COMPANY LTD,864.71,STORES/LOGISTICS,CREDITORS -GR/IR CLEARING ACCOUNT,5902392061,1514319
06.12.2019,SOUTHWARK BUILDING SERVICES,TRAVIS PERKINS TRADING COMPANY LTD,873.6,STORES/LOGISTICS,CREDITORS -GR/IR CLEARING ACCOUNT,5902392058,1514319
06.12.2019,SOUTHWARK BUILDING SERVICES,TRAVIS PERKINS TRADING COMPANY LTD,873.81,STORES/LOGISTICS,CREDITORS -GR/IR CLEARING ACCOUNT,5902392061,1514319
06.12.2019,SOUTHWARK BUILDING SERVICES,TRAVIS PERKINS TRADING COMPANY LTD,890,STORES/LOGISTICS,CREDITORS -GR/IR CLEARING ACCOUNT,5902392056,1514319
06.12.2019,SOUTHWARK BUILDING SERVICES,TRAVIS PERKINS TRADING COMPANY LTD,900,STORES/LOGISTICS,CREDITORS -GR/IR CLEARING ACCOUNT,5902392056,1514319
06.12.2019,SOUTHWARK BUILDING SERVICES,TRAVIS PERKINS TRADING COMPANY LTD,962,STORES/LOGISTICS,CREDITORS -GR/IR CLEARING ACCOUNT,5902392056,1514319
06.12.2019,SOUTHWARK BUILDING SERVICES,TRAVIS PERKINS TRADING COMPANY LTD,976,STORES/LOGISTICS,CREDITORS -GR/IR CLEARING ACCOUNT,5902392065,1514319
06.12.2019,SOUTHWARK BUILDING SERVICES,TRAVIS PERKINS TRADING COMPANY LTD,"1,011.00",STORES/LOGISTICS,CREDITORS -GR/IR CLEARING ACCOUNT,5902392061,1514319
06.12.2019,SOUTHWARK BUILDING SERVICES,TRAVIS PERKINS TRADING COMPANY LTD,"1,026.75",STORES/LOGISTICS,CREDITORS -GR/IR CLEARING ACCOUNT,5902392061,1514319
06.12.2019,SOUTHWARK BUILDING SERVICES,TRAVIS PERKINS TRADING COMPANY LTD,"1,036.50",STORES/LOGISTICS,CREDITORS -GR/IR CLEARING ACCOUNT,5902392065,1514319
06.12.2019,SOUTHWARK BUILDING SERVICES,TRAVIS PERKINS TRADING COMPANY LTD,"1,201.00",STORES/LOGISTICS,CREDITORS -GR/IR CLEARING ACCOUNT,5902392065,1514319
06.12.2019,SOUTHWARK BUILDING SERVICES,TRAVIS PERKINS TRADING COMPANY LTD,"1,232.00",STORES/LOGISTICS,CREDITORS -GR/IR CLEARING ACCOUNT,5902392061,1514319
06.12.2019,SOUTHWARK BUILDING SERVICES,TRAVIS PERKINS TRADING COMPANY LTD,"1,232.00",STORES/LOGISTICS,CREDITORS -GR/IR CLEARING ACCOUNT,5902392061,1514319
06.12.2019,SOUTHWARK BUILDING SERVICES,TRAVIS PERKINS TRADING COMPANY LTD,"1,296.00",STORES/LOGISTICS,CREDITORS -GR/IR CLEARING ACCOUNT,5902392058,1514319
06.12.2019,SOUTHWARK BUILDING SERVICES,TRAVIS PERKINS TRADING COMPANY LTD,"1,296.00",STORES/LOGISTICS,CREDITORS -GR/IR CLEARING ACCOUNT,5902392061,1514319
06.12.2019,SOUTHWARK BUILDING SERVICES,TRAVIS PERKINS TRADING COMPANY LTD,"1,330.56",STORES/LOGISTICS,CREDITORS -GR/IR CLEARING ACCOUNT,5902392061,1514319
06.12.2019,SOUTHWARK BUILDING SERVICES,TRAVIS PERKINS TRADING COMPANY LTD,"1,350.00",STORES/LOGISTICS,CREDITORS -GR/IR CLEARING ACCOUNT,5902392065,1514319
06.12.2019,SOUTHWARK BUILDING SERVICES,TRAVIS PERKINS TRADING COMPANY LTD,"1,401.00",STORES/LOGISTICS,CREDITORS -GR/IR CLEARING ACCOUNT,5902392058,1514319
06.12.2019,SOUTHWARK BUILDING SERVICES,TRAVIS PERKINS TRADING COMPANY LTD,"1,482.36",STORES/LOGISTICS,CREDITORS -GR/IR CLEARING ACCOUNT,5902392061,1514319
06.12.2019,SOUTHWARK BUILDING SERVICES,TRAVIS PERKINS TRADING COMPANY LTD,"1,500.00",STORES/LOGISTICS,CREDITORS -GR/IR CLEARING ACCOUNT,5902392039,1514319
06.12.2019,SOUTHWARK BUILDING SERVICES,TRAVIS PERKINS TRADING COMPANY LTD,"1,623.00",STORES/LOGISTICS,CREDITORS -GR/IR CLEARING ACCOUNT,5902392056,1514319
06.12.2019,SOUTHWARK BUILDING SERVICES,TRAVIS PERKINS TRADING COMPANY LTD,"1,682.64",STORES/LOGISTICS,CREDITORS -GR/IR CLEARING ACCOUNT,5902392058,1514319
06.12.2019,SOUTHWARK BUILDING SERVICES,TRAVIS PERKINS TRADING COMPANY LTD,"1,694.00",STORES/LOGISTICS,CREDITORS -GR/IR CLEARING ACCOUNT,5902392039,1514319
06.12.2019,SOUTHWARK BUILDING SERVICES,TRAVIS PERKINS TRADING COMPANY LTD,"2,001.00",STORES/LOGISTICS,CREDITORS -GR/IR CLEARING ACCOUNT,5902392065,1514319
06.12.2019,SOUTHWARK BUILDING SERVICES,TRAVIS PERKINS TRADING COMPANY LTD,"3,390.80",STORES/LOGISTICS,CREDITORS -GR/IR CLEARING ACCOUNT,5902392058,1514319
06.12.2019,SOUTHWARK BUILDING SERVICES,TRAVIS PERKINS TRADING COMPANY LTD,"3,630.00",STORES/LOGISTICS,CREDITORS -GR/IR CLEARING ACCOUNT,5902392065,1514319
06.12.2019,SOUTHWARK BUILDING SERVICES,TRAVIS PERKINS TRADING COMPANY LTD,"6,050.00",STORES/LOGISTICS,CREDITORS -GR/IR CLEARING ACCOUNT,5902392061,1514319
07.12.2019,CUSTOMER EXPERIENCE HGF,SUNSHINE ESTATES LTD,"1,271.04",HOMELESS PROJECTS,GRANTS,5902391083,1000083634
07.12.2019,CUSTOMER EXPERIENCE HGF,CARIDON LANDLORD SOLUTIONS LTD,"1,299.66",HOMELESS PROJECTS,GRANTS,5902391077,1000080555
07.12.2019,CUSTOMER EXPERIENCE HGF,CEDAR HOUSING SOLUTIONS LTD,315.76,HOUSING OPTIONS,EXTERNAL AGENCIES AND BODIES,5902392079,1000080014
07.12.2019,ENVIRONMENT DIRECTORATE,THE T.P. PARTNERSHIP,445,ESTATE CLEANING-GENERAL,OTHER CONTRACTORS,5902391651,1000045906
07.12.2019,ENVIRONMENT DIRECTORATE,THE CAMDEN SOCIETY (CATERING),446.15,HIGHWAYS WORKS & SERVICES,REFRESHMENTS FOR MEETINGS,5902391104,1000075365
07.12.2019,ENVIRONMENT DIRECTORATE,BARRETTINE ENVIRONMENTAL HEALTH,567.89,PEST CONTROL,MATERIALS,5902391720,1000050556
07.12.2019,HOUSING HRA,ENGIE REGENERATION (APOLLO) LTD,"12,413.04",CAPITAL PS (HRA),CONSTRUCTION MAIN CONTRACT -CERTIFICATED,2103036625,4000449
07.12.2019,PLANNING AND TRANSPORT,WATES PROPERTY SERVICES LTD,"1,702.63",DANGEROUS STRUCTURES,OTHER CONTRACTORS,5902391944,11322039
07.12.2019,REGENERATION,PELLINGS LLP,"10,629.00",BLACKFRIARS ROAD PROJECT,PROFESSIONAL FEES,5902391593,1009262
08.12.2019,ADULT SOCIAL CARE,INCLUSIVE TECHNOLOGY LTD,316.5,SOUTHWARK RESOURCE CENTRE,EQUIPMENT PURCHASE & REPAIR,5902391689,1000004088
08.12.2019,CUSTOMER EXPERIENCE HGF,TONY CHRISTIE,"3,300.00",HOMELESS PROJECTS,GRANTS,5902391119,1000083608
08.12.2019,CUSTOMER EXPERIENCE HGF,BIRCHAM DYSON BELL,"7,218.50",LONDON BRIDGE INQUEST,LEGAL FEES & COURT COSTS,5902391193,1000048605
08.12.2019,CUSTOMER EXPERIENCE HGF,TYNETEC LEGRAND LTD,"1,530.00",SMART MOBILE RESPONSE TEAM,EQUIPMENT PURCHASE & REPAIR,5902391358,1000066068
08.12.2019,ENVIRONMENT DIRECTORATE,TRILO (UK) T/A THE GRASS GROUP,390,MANAGEMENT TEAM,MATERIALS,5902391349,1000067481
08.12.2019,ENVIRONMENT DIRECTORATE,TRILO (UK) T/A THE GRASS GROUP,"3,150.00",MANAGEMENT TEAM,MATERIALS,5902391349,1000067481
08.12.2019,ENVIRONMENT DIRECTORATE,ELLIOT ENVIRONMENTAL LTD,800,STREET CLEANING-GENERAL,OTHER CONTRACTORS,5902391533,1000047392
08.12.2019,HSG&MOD,METRO CENTRE LTD,400,VCS GRANTS,OTHER CONTRACTORS,5902391310,1000073797
08.12.2019,HSG&MOD,BLACKFRIARS SETTLEMENT,500,VCS GRANTS,OTHER CONTRACTORS,5902391302,1000071456
08.12.2019,MODERNISATION HGF,T2 SOLUTIONS 2000 LTD,950,OCCUPATIONAL ASSESSMENT,CONSULTANTS SERVICES,5902391327,1000080952
08.12.2019,PLANNING AND TRANSPORT,SOUTHWARK NEWSPAPER LTD,384,DEVELOPMENT CONTROL ADMINSTRATION,MARKETING & PUBLICITY SERVICES,5902391343,1556957
08.12.2019,PLANNING AND TRANSPORT,SOUTHWARK NEWSPAPER LTD,504,DEVELOPMENT CONTROL ADMINSTRATION,MARKETING & PUBLICITY SERVICES,5902391345,1556957
08.12.2019,RESIDENT SERVICES,CARLISLE SECURITY SERVICES LTD,"12,154.32",CAMBERWELL,SECURITY SERVICES,5902391938,11212342
09.12.2019,ADULT SOCIAL CARE,REDACTED PERSONAL DATA,277.3,APPOINTEESHIPS,OTHER PAYMENTS FOR CLIENTS,REDACTED,REDACTED
09.12.2019,ADULT SOCIAL CARE,REDACTED PERSONAL DATA,"20,904.87",APPOINTEESHIPS,OTHER PAYMENTS FOR CLIENTS,REDACTED,REDACTED
09.12.2019,ADULT SOCIAL CARE,REDACTED PERSONAL DATA,"28,118.30",APPOINTEESHIPS,OTHER PAYMENTS FOR CLIENTS,REDACTED,REDACTED
09.12.2019,ADULT SOCIAL CARE,SUPREME CARE SERVICES LTD,304.11,LD LTS 18-64,HOMECARE - C&V,2103037314,1000059416
09.12.2019,ADULT SOCIAL CARE,SUPREME CARE SERVICES LTD,682.03,LD LTS 18-64,HOMECARE - C&V,2103037151,1000059416
09.12.2019,ADULT SOCIAL CARE,SUPREME CARE SERVICES LTD,767.25,LD LTS 65+,HOMECARE - C&V,2103037122,1000059416
09.12.2019,ADULT SOCIAL CARE,SUPREME CARE SERVICES LTD,976.45,MEM LTS 18-64,HOMECARE - C&V,2103037320,1000059416
09.12.2019,ADULT SOCIAL CARE,SUPREME CARE SERVICES LTD,260.11,MEM LTS 65+,HOMECARE - C&V,2103037097,1000059416
09.12.2019,ADULT SOCIAL CARE,SUPREME CARE SERVICES LTD,272.8,MEM LTS 65+,HOMECARE - C&V,2103037244,1000059416
09.12.2019,ADULT SOCIAL CARE,SUPREME CARE SERVICES LTD,285.12,MEM LTS 65+,HOMECARE - C&V,2103037457,1000059416
09.12.2019,ADULT SOCIAL CARE,SUPREME CARE SERVICES LTD,341.38,MEM LTS 65+,HOMECARE - C&V,2103037473,1000059416
09.12.2019,ADULT SOCIAL CARE,SUPREME CARE SERVICES LTD,474.08,MEM LTS 65+,HOMECARE - C&V,2103037458,1000059416
09.12.2019,ADULT SOCIAL CARE,BLISSETT CARE LTD,487.76,MEM LTS 65+,HOMECARE - C&V,2103037540,1000042627
09.12.2019,ADULT SOCIAL CARE,SUPREME CARE SERVICES LTD,577.21,MEM LTS 65+,HOMECARE - C&V,2103037242,1000059416
09.12.2019,ADULT SOCIAL CARE,SUPREME CARE SERVICES LTD,618.37,MEM LTS 65+,HOMECARE - C&V,2103037134,1000059416
09.12.2019,ADULT SOCIAL CARE,SUPREME CARE SERVICES LTD,637.7,MEM LTS 65+,HOMECARE - C&V,2103037106,1000059416
09.12.2019,ADULT SOCIAL CARE,SUPREME CARE SERVICES LTD,730.73,MEM LTS 65+,HOMECARE - C&V,2103037131,1000059416
09.12.2019,ADULT SOCIAL CARE,SUPREME CARE SERVICES LTD,734.29,MEM LTS 65+,HOMECARE - C&V,2103037358,1000059416
09.12.2019,ADULT SOCIAL CARE,SUPREME CARE SERVICES LTD,767.61,MEM LTS 65+,HOMECARE - C&V,2103037395,1000059416
09.12.2019,ADULT SOCIAL CARE,SUPREME CARE SERVICES LTD,"1,017.10",MEM LTS 65+,HOMECARE - C&V,2103037338,1000059416
09.12.2019,ADULT SOCIAL CARE,SUPREME CARE SERVICES LTD,"1,121.42",MEM LTS 65+,HOMECARE - C&V,2103037086,1000059416
09.12.2019,ADULT SOCIAL CARE,SUPREME CARE SERVICES LTD,"3,027.13",MEM LTS 65+,HOMECARE - C&V,2103037416,1000059416
09.12.2019,ADULT SOCIAL CARE,SUPREME CARE SERVICES LTD,302.63,MH LTS 18-64,HOMECARE - C&V,2103037182,1000059416
09.12.2019,ADULT SOCIAL CARE,SUPREME CARE SERVICES LTD,319.74,MH LTS 18-64,HOMECARE - C&V,2103037267,1000059416
09.12.2019,ADULT SOCIAL CARE,SUPREME CARE SERVICES LTD,464.62,MH LTS 18-64,HOMECARE - C&V,2103037310,1000059416
09.12.2019,ADULT SOCIAL CARE,SUPREME CARE SERVICES LTD,466.43,MH LTS 18-64,HOMECARE - C&V,2103037162,1000059416
09.12.2019,ADULT SOCIAL CARE,SUPREME CARE SERVICES LTD,477.4,MH LTS 18-64,HOMECARE - C&V,2103037504,1000059416
09.12.2019,ADULT SOCIAL CARE,SUPREME CARE SERVICES LTD,477.41,MH LTS 18-64,HOMECARE - C&V,2103037225,1000059416
09.12.2019,ADULT SOCIAL CARE,SUPREME CARE SERVICES LTD,558.39,MH LTS 18-64,HOMECARE - C&V,2103037060,1000059416
09.12.2019,ADULT SOCIAL CARE,SUPREME CARE SERVICES LTD,711.81,MH LTS 18-64,HOMECARE - C&V,2103037394,1000059416
09.12.2019,ADULT SOCIAL CARE,SUPREME CARE SERVICES LTD,797.15,MH LTS 18-64,HOMECARE - C&V,2103037089,1000059416
09.12.2019,ADULT SOCIAL CARE,SUPREME CARE SERVICES LTD,375.14,MH LTS 65+,HOMECARE - C&V,2103037323,1000059416
09.12.2019,ADULT SOCIAL CARE,SUPREME CARE SERVICES LTD,392.16,MH LTS 65+,HOMECARE - C&V,2103037489,1000059416
09.12.2019,ADULT SOCIAL CARE,SUPREME CARE SERVICES LTD,443.3,MH LTS 65+,HOMECARE - C&V,2103037318,1000059416
09.12.2019,ADULT SOCIAL CARE,SUPREME CARE SERVICES LTD,545.6,MH LTS 65+,HOMECARE - C&V,2103037260,1000059416
09.12.2019,ADULT SOCIAL CARE,SUPREME CARE SERVICES LTD,554.1,MH LTS 65+,HOMECARE - C&V,2103037300,1000059416
09.12.2019,ADULT SOCIAL CARE,SUPREME CARE SERVICES LTD,618.08,MH LTS 65+,HOMECARE - C&V,2103037336,1000059416
09.12.2019,ADULT SOCIAL CARE,SUPREME CARE SERVICES LTD,735.42,MH LTS 65+,HOMECARE - C&V,2103037386,1000059416
09.12.2019,ADULT SOCIAL CARE,SUPREME CARE SERVICES LTD,946.6,MH LTS 65+,HOMECARE - C&V,2103037384,1000059416
09.12.2019,ADULT SOCIAL CARE,SUPREME CARE SERVICES LTD,260.06,PHY LTS 18-64,HOMECARE - C&V,2103037116,1000059416
09.12.2019,ADULT SOCIAL CARE,SUPREME CARE SERVICES LTD,281.32,PHY LTS 18-64,HOMECARE - C&V,2103037288,1000059416
09.12.2019,ADULT SOCIAL CARE,SUPREME CARE SERVICES LTD,281.4,PHY LTS 18-64,HOMECARE - C&V,2103037403,1000059416
09.12.2019,ADULT SOCIAL CARE,SUPREME CARE SERVICES LTD,294.17,PHY LTS 18-64,HOMECARE - C&V,2103037249,1000059416
09.12.2019,ADULT SOCIAL CARE,SUPREME CARE SERVICES LTD,341,PHY LTS 18-64,HOMECARE - C&V,2103037247,1000059416
09.12.2019,ADULT SOCIAL CARE,SUPREME CARE SERVICES LTD,349.53,PHY LTS 18-64,HOMECARE - C&V,2103037217,1000059416
09.12.2019,ADULT SOCIAL CARE,SUPREME CARE SERVICES LTD,362.37,PHY LTS 18-64,HOMECARE - C&V,2103037438,1000059416
09.12.2019,ADULT SOCIAL CARE,SUPREME CARE SERVICES LTD,367.76,PHY LTS 18-64,HOMECARE - C&V,2103037328,1000059416
